Workbook

Sheet Instrucciones generales
B2: Ministerio de Economía, Planificación y Desarrollo (MEPyD)
B3: Viceministerio de Cooperación Internacional (VIMICI)
B4: Dirección de Análisis y Coordinación de la Cooperación Internacional (DACCI)
B5: Instrucciones del tablero de iniciativas
B7: Iniciativa de cooperación internacional | D7: Término genérico utilizado para referirse a los programas, proyectos, acciones y actividades que utliza la cooperación internacional para incidir un área en específico, con el objetivo de mejorar las condiciones del país beneficiario.
B10: Primeros pasos
B16: Contenido y leyenda de simbología
B77: Cobertura de la data | D77: • Los datos que alimentan este tablero provienen de la Matriz de Registro y Seguimiento SINACID que consiste en un registro de programas, proyectos y acciones de cooperación internacional disponibles en los registros del Viceministerio de Cooperación Internacional del Ministerio de Economía, Planificación y Desarrollo de República Domincana y las reportadas por la comunidad de cooperantes, entidades ejecutoras. Esto quiere decir que las iniciativas incluidas en este reporte no corresponden a la totalidad de recursos de cooperación recibidos por la República Dominicana. • Las iniciativas que se encuentran en formulación y/o negociación, no se consideran en esta base de datos, hasta ser aprobadas cuyo estado se reporta como "No iniciada". • Los montos mostrados no corresponden al flujo total de recursos de cooperación recibidos por la República Dominicana. El contenido de este reporte se limita exclusivamente a las iniciativas en seguimiento o reportadas al Viceministerio de Cooperación Internacional del Ministerio de Economía, Planificación y Desarrollo. • El llenado del instrumento se realiza de manera periódica, posterior al cierre de cada trimestre (abril, julio, octubre, enero), es responsabilidad de los encargados del seguimiento de iniciativas de las instituciones públicas ejecutoras de iniciativas. • La data reportada al MEPyD por entidades externas se asume como válida tal cual se envía, considerando que estas entidades disponen de la documentación oficial y en base a ella realizan el registo. Solo se corrigen aspectos que puedan ser verificados en la documentación de respaldo, en los casos en que esta documentación es remitida. • Los tipos de cambio empleados para la conversión de divisas a pesos dominicanos es la tasa de cambio promedio del del Banco Central de la República Dominicana de 2021.
B88: Notas para el análisis | D88: • Se debe considerar que en este reporte se muestran iniciativas secundarias o dependientes de otras que ya están incluidas en el reporte. Esto se debe considerar a la hora de presentar montos e iniciativas para evitar duplicidad. El usuario puede visualizar las iniciativas y los montos utlizando los segmentadores de la hoja "Filtros".
D89: • Algunas iniciativas, principalmente aquellas regionales y de doble vía, possen recursos que no son de beneficio exclusivo del país, sino que son compartidos. Esto debe tomarse en cuenta a la hora de la presentación e interpretación de datos presupuestarios.
B91: Para información sobre las variables de llenado de la Matriz de Registro y Seguimiento: Acceso al Manual de conceptos del SI-SINACID
B92: Para consultas contactar al: 809-688-7000 extensión 6315/6263/6292/2305 o a los correos: camilo.miranda@economia.gob.do sucre.munoz@economia.gob.do sabeida.perez@economia.gob.do janna.lopez@economia.gob.do bethania.vegazo@economia.gob.do

Sheet Filtros

Sheet Tablero
G2: INFORMACIÓN PRESUPUESTARIA
G15: ACTORES
G16: Cooperantes | M16: Ejecutores
G17: Cooperante | H17: Iniciativas (%) | I17: Aporte no reembolsable (%) | M17: Institución ejecutora | N17: % cantidad de iniciativas | O17: % aporte no reembolsable
G18: =IFERROR(IF(OR(Calculos!E73="Grand total"),"",INDEX(Calculos!E73:'Calculos'!E$209,Calculos!$H$71)),"") -> AFP Popular | H18: =IFERROR(IF(OR(Calculos!E73="Grand total",Calculos!E73=0),"",INDEX(Calculos!F73:'Calculos'!F$209,Calculos!$H$71))*100,"") -> 0.09 | I18: =IFERROR(IF(OR(Calculos!F73="Grand total",Calculos!F73=0),"",INDEX(Calculos!G73:'Calculos'!G$209,Calculos!$H$71)*100),"") -> 0.02 | M18: =IFERROR(IF(OR(Calculos!$V73="Grand total",Calculos!$W73=0),"",INDEX(Calculos!V73:'Calculos'!V$482,Calculos!$V$70)),"") -> 2Oceans in Health | N18: =IFERROR(IF(OR(Calculos!$V73="Grand total",Calculos!$W73=0),"",INDEX(Calculos!W73:'Calculos'!W$482,Calculos!$V$70)*100),"") -> 0.18 | O18: =IFERROR(IF(OR(Calculos!$V73="Grand total",Calculos!$W73=0),"",INDEX(Calculos!X73:'Calculos'!X$482,Calculos!$V$70)*100),"") -> 0.02
G19: =IFERROR(IF(OR(Calculos!E74="Grand total"),"",INDEX(Calculos!E74:'Calculos'!E$209,Calculos!$H$71)),"") -> Agencia Alemana de Cooperación Técnica | H19: =IFERROR(IF(OR(Calculos!E74="Grand total",Calculos!E74=0),"",INDEX(Calculos!F74:'Calculos'!F$209,Calculos!$H$71))*100,"") -> 1.59 | I19: =IFERROR(IF(OR(Calculos!F74="Grand total",Calculos!F74=0),"",INDEX(Calculos!G74:'Calculos'!G$209,Calculos!$H$71)*100),"") -> 2.00 | M19: =IFERROR(IF(OR(Calculos!$V74="Grand total",Calculos!$W74=0),"",INDEX(Calculos!V74:'Calculos'!V$482,Calculos!$V$70)),"") -> Abt Associates, Inc | N19: =IFERROR(IF(OR(Calculos!$V74="Grand total",Calculos!$W74=0),"",INDEX(Calculos!W74:'Calculos'!W$482,Calculos!$V$70)*100),"") -> 0.18 | O19: =IFERROR(IF(OR(Calculos!$V74="Grand total",Calculos!$W74=0),"",INDEX(Calculos!X74:'Calculos'!X$482,Calculos!$V$70)*100),"") -> 0.10
G20: =IFERROR(IF(OR(Calculos!E75="Grand total"),"",INDEX(Calculos!E75:'Calculos'!E$209,Calculos!$H$71)),"") -> Agencia Andaluza de Cooperación Internacional para el Desarrollo | H20: =IFERROR(IF(OR(Calculos!E75="Grand total",Calculos!E75=0),"",INDEX(Calculos!F75:'Calculos'!F$209,Calculos!$H$71))*100,"") -> 1.15 | I20: =IFERROR(IF(OR(Calculos!F75="Grand total",Calculos!F75=0),"",INDEX(Calculos!G75:'Calculos'!G$209,Calculos!$H$71)*100),"") -> 0.23 | M20: =IFERROR(IF(OR(Calculos!$V75="Grand total",Calculos!$W75=0),"",INDEX(Calculos!V75:'Calculos'!V$482,Calculos!$V$70)),"") -> Acción Empresarial por la Educación (EDUCA)/Comisión Nacional Dominicana para la UNESCO | N20: =IFERROR(IF(OR(Calculos!$V75="Grand total",Calculos!$W75=0),"",INDEX(Calculos!W75:'Calculos'!W$482,Calculos!$V$70)*100),"") -> 0.09 | O20: =IFERROR(IF(OR(Calculos!$V75="Grand total",Calculos!$W75=0),"",INDEX(Calculos!X75:'Calculos'!X$482,Calculos!$V$70)*100),"") -> 0.00
G21: =IFERROR(IF(OR(Calculos!E76="Grand total"),"",INDEX(Calculos!E76:'Calculos'!E$209,Calculos!$H$71)),"") -> Agencia Brasileña de Cooperación Internacional | H21: =IFERROR(IF(OR(Calculos!E76="Grand total",Calculos!E76=0),"",INDEX(Calculos!F76:'Calculos'!F$209,Calculos!$H$71))*100,"") -> 0.53 | I21: =IFERROR(IF(OR(Calculos!F76="Grand total",Calculos!F76=0),"",INDEX(Calculos!G76:'Calculos'!G$209,Calculos!$H$71)*100),"") -> 0.06 | M21: =IFERROR(IF(OR(Calculos!$V76="Grand total",Calculos!$W76=0),"",INDEX(Calculos!V76:'Calculos'!V$482,Calculos!$V$70)),"") -> Administradora de Subsidios Sociales (ADESS)/Consejo Nacional para el VIH y el SIDA (CONAVIHSIDA)/Programa Supérate/Servicio Nacional de Salud (SNS)/Ministerio de Salud Pública y Asistencia Social (MISPAS) | N21: =IFERROR(IF(OR(Calculos!$V76="Grand total",Calculos!$W76=0),"",INDEX(Calculos!W76:'Calculos'!W$482,Calculos!$V$70)*100),"") -> 0.09 | O21: =IFERROR(IF(OR(Calculos!$V76="Grand total",Calculos!$W76=0),"",INDEX(Calculos!X76:'Calculos'!X$482,Calculos!$V$70)*100),"") -> 0.03
G22: =IFERROR(IF(OR(Calculos!E77="Grand total"),"",INDEX(Calculos!E77:'Calculos'!E$209,Calculos!$H$71)),"") -> Agencia Chilena de Cooperación Internacional para el Desarrollo | H22: =IFERROR(IF(OR(Calculos!E77="Grand total",Calculos!E77=0),"",INDEX(Calculos!F77:'Calculos'!F$209,Calculos!$H$71))*100,"") -> 0.88 | I22: =IFERROR(IF(OR(Calculos!F77="Grand total",Calculos!F77=0),"",INDEX(Calculos!G77:'Calculos'!G$209,Calculos!$H$71)*100),"") -> 0.02 | M22: =IFERROR(IF(OR(Calculos!$V77="Grand total",Calculos!$W77=0),"",INDEX(Calculos!V77:'Calculos'!V$482,Calculos!$V$70)),"") -> Agencia Alemana de Cooperación Técnica | N22: =IFERROR(IF(OR(Calculos!$V77="Grand total",Calculos!$W77=0),"",INDEX(Calculos!W77:'Calculos'!W$482,Calculos!$V$70)*100),"") -> 0.09 | O22: =IFERROR(IF(OR(Calculos!$V77="Grand total",Calculos!$W77=0),"",INDEX(Calculos!X77:'Calculos'!X$482,Calculos!$V$70)*100),"") -> 0.49
G23: =IFERROR(IF(OR(Calculos!E78="Grand total"),"",INDEX(Calculos!E78:'Calculos'!E$209,Calculos!$H$71)),"") -> Agencia de Comercio y Desarrollo de Estados Unidos | H23: =IFERROR(IF(OR(Calculos!E78="Grand total",Calculos!E78=0),"",INDEX(Calculos!F78:'Calculos'!F$209,Calculos!$H$71))*100,"") -> 0.18 | I23: =IFERROR(IF(OR(Calculos!F78="Grand total",Calculos!F78=0),"",INDEX(Calculos!G78:'Calculos'!G$209,Calculos!$H$71)*100),"") -> 0.04 | M23: =IFERROR(IF(OR(Calculos!$V78="Grand total",Calculos!$W78=0),"",INDEX(Calculos!V78:'Calculos'!V$482,Calculos!$V$70)),"") -> Agencia de Estados Unidos para el Desarrollo Internacional | N23: =IFERROR(IF(OR(Calculos!$V78="Grand total",Calculos!$W78=0),"",INDEX(Calculos!W78:'Calculos'!W$482,Calculos!$V$70)*100),"") -> 1.50 | O23: =IFERROR(IF(OR(Calculos!$V78="Grand total",Calculos!$W78=0),"",INDEX(Calculos!X78:'Calculos'!X$482,Calculos!$V$70)*100),"") -> 5.84
G24: =IFERROR(IF(OR(Calculos!E79="Grand total"),"",INDEX(Calculos!E79:'Calculos'!E$209,Calculos!$H$71)),"") -> Agencia de Cooperación Internacional de Corea | H24: =IFERROR(IF(OR(Calculos!E79="Grand total",Calculos!E79=0),"",INDEX(Calculos!F79:'Calculos'!F$209,Calculos!$H$71))*100,"") -> 0.88 | I24: =IFERROR(IF(OR(Calculos!F79="Grand total",Calculos!F79=0),"",INDEX(Calculos!G79:'Calculos'!G$209,Calculos!$H$71)*100),"") -> 1.95 | M24: =IFERROR(IF(OR(Calculos!$V79="Grand total",Calculos!$W79=0),"",INDEX(Calculos!V79:'Calculos'!V$482,Calculos!$V$70)),"") -> Agencia para el Desarrollo de las Exportaciones del Caribe (Caribbean Export) | N24: =IFERROR(IF(OR(Calculos!$V79="Grand total",Calculos!$W79=0),"",INDEX(Calculos!W79:'Calculos'!W$482,Calculos!$V$70)*100),"") -> 0.18 | O24: =IFERROR(IF(OR(Calculos!$V79="Grand total",Calculos!$W79=0),"",INDEX(Calculos!X79:'Calculos'!X$482,Calculos!$V$70)*100),"") -> 2.38
G25: =IFERROR(IF(OR(Calculos!E80="Grand total"),"",INDEX(Calculos!E80:'Calculos'!E$209,Calculos!$H$71)),"") -> Agencia de Cooperación Internacional de Japón | H25: =IFERROR(IF(OR(Calculos!E80="Grand total",Calculos!E80=0),"",INDEX(Calculos!F80:'Calculos'!F$209,Calculos!$H$71))*100,"") -> 0.53 | I25: =IFERROR(IF(OR(Calculos!F80="Grand total",Calculos!F80=0),"",INDEX(Calculos!G80:'Calculos'!G$209,Calculos!$H$71)*100),"") -> 0.95 | M25: =IFERROR(IF(OR(Calculos!$V80="Grand total",Calculos!$W80=0),"",INDEX(Calculos!V80:'Calculos'!V$482,Calculos!$V$70)),"") -> Agrofrontera | N25: =IFERROR(IF(OR(Calculos!$V80="Grand total",Calculos!$W80=0),"",INDEX(Calculos!W80:'Calculos'!W$482,Calculos!$V$70)*100),"") -> 0.18 | O25: =IFERROR(IF(OR(Calculos!$V80="Grand total",Calculos!$W80=0),"",INDEX(Calculos!X80:'Calculos'!X$482,Calculos!$V$70)*100),"") -> 0.05
G26: =IFERROR(IF(OR(Calculos!E81="Grand total"),"",INDEX(Calculos!E81:'Calculos'!E$209,Calculos!$H$71)),"") -> Agencia de Estados Unidos para el Desarrollo Internacional | H26: =IFERROR(IF(OR(Calculos!E81="Grand total",Calculos!E81=0),"",INDEX(Calculos!F81:'Calculos'!F$209,Calculos!$H$71))*100,"") -> 6.99 | I26: =IFERROR(IF(OR(Calculos!F81="Grand total",Calculos!F81=0),"",INDEX(Calculos!G81:'Calculos'!G$209,Calculos!$H$71)*100),"") -> 27.72 | M26: =IFERROR(IF(OR(Calculos!$V81="Grand total",Calculos!$W81=0),"",INDEX(Calculos!V81:'Calculos'!V$482,Calculos!$V$70)),"") -> Alianza Discapacidad por Nuestros Derechos (ADIDE)/International Foundation for Electoral Systems (IFES) | N26: =IFERROR(IF(OR(Calculos!$V81="Grand total",Calculos!$W81=0),"",INDEX(Calculos!W81:'Calculos'!W$482,Calculos!$V$70)*100),"") -> 0.09 | O26: =IFERROR(IF(OR(Calculos!$V81="Grand total",Calculos!$W81=0),"",INDEX(Calculos!X81:'Calculos'!X$482,Calculos!$V$70)*100),"") -> 0.02
G27: =IFERROR(IF(OR(Calculos!E82="Grand total"),"",INDEX(Calculos!E82:'Calculos'!E$209,Calculos!$H$71)),"") -> Agencia Española de Cooperación Internacional para el Desarrollo | H27: =IFERROR(IF(OR(Calculos!E82="Grand total",Calculos!E82=0),"",INDEX(Calculos!F82:'Calculos'!F$209,Calculos!$H$71))*100,"") -> 4.42 | I27: =IFERROR(IF(OR(Calculos!F82="Grand total",Calculos!F82=0),"",INDEX(Calculos!G82:'Calculos'!G$209,Calculos!$H$71)*100),"") -> 0.93 | M27: =IFERROR(IF(OR(Calculos!$V82="Grand total",Calculos!$W82=0),"",INDEX(Calculos!V82:'Calculos'!V$482,Calculos!$V$70)),"") -> Alianza Global contra el Cambio Climático Plus/Centro de Cambio Climático de la Comunidad del Caribe | N27: =IFERROR(IF(OR(Calculos!$V82="Grand total",Calculos!$W82=0),"",INDEX(Calculos!W82:'Calculos'!W$482,Calculos!$V$70)*100),"") -> 0.09 | O27: =IFERROR(IF(OR(Calculos!$V82="Grand total",Calculos!$W82=0),"",INDEX(Calculos!X82:'Calculos'!X$482,Calculos!$V$70)*100),"") -> 0.78
G30: CARACTERÍSTICAS DE LA COOPERACIÓN
G67: APORTES AL DESARROLLO
A162: Elaborado por la Dirección de Análisis y Coordinación del Viceministerio de Cooperación Internacional del Ministerio de Economía, Planificación y Desarrollo de la República Dominicana.
A163: Cobertura: Los datos que alimentan este tablero provienen de la Matriz de Registro y Seguimiento SINACID que contiene un registro de programas, proyectos y acciones de cooperación internacional en seguimiento por el Viceministerio y la comunidad de cooperantes, sectoriales y entidades ejecutoras que reportan al Ministerio. Contacto: DACCI@economia.gob.do

Sheet paraSeguimiento (hidden)

Sheet Tabla resumen
C2: Ministerio de Economía, Planificación y Desarrollo (MEPyD)
C3: Viceministerio de Cooperación Internacional (VIMICI)
C4: Dirección de Análisis y Coordinación de la Cooperación Internacional (DACCI)
C5: Iniciativas de cooperación internacional
B8: Vía de canalización | C8: Nombre de la iniciativa | D8: Socios Cooperantes | E8: Objetivo general | F8: Temática principal | G8: Temática secundaria | H8: Alcance territorial | I8: Eje END | J8: Objetivo de Desarrollo Sostenible | K8: Política priorizada PNPSP | L8: Fecha de ejecución | M8: Presupuesto total DOP | N8: Monto total no reembolsable DOP | O8: Monto total reembolsable DOP | P8: Contrapartida privada DOP | Q8: Contrapartida gobierno DOP
B9: Regional | C9: Acuerdo de Cooperación CONANI-OEI | D9: Organización de Estados Iberoamericanos para la Educación, la Ciencia y la Cultura | E9: Fortalecer las capacidades institucionales del CONANI y el Sistema de protección y Derechos Fundamentales NNA | F9: Protección y asistencia social | G9: Fortalecimiento institucional | H9: Nacional | I9: 2. Una sociedad con igualdad de derechos y oportunidades | J9: 4. Educación de calidad | K9: 6. Crear oportunidades para la juventud | L9: … | M9: 711,008.40 | N9: 711,008.40 | O9: 0 | P9: 0 | Q9: 0
C10: Acuerdo de Cooperación Técnica para apoyar desarrollo de acciones prioritarias para el Sector Agropecuario, en el ámbito de la sanidad agropecuaria y la seguridad alimentaria, el comercio agropecuario internacional, el fortalecimiento de las organizaciones rurales, la gestión de conocimiento y la aplicación de las tecnologías de la información y las comunicaciones al desarrollo agrícola y rural. | D10: Instituto Interamericano de Cooperación para la Agricultura | E10: Apoyar desarrollo de acciones prioritarias para el Sector Agropecuario, en el ámbito de la sanidad agropecuaria y la seguridad alimentaria, el comercio agropecuario internacional, el fortalecimiento de las organizaciones rurales, la gestión de conocimiento y la aplicación de las tecnologías de la información y las comunicaciones al desarrollo agrícola y rural. | F10: Sector agropecuario | G10: No aplica | H10: Nacional | I10: 3. Una economía territorial y sectorialmente integrada, innovadora, diversificada, plural, orientada a la calidad y ambientalmente sostenible | J10: 2. Hambre cero | K10: 11. Población rural, desarrollo agropecuario y pesquero | L10: 4407100.00% | M10: 30,000,000.00 | N10: 30,000,000.00 | O10: 0 | P10: 0 | Q10: 0
C11: Adaptación Basada en Ecosistemas para Aumentar la Resiliencia Climática en el Corredor Seco Centroamericano y las Zonas Áridas de la República Dominicana ( GCP /SLM/010/BCI) | D11: Banco Centroamericano de Integración Económica | E11: El Programa Regional Adaptación basado en Ecosistemas para aumentar la resiliencia climática en el Corredor Seco Centroamericano y las Zonas Áridas de la República Dominicana se propone como impacto “Fortalecer la capacidad de adaptación de las personas vulnerables incluidos agricultores y agricultoras de pequeña escala y comerciales, así como empresarios en comunidades rurales en la región del corredor seco centroamericano y zonas áridas de República Dominicana (CSCAZARD)”. En cuanto a contribución de los ODS, como ya se indicó antes, el programa contribuirá a los ODS 2, 12, 13, 15 y 17. | F11: Sector agropecuario | G11: Medioambiente y cambio climático | H11: Provincial | I11: 4. Una sociedad con cultura de producción y consumo sostenibles | J11: 6. Agua limpia y saneamiento | K11: 12. El acceso al agua y mejora del recurso | L11: 4532700.00% | M11: 300,519,550.40 | N11: 300,519,550.40 | O11: 0 | P11: 0 | Q11: 0
C12: Apoyo a la Consolidación del Conocimiento y Generación de Insumos para el Fortalecimiento del Servicio Civil en la República Dominicana | D12: Banco Interamericano de Desarrollo | E12: Contribuir a mejorar la eficiencia y el desarrollo de la GRH en el servicio civil de la República Dominicana mediante la consolidación de conocimiento y generación de insumos técnicos. | F12: Fortalecimiento institucional | G12: No aplica | H12: Nacional | I12: 1. Un Estado social y democrático de derecho | J12: 16. Paz, justicia e instituciones sólidas | K12: 15. Hacia un estado moderno e institucional | L12: 4440700.00% | M12: 8,887,605.00 | N12: 8,887,605.00 | O12: 0 | P12: 0 | Q12: 0
C13: Apoyo a la creación de programas de empleabilidad inclusivos y a la transformación de las políticas de seguridad social | D13: Banco Interamericano de Desarrollo | E13: Apoyará la generación de conocimiento relevante para desarrollar guías clave para la ejecución del nuevo sistema de Empleo RD-Trabaja (a financiarse por la operación DR-L1155). | F13: Empleo | G13: Fortalecimiento institucional | H13: Nacional | I13: 2. Una sociedad con igualdad de derechos y oportunidades | J13: 8. Trabajo decente y crecimiento económico | K13: 1. Empleo formal | L13: 4480400.00% | M13: 13,923,914.50 | N13: 13,923,914.50 | O13: 0 | P13: 0 | Q13: 0
C14: Apoyo a la digitalización en República Dominicana | D14: Banco Interamericano de Desarrollo | E14: El objetivo general de esta CT es apoyar la digitalización integral de la República Dominicana mediante el desarrollo de una estrategia para implementar infraestructura de banda ancha rural e introducir un sistema de transmisión digital a nivel nacional que contribuya a mejorar la conectividad de los centros de producción rural, así como a un mejor acceso para Poblaciones rurales a servicios de salud y educación. Bajo el plan de ICT nacional llamado "Republica Digital", Republica Dominicana busca extender las redes de fibra óptica a áreas remotas y rurales. Adicionalmente, el país se ha comprometido repetidamente a realizar el cambio analógico completo (y a su vez transicional satisfactoriamente a difusión digital), en colaboración con el Banco y otros países avanzados. A través de este proyecto, esperamos proveer a Republica Dominicana una potente herramienta en como alcanzar las metas mencionadas en una manera efectiva de costo y tiempos. | F14: Fortalecimiento institucional | G14: Ciencia, tecnología, comunicación e innovación | H14: Nacional | I14: 3. Una economía territorial y sectorialmente integrada, innovadora, diversificada, plural, orientada a la calidad y ambientalmente sostenible | J14: 9. Industria, innovación e infraestructuras | K14: 17. Hacia la transformación digital | L14: 4377300.00% | M14: 35,550,420.00 | N14: 35,550,420.00 | O14: 0 | P14: 0 | Q14: 0
C15: Apoyo a la digitalización y gestión integrada de servicios de saneamiento y residuos sólidos en República Dominicana | D15: Banco Interamericano de Desarrollo | E15: Prepara las operaciones relacionadas con una gestion integrada sobre el manejo del saneamiento y los residuos solidos. | F15: Agua y saneamiento | G15: Gestión de riesgo | H15: Provincial | I15: 4. Una sociedad con cultura de producción y consumo sostenibles | J15: 6. Agua limpia y saneamiento | K15: 23. La sostenibilidad ambiental y el cambio climático en un país insular | L15: 4485800.00% | M15: 59,250,700.00 | N15: 59,250,700.00 | O15: 0 | P15: 0 | Q15: 0
C16: Apoyo a la Ejecución de la Sanidad Agropecuaria y Proyecto de Innovación | D16: Banco Interamericano de Desarrollo | E16: Es brindar asistencia técnica y operativa a los implementación del Proyecto de Sanidad e Innovación Agropecuaria. | F16: Sector agropecuario | G16: Género | H16: Nacional | I16: 3. Una economía territorial y sectorialmente integrada, innovadora, diversificada, plural, orientada a la calidad y ambientalmente sostenible | J16: 2. Hambre cero | K16: 11. Población rural, desarrollo agropecuario y pesquero | L16: 4476400.00% | M16: 11,850,140.00 | N16: 11,850,140.00 | O16: 0 | P16: 0 | Q16: 0
C17: Apoyo a la Ejecución del Programa de Sanidad e Innovación Agropecuaria | D17: Banco Interamericano de Desarrollo | E17: Apoyar el arranque y la ejecución del Programa de Sanidad e Innovación Agropecuaria (DR-L1137), a través de actividades de apoyo técnico y de fortalecimiento institucional. | F17: Sector agropecuario | G17: Fortalecimiento institucional | H17: Nacional | I17: 3. Una economía territorial y sectorialmente integrada, innovadora, diversificada, plural, orientada a la calidad y ambientalmente sostenible | J17: 2. Hambre cero | K17: 11. Población rural, desarrollo agropecuario y pesquero | L17: 4400700.00% | M17: 8,887,605.00 | N17: 8,887,605.00 | O17: 0 | P17: 0 | Q17: 0
C18: Apoyo a la Estrategia Centroamericana de Desarrollo Rural Territorial (ECADERT) Fase II | D18: Sistema de Integración Centroamericana | E18: Promover la gestión social participativa de políticas públicas territoriales incluyentes y equitativas, con los correspondientes procesos de formulación consensuada de proyectos de futuro y procesos de planeamiento e inversión orientados por una visión estratégica, para la transformación institucional, social, económica, cultural y ambiental del medio rural centroamericano, impulsada por los actores sociales e institucionales de los territorios, valorizando su identidad cultural y sus potencialidades propias para lograr el desarrollo sostenible. | F18: Desarrollo rural | G18: No aplica | H18: Provincial | I18: 2. Una sociedad con igualdad de derechos y oportunidades | J18: 11. Ciudades y comunidades sostenibles | K18: 25. Políticas públicas territoriales y municipales para el cambio | L18: 4310100.00% | M18: 26,070,308.00 | N18: 26,070,308.00 | O18: 0 | P18: 0 | Q18: 0
C19: Apoyo a la estructuración del piloto de Comunidades de Cuidado y la oferta de servicios de atención a personas en situación de dependencia | D19: Banco Interamericano de Desarrollo | E19: Esta CT apoyará el fortalecimiento de la protección social en República Dominicana (RD) en el área de cuidados, con el diseño de instrumentos que faciliten la implementación del programa piloto Comunidades de Cuidado, en los municipios piloto seleccionados. | F19: Protección y asistencia social | G19: Género | H19: Nacional | I19: 2. Una sociedad con igualdad de derechos y oportunidades | J19: 5. Igualdad de género | K19: 7. Igualdad de género, empoderamiento de la mujer y la No Violencia de género | L19: 4488700.00% | M19: 11,850,140.00 | N19: 11,850,140.00 | O19: 0 | P19: 0 | Q19: 0
C20: Apoyo a la Evaluación de los Proyectos de Reducción de Pérdidas y Fortalecimiento de la Gobernanza del Sector Eléctrico | D20: Banco Interamericano de Desarrollo | E20: Identificar áreas de mejora institucional y de gobernanza de la Corporación Dominicana de Empresas Eléctricas Estatales (CDEEE), como organismo clave de gestión del sector; ( consolidar el marco legal y regulatorio del sector eléctrico; y promover mejoras en eficiencia y sostenibilidad operativa y financiera en la distribución de energía eléctrica. | F20: Generación y suministros de energía | G20: No aplica | H20: Nacional | I20: 3. Una economía territorial y sectorialmente integrada, innovadora, diversificada, plural, orientada a la calidad y ambientalmente sostenible | J20: 7. Energía asequible y no contaminante | K20: 13. Energía permanente y de calidad | L20: 4359200.00% | M20: 23,700,280.00 | N20: 23,700,280.00 | O20: 0 | P20: 0 | Q20: 0
C21: Apoyo a la Generación de Conocimiento para la Agenda de Transparencia e Integridad en República Dominicana | D21: Banco Interamericano de Desarrollo | E21: Es contribuir con el fortalecimiento de la transparencia, la rendición de cuentas y la integridad en la gestión de los recursos públicos en República Dominicana mediante la consolidación de conocimiento y generación de insumos técnicos necesarios para el arranque e implementación de la operación DR-L1150. | F21: Fortalecimiento institucional | G21: No aplica | H21: Nacional | I21: 1. Un Estado social y democrático de derecho | J21: 16. Paz, justicia e instituciones sólidas | K21: 16. Enfrentar la corrupción y la impunidad | L21: 4471200.00% | M21: 17,775,210.00 | N21: 17,775,210.00 | O21: 0 | P21: 0 | Q21: 0
C22: Apoyo a la Implementación de la Ley de Ordenamiento Territorial | D22: Banco Interamericano de Desarrollo | E22: Esta cooperación técnica tiene como objetivo general de contribuir con el ordenamiento territorial de República Dominicana. | F22: Desarrollo urbano | G22: Fortalecimiento institucional | H22: Nacional | I22: 2. Una sociedad con igualdad de derechos y oportunidades | J22: 11. Ciudades y comunidades sostenibles | K22: 25. Políticas públicas territoriales y municipales para el cambio | L22: 4489300.00% | M22: 35,550,420.00 | N22: 35,550,420.00 | O22: 0 | P22: 0 | Q22: 0
C23: Apoyo a la Implementación del Centro de Innovación para la Educación Técnico Profesional en República Dominicana | D23: Banco de Desarrollo de América Latina | E23: Establecer el modelo de Gestión de las Oficinas Regionales de Gestión y Pasantía del Centro de Innovación e Investigación Aplicada Para la Educación Técnico-Profesional y Artes (ETPA) del Ministerio de Educación de la República Dominicana (MINERD) | F23: Educación | G23: Fortalecimiento institucional | H23: Nacional | I23: 2. Una sociedad con igualdad de derechos y oportunidades | J23: 4. Educación de calidad | K23: 5. Hacia una educación de calidad con equidad | L23: … | M23: 7,110,084.00 | N23: 5,925,070.00 | O23: 0 | P23: 0 | Q23: 1,185,014.00
C24: Apoyo a la Implementación del Programa de Eficiencia Energética de la República Dominicana | D24: Banco Interamericano de Desarrollo | E24: Apoyar al gobierno de la República Dominicana en implementación del Programa de Eficiencia Energética | F24: Generación y suministros de energía | G24: No aplica | H24: Nacional | I24: 3. Una economía territorial y sectorialmente integrada, innovadora, diversificada, plural, orientada a la calidad y ambientalmente sostenible | J24: 7. Energía asequible y no contaminante | K24: 13. Energía permanente y de calidad | L24: 4442600.00% | M24: 27,551,575.50 | N24: 27,551,575.50 | O24: 0 | P24: 0 | Q24: 0
C25: Apoyo a la implementación del Proyecto de Manejo Costero Sostenible | D25: Banco Interamericano de Desarrollo | E25: Apoyar la implementación del Programa de Gestión Costera Sostenible a través del (I) Diseño detallado de obras civiles e intervenciones y estudios sociales y ambientales en playas priorizadas una es la playa de palentque en San Cristobal y la otra será priorizada luego por el MITUR; (II) Asistencia técnica al Ministerio de Turismo, promoviendo el fortalecimiento de la capacidad institucional para la ejecución de actividades de inversión de su Departamento de Playas. | F25: Medioambiente y cambio climático | G25: No aplica | H25: Nacional | I25: 4. Una sociedad con cultura de producción y consumo sostenibles | J25: 8. Trabajo decente y crecimiento económico | K25: 18. Turismo, una oportunidad | L25: … | M25: 29,625,350.00 | N25: 29,625,350.00 | O25: 0 | P25: 0 | Q25: 0
C26: Apoyo a la Implementación e Innovación del Plan Nacional de Logística de República Dominicana | D26: Banco Interamericano de Desarrollo | E26: Contribuir al fortalecimiento del Sistema Nacional Logístico de República Dominicana (RD), a través de la implementación del Plan de Acciones Inmediatas (PAI) priorizado por el Plan Nacional Logístico de cargas-PNLog. | F26: Transporte | G26: Fortalecimiento institucional | H26: Nacional | I26: 3. Una economía territorial y sectorialmente integrada, innovadora, diversificada, plural, orientada a la calidad y ambientalmente sostenible | J26: 8. Trabajo decente y crecimiento económico | K26: 26. La transformación del sector transporte | L26: 4361500.00% | M26: 17,775,210.00 | N26: 14,812,675.00 | O26: 0 | P26: 0 | Q26: 2,962,535.00
C27: Apoyo a la Implementación piloto de modelo innovador de gestión integral de servicios para mujeres vulnerables en República Dominicana | D27: Banco Interamericano de Desarrollo | E27: Apoyar al GCPS, bajo el contexto del préstamo DR-L1080 “Ciudad Mujer”, en la implementación de un modelo innovador de atención y gestión integral de servicios para mujeres vulnerables que sea efectivo, eficiente, sostenible y escalable. | F27: Género | G27: No aplica | H27: Provincial | I27: 2. Una sociedad con igualdad de derechos y oportunidades | J27: 5. Igualdad de género | K27: 7. Igualdad de género, empoderamiento de la mujer y la No Violencia de género | L27: 4490600.00% | M27: 14,812,675.00 | N27: 14,812,675.00 | O27: 0 | P27: 0 | Q27: 0
C28: Apoyo a la investigación criminal | D28: Sistema de Integración Centroamericana & Unión Europea | E28: Aumentar la eficacia de la justicia penal en la persecución de la delincuencia organizada y el tráfico de drogas a nivel internacional, a través de acciones como: la mejora de las capacidades de las unidades de investigación e institutos forenses y de las redes regionales, desarrollo de operaciones e investigaciones regionales conjuntas contra la delincuencia internacional que contribuyan al desmantelamiento de las estructuras delictivas regionales, entre algunos de los resultados que se esperan en el marco del proyecto. | F28: Justicia | G28: Seguridad ciudadana | H28: Nacional | I28: 1. Un Estado social y democrático de derecho | J28: 16. Paz, justicia e instituciones sólidas | K28: 2. Seguridad ciudadana | L28: 4346600.00% | M28: 1,406,541,109.67 | N28: 1,406,541,109.67 | O28: 0 | P28: 0 | Q28: 0
C29: Apoyo a la Mejora de la Productividad y Formalización en República Dominicana II | D29: Banco Interamericano de Desarrollo | E29: Apoyar el diseño e implementación de las reformas de política contempladas en el marco de Formalización y Productividad Programa de Mejoramiento en República Dominicana II (DR-L1121) | F29: MIPYMES | G29: Fortalecimiento institucional | H29: Nacional | I29: 3. Una economía territorial y sectorialmente integrada, innovadora, diversificada, plural, orientada a la calidad y ambientalmente sostenible | J29: 8. Trabajo decente y crecimiento económico | K29: 22. Promoción de las Mipymes | L29: 4333900.00% | M29: 29,625,350.00 | N29: 29,625,350.00 | O29: 0 | P29: 0 | Q29: 0
C30: Apoyo a la puesta en marcha de la Politica Nacional de Innovación | D30: Banco Interamericano de Desarrollo | E30: Contribuir con la consolidación de capacidades en el Gobierno de Republica Dominicana y sus instituciones públicas encargadas de diseñar e implementar políticas para la promoción de la innovación, a fin de incrementar la productividad y competitividad. | F30: Ciencia, tecnología, comunicación e innovación | G30: No aplica | H30: Nacional | I30: 3. Una economía territorial y sectorialmente integrada, innovadora, diversificada, plural, orientada a la calidad y ambientalmente sostenible | J30: 9. Industria, innovación e infraestructuras | K30: 8. Transformando la educación superior, la ciencia y la tecnología | L30: 4485300.00% | M30: 11,850,140.00 | N30: 11,850,140.00 | O30: 0 | P30: 0 | Q30: 0
C31: Apoyo a la Realización de una Encuesta sobre uso del Tiempo | D31: Banco Interamericano de Desarrollo | E31: Compartir el conocimiento de las entidades de la Alianza para desarrollar conjuntamente herramientas de transformación digital y de promoción de la economía circular que respondan a las necesidades de las mipymes para lograr una mayor competitividad, con un enfoque orientado a la producción responsable y al cuidado del medioambiente | F31: Género | G31: Empleo | H31: Nacional | I31: 2. Una sociedad con igualdad de derechos y oportunidades | J31: 5. Igualdad de género | K31: 7. Igualdad de género, empoderamiento de la mujer y la No Violencia de género | L31: 4442000.00% | M31: 5,925,070.00 | N31: 5,925,070.00 | O31: 0 | P31: 0 | Q31: 0
C32: Apoyo a la recuperación con transformación en el mercado laboral de RD | D32: Banco Interamericano de Desarrollo | E32: Mejorar la eficiencia y eficacia del trabajo de intermediación (SIL) en el MT y su articulación con la formación laboral instituciones (IFL) de la República Dominicana; aprovechando las nuevas tecnologías para impulsar la transformación digital. | F32: Empleo | G32: Ciencia, tecnología, comunicación e innovación | H32: Nacional | I32: 1. Un Estado social y democrático de derecho | J32: 8. Trabajo decente y crecimiento económico | K32: 1. Empleo formal | L32: 4429600.00% | M32: 7,406,337.50 | N32: 7,406,337.50 | O32: 0 | P32: 0 | Q32: 0
C33: Apoyo al desarrollo del Programa de Reformas de Movilidad, Transporte terrestre y Seguridad Vial en República Dominicana | D33: Banco Interamericano de Desarrollo | E33: Materialización de los instrumentos legales e institucionales que soportan las reformas del sector, a través de la consolidación de una estructura jurídica y de planeación que introduzca la adopción de una visión de largo plazo | F33: Transporte | G33: Fortalecimiento institucional | H33: Nacional | I33: 3. Una economía territorial y sectorialmente integrada, innovadora, diversificada, plural, orientada a la calidad y ambientalmente sostenible | J33: 11. Ciudades y comunidades sostenibles | K33: 26. La transformación del sector transporte | L33: 4450600.00% | M33: 17,775,210.00 | N33: 17,775,210.00 | O33: 0 | P33: 0 | Q33: 0
C34: Apoyo al Diálogo e Investigación en Educación y en el Desarrollo de Habilidades de los Jóvenes | D34: Banco Interamericano de Desarrollo | E34: Mejorar la oferta y calidad del sistema educativo, incluyendo el apoyo al diálogo y el monitoreo y evaluación de las operaciones financiadas | F34: Educación | G34: Fortalecimiento institucional | H34: Municipal | I34: 2. Una sociedad con igualdad de derechos y oportunidades | J34: 4. Educación de calidad | K34: 5. Hacia una educación de calidad con equidad | L34: 4356100.00% | M34: 11,850,140.00 | N34: 11,850,140.00 | O34: 0 | P34: 0 | Q34: 0
C35: Apoyo al diseño e implementación del Programa de Fortalecimiento del Ecosistema de Prevención y Atención de la Violencia contra la Mujer en República Dominicana | D35: Banco Interamericano de Desarrollo | E35: El objetivo general de la CT es apoyar al Ministerio de la Mujer en la implementación de un modelo de prevención, protección y reparación integral de la violencia contra la mujer, que sea efectivo, eficiente y sostenible. | F35: Género | G35: No aplica | H35: Nacional | I35: 2. Una sociedad con igualdad de derechos y oportunidades | J35: 5. Igualdad de género | K35: 7. Igualdad de género, empoderamiento de la mujer y la No Violencia de género | L35: 4507800.00% | M35: 17,775,210.00 | N35: 17,775,210.00 | O35: 0 | P35: 0 | Q35: 0
C36: Apoyo al Fortalecimiento de la Protección Social en República Dominicana | D36: Banco Interamericano de Desarrollo | E36: N/D | F36: Protección y asistencia social | G36: Fortalecimiento institucional | H36: Nacional | I36: 2. Una sociedad con igualdad de derechos y oportunidades | J36: 1. Fin de la pobreza | K36: 3. Hacia una política integral de creación de oportunidades | L36: 4440000.00% | M36: 23,700,280.00 | N36: 23,700,280.00 | O36: 0 | P36: 0 | Q36: 0
C37: Apoyo al Ministerio de Medio Ambiente y Recursos Naturales en la preparación de los estudios de la Propuesta Completa del proyecto “Habilitando la competitividad de Republica Dominicana a través de la sostenibilidad ambiental y la resiliencia climática desde el Turismo (TUUVE)” para presentarse al Fondo Adaptación | D37: Banco de Desarrollo de América Latina | E37: Apoyar al Ministerio de Medio Ambiente y Recursos Naturales de República Dominicana en estructurar el Proyecto “Habilitando la competitividad de Republica Dominicana a través de la sostenibilidad ambiental y la resiliencia climática desde el Turismo (TUUVE)” para ser presentado al Fondo de Adaptación y catalizar una cooperación técnica no reembolsable de hasta USD 10 MM. | F37: Medioambiente y cambio climático | G37: Turismo | H37: Nacional | I37: 4. Una sociedad con cultura de producción y consumo sostenibles | J37: 13. Acción por el clima | K37: 23. La sostenibilidad ambiental y el cambio climático en un país insular | L37: 4495100.00% | M37: 8,146,971.25 | N37: 6,517,577.00 | O37: 0 | P37: 0 | Q37: 1,629,394.25
C38: Apoyo al reposicionamiento de República Dominicana en las cadenas globales de valor | D38: Banco Interamericano de Desarrollo | E38: Esta CT tiene como objetivo la preparación de las condiciones para la implementación y la ejecución del Programa de Apoyo al Reposicionamiento de República Dominicana (RD) en Cadenas Globales de Valor (CGV) a través del Fortalecimiento del Capital Humano, la Innovación y el Clima de Negocios (DR-L1153). | F38: Comercio | G38: Fortalecimiento institucional | H38: Nacional | I38: 3. Una economía territorial y sectorialmente integrada, innovadora, diversificada, plural, orientada a la calidad y ambientalmente sostenible | J38: 8. Trabajo decente y crecimiento económico | K38: 20. El comercio, una actividad importante | L38: 4486100.00% | M38: 17,775,210.00 | N38: 17,775,210.00 | O38: 0 | P38: 0 | Q38: 0
C39: Apoyo al tercer tramo del Programa de Sostenibilidad y Eficiencia del Sector Eléctrico | D39: Banco Interamericano de Desarrollo | E39: Apoyar la sostenibilidad financiera en la distribución de energía eléctrica, definiendo un marco de tarifas y subsidios que contribuya a la mejora de la eficiencia operativa de las empresas y proteja el poder adquisitivo del grupo de usuarios más vulnerable. | F39: Generación y suministros de energía | G39: Fortalecimiento institucional | H39: Nacional | I39: 3. Una economía territorial y sectorialmente integrada, innovadora, diversificada, plural, orientada a la calidad y ambientalmente sostenible | J39: 7. Energía asequible y no contaminante | K39: 13. Energía permanente y de calidad | L39: 4446000.00% | M39: 17,775,210.00 | N39: 17,775,210.00 | O39: 0 | P39: 0 | Q39: 0
C40: Apoyo en la Implementación de un Sistema Interoperable de Recaudo Electrónico para la República Dominicana | D40: Banco Interamericano de Desarrollo | E40: El objetivo de la CT es contribuir al fortalecimiento y consolidación del Sistema Integrado de Transporte Público de la República Dominicana (RD), a través del diseño e implementación de un Sistema Interoperable de Recaudo Electrónico. | F40: Transporte | G40: Fortalecimiento institucional | H40: Nacional | I40: 3. Una economía territorial y sectorialmente integrada, innovadora, diversificada, plural, orientada a la calidad y ambientalmente sostenible | J40: 11. Ciudades y comunidades sostenibles | K40: 26. La transformación del sector transporte | L40: 4373100.00% | M40: 19,848,984.50 | N40: 16,886,449.50 | O40: 0 | P40: 0 | Q40: 2,962,535.00
C41: Apoyo para el Fortalecimiento de la Política Tributaria y la Mejora de la Calidad del Gasto Público | D41: Banco Interamericano de Desarrollo | E41: Apoyar los esfuerzos del gobierno de la República Dominicana para mejorar sus impuestos políticas y mejorar la calidad del gasto público. | F41: Fortalecimiento institucional | G41: No aplica | H41: Nacional | I41: 1. Un Estado social y democrático de derecho | J41: 16. Paz, justicia e instituciones sólidas | K41: 15. Hacia un estado moderno e institucional | L41: 4438600.00% | M41: 10,961,379.50 | N41: 10,961,379.50 | O41: 0 | P41: 0 | Q41: 0
C42: Apoyo para la atención de los daños ocasionados por lluvias asociadas a disturbio tropical #22 en la República Dominicana | D42: Banco Centroamericano de Integración Económica | E42: Apoyar los esfuerzos para atender los efectos del disturbio tropical No. 22 en la República Dominicana. | F42: Gestión de riesgo | G42: No aplica | H42: Nacional | I42: 4. Una sociedad con cultura de producción y consumo sostenibles | J42: 13. Acción por el clima | K42: 23. La sostenibilidad ambiental y el cambio climático en un país insular | L42: 4528100.00% | M42: 29,625,350.00 | N42: 29,625,350.00 | O42: 0 | P42: 0 | Q42: 0
C43: Apoyo para la implementación de la Rehabilitación y Ampliación del Puerto de Manzanillo | D43: Banco Interamericano de Desarrollo | E43: El objetivo de la CT es contribuir al mejoramiento de la competitividad y el crecimiento socioeconómico de la zona norte de la República Dominicana (RD), a través de apoyo para la provisión de infraestructura portuaria y logística para el Puerto de Manzanillo, y sus vías de comunicación, mediante el desarrollo de estudios de preinversión y capacitación técnica necesaria para la ejecución del programa DR-L1141. | F43: Comercio | G43: Transporte | H43: Provincial | I43: 3. Una economía territorial y sectorialmente integrada, innovadora, diversificada, plural, orientada a la calidad y ambientalmente sostenible | J43: 8. Trabajo decente y crecimiento económico | K43: 20. El comercio, una actividad importante | L43: 4468700.00% | M43: 12,738,900.50 | N43: 12,738,900.50 | O43: 0 | P43: 0 | Q43: 0
C44: Apoyo Técnico para la Reforma Integral del Sector Vivienda y Urbanismo en República Dominicana | D44: Banco Interamericano de Desarrollo | E44: Apoyar al Gobierno de República Dominicana en la reforma del sector vivienda y desarrollo urbano y proponer soluciones de viviendas más accesibles y verdes. | F44: Vivienda y servicios comunitarios | G44: Fortalecimiento institucional | H44: Nacional | I44: 2. Una sociedad con igualdad de derechos y oportunidades | J44: 11. Ciudades y comunidades sostenibles | K44: 14. Vivienda digna y adecuada, derecho fundamental del ser humano | L44: 4438700.00% | M44: 17,775,210.00 | N44: 17,775,210.00 | O44: 0 | P44: 0 | Q44: 0
C45: Asistencia Técnica para la programación estratégica en Centroamérica | D45: Sistema de Integración Centroamericana & Unión Europea | E45: Fortalecer las capacidades del monitoreo de políticas regionales, potenciar el aprovechamiento del AdA y transitar hacia una comunicación más estratégica de los impactos del asocio UE-SICA. | F45: Relaciones internacionales | G45: Fortalecimiento institucional | H45: Nacional | I45: 1. Un Estado social y democrático de derecho | J45: 17. Alianzas para lograr los objetivos | K45: 27. La política exterior en el Gobierno del Cambio | L45: 4310100.00% | M45: 337,111,301.45 | N45: 337,111,301.45 | O45: 0 | P45: 0 | Q45: 0
C46: Asistencia Técnica para realización de Encuesta Nacional de Uso del Tiempo 2023 | D46: Banco Interamericano de Desarrollo | E46: Apoyar a la República Dominicana en la realización de una encuesta experimental piloto sobre uso del tiempo y así contribuir a fortalecer la capacidad de la Oficina Nacional de Estadística para generar información estadística con perspectiva de género, visibilizar las brechas y la importancia de la producción doméstica y su contribución a la economía y conocer la situación de bienestar de las personas a partir de las horas asignadas al trabajo y al tiempo libre. | F46: Fortalecimiento institucional | G46: Género | H46: Nacional | I46: 1. Un Estado social y democrático de derecho | J46: 16. Paz, justicia e instituciones sólidas | K46: 30. Gestión de datos | L46: 4454000.00% | M46: 5,925,070.00 | N46: 5,925,070.00 | O46: 0 | P46: 0 | Q46: 0
C47: Asistencia técnica sobre el fortalecimiento de la infraestructura geodésica de República Dominicana | D47: Banco Interamericano de Desarrollo | E47: BID procura reclutar un consultor para apoyar el IGN-JJHM en el diseño de un plan de implementación de una infraestructura geodésica nacional respondiendo a las necesidades de gestión pública y del sector privado, en relación con su iniciativa de modernización y fortalecimiento institucional de la infraestructura de datos geográficos. | F47: Fortalecimiento institucional | G47: No aplica | H47: Nacional | I47: 1. Un Estado social y democrático de derecho | J47: 16. Paz, justicia e instituciones sólidas | K47: 15. Hacia un estado moderno e institucional | L47: 4425700.00% | M47: 888,760.50 | N47: 888,760.50 | O47: 0 | P47: 0 | Q47: 0
C48: Atención a la emergencia causada por el huracán Fiona | D48: Banco Interamericano de Desarrollo | E48: Asistir a la República Dominicana en la ejecución de las acciones de atención de emergencia en las provincias afectadas: La Altagracia, El Seibo, Hato Mayor, La Romana, Duarte, Samaná, María Trinidad Sánchez y Monte Plata. | F48: Salud y seguridad social | G48: No aplica | H48: Provincial | I48: 2. Una sociedad con igualdad de derechos y oportunidades | J48: 3. Salud y bienestar | K48: 4.1. Acceso a salud universal: enfoque salud | L48: 4486600.00% | M48: 11,850,140.00 | N48: 11,850,140.00 | O48: 0 | P48: 0 | Q48: 0
C49: Atención a la emergencia causada por la explosión en San Cristóbal. | D49: Banco Centroamericano de Integración Económica | E49: Apoyar a la República Dominicana para contrarrestar los efectos de la explosión e incendios ocurridos en la ciudad de San Cristóbal. | F49: Salud y seguridad social | G49: No aplica | H49: Provincial | I49: 2. Una sociedad con igualdad de derechos y oportunidades | J49: 3. Salud y bienestar | K49: 4.1. Acceso a salud universal: enfoque salud | L49: … | M49: 29,625,350.00 | N49: 29,625,350.00 | O49: 0 | P49: 0 | Q49: 0
C50: Ayuda de emergencia para combatir los efectos del huracán Fiona en la República Dominicana | D50: Banco Centroamericano de Integración Económica | E50: Combatir los efectos del Huracán Fiona en la República Dominicana | F50: Protección y asistencia social | G50: No aplica | H50: Nacional | I50: No alineado | J50: No alineado | K50: No alineado | L50: … | M50: 59,250,700.00 | N50: 59,250,700.00 | O50: 0 | P50: 0 | Q50: 0
C51: Ayuda Humanitaria a los Hospitales de la República Dominicana para hacer Frente a la Situación Generada por El Huracán Fiona | D51: Banco de Desarrollo de América Latina | E51: Apoyar las acciones del gobierno dominicano para contrarrestar los efectos ocasionados por el huracán Fiona en los hospitales de los sectores con población de mayor vulnerabilidad. | F51: Salud y seguridad social | G51: Protección y asistencia social | H51: Regional | I51: 2. Una sociedad con igualdad de derechos y oportunidades | J51: 3. Salud y bienestar | K51: 4.1. Acceso a salud universal: enfoque salud | L51: 4508200.00% | M51: 14,812,675.00 | N51: 14,812,675.00 | O51: 0 | P51: 0 | Q51: 0
C52: Ayuda Humanitaria para mitigar las afectaciones por las inundaciones en República Dominicana | D52: Banco de Desarrollo de América Latina | E52: Contribuir con las acciones del gobiemo de República Dominicana para contrarrestar los efectos ocasionados por las inundaciones ocurridas en el pais. | F52: Gestión de riesgo | G52: Protección y asistencia social | H52: Nacional | I52: 4. Una sociedad con cultura de producción y consumo sostenibles | J52: No alineado | K52: 23. La sostenibilidad ambiental y el cambio climático en un país insular | L52: 4540000.00% | M52: 14,812,675.00 | N52: 14,812,675.00 | O52: 0 | P52: 0 | Q52: 0
C53: CANEF República Dominicana Fase 1: Apoyo Integral al Sector Extractivo | D53: Banco Interamericano de Desarrollo | E53: El objetivo de esta cooperación técnica es apoyar el desarrollo responsable y sostenible del sector extractivo de la República Dominicana, tanto en minería como en hidrocarburos, en el contexto de tres principales metas: (i) fortalecer las instituciones que regulan y dirigen el sector; (ii) fomentar la vinculación de la producción local en los encadenamientos productivos para aprovechar el potencial del sector para promover el desarrollo económico; y (iii) promover la equidad de género en los beneficios económicos y la gobernanza del sector extractivo. | F53: Minería | G53: Fortalecimiento institucional | H53: Nacional | I53: 3. Una economía territorial y sectorialmente integrada, innovadora, diversificada, plural, orientada a la calidad y ambientalmente sostenible | J53: 7. Energía asequible y no contaminante | K53: 19. Hacia una minería responsable | L53: 4283500.00% | M53: 23,700,280.00 | N53: 23,700,280.00 | O53: 0 | P53: 0 | Q53: 0
C54: Ciudadanía Global para el Desarrollo Sostenible | D54: Secretaría General Iberoamericana | E54: Contribuir a la concienciación de los ciudadanos y ciudadanas de Iberoamérica sobre su rol en el desarrollo sostenible y sobre el valor de la cooperación internacional para la implementación de los ODS a escala global | F54: Fortalecimiento institucional | G54: No aplica | H54: Nacional | I54: 1. Un Estado social y democrático de derecho | J54: 17. Alianzas para lograr los objetivos | K54: 15. Hacia un estado moderno e institucional | L54: 4434800.00% | M54: 13,044,512.80 | N54: 13,044,512.80 | O54: 0 | P54: 0 | Q54: 0
C55: Conectividad Comercial Caribe | D55: Banco Centroamericano de Integración Económica | E55: Promocionar e informar sobre las exportaciones de las MiPymes hacia el mercado del Caribe/Difundir las iniciativas existentes en torno a la temática/Identificar retos y brechas que tienen las MiPymes de Republica Dominicana de cara a las exportaciones en el mercado del caribe. | F55: Fortalecimiento institucional | G55: No aplica | H55: Nacional | I55: No alineado | J55: No alineado | K55: No alineado | L55: 4524500.00% | M55: 1,185,014.00 | N55: 1,185,014.00 | O55: 0 | P55: 0 | Q55: 0
C56: Construcción de Infraestructuras en el Santuario Mamíferos Marinos de Estero Hondo. | D56: Fondo para la Biodiversidad Caribeña | E56: Generar impactos positivos en el bienestar social ambiental y mejorar las instalaciones para la preservación y concienciación de los manatíes y otros mamíferos marinos procurando que la infraestructura sea un hito ambiental y arquitectónico para la zona de Estero Hondo, Puerto Plata. | F56: Medioambiente y cambio climático | G56: No aplica | H56: Local | I56: 4. Una sociedad con cultura de producción y consumo sostenibles | J56: 14. Vida submarina | K56: 23. La sostenibilidad ambiental y el cambio climático en un país insular | L56: 4376300.00% | M56: 14,682,622.47 | N56: 10,707,622.47 | O56: 0 | P56: 0 | Q56: 3,975,000.00
C57: Construcción del Cuartel Militar del CESFRONT, torres de vigilancia y viviendas para militares en el Municipio de Pedernales, Provincia Pedernales | D57: Banco Centroamericano de Integración Económica | E57: Asegurar la debida coordinación y articulación entre las instituciones especializadas, organismos comunitarios y población en general, en el diseño y ejecución de las políticas de prevención, vigilancia y persecución del delito, el crimen y la violencia ciudadana, incluyendo la violencia de género y contra niños, niñas y adolescentes, con el propósito de lograr la construcción de comunidades seguras. | F57: Seguridad ciudadana | G57: No aplica | H57: Provincial | I57: 1. Un Estado social y democrático de derecho | J57: 16. Paz, justicia e instituciones sólidas | K57: 2. Seguridad ciudadana | L57: 4482000.00% | M57: 29,625,350.00 | N57: 29,625,350.00 | O57: 0 | P57: 0 | Q57: 0
C58: Consultoría para la revisión legal y técnica de los reglamentos mineros de la República Dominicana. | D58: Banco Interamericano de Desarrollo | E58: Revisión técnica del anteproyecto de ley de minería y presentación de propuestas de reglamentos mineros que deberán formar parte de la reforma legal. | F58: Minería | G58: No aplica | H58: Nacional | I58: 3. Una economía territorial y sectorialmente integrada, innovadora, diversificada, plural, orientada a la calidad y ambientalmente sostenible | J58: No alineado | K58: 19. Hacia una minería responsable | L58: 4462100.00% | M58: 0 | N58: 0 | O58: 0 | P58: 0 | Q58: 0
C59: Convenio de Cooperación Financiera no Reembolsable para la implementación del Programa de Becas Bicentenario | D59: Banco Centroamericano de Integración Económica | E59: Contribuir al bienestar social y a mejorar el acceso a la educación secundaria para la población dominicana, proveyendo las herramientas académicas necesarias para que puedan optar por mejores oportunidades laborales y por consiguiente una mejor calidad de vida. | F59: Educación | G59: No aplica | H59: Nacional | I59: 2. Una sociedad con igualdad de derechos y oportunidades | J59: 4. Educación de calidad | K59: 5. Hacia una educación de calidad con equidad | L59: 4518700.00% | M59: 37,031,687.50 | N59: 37,031,687.50 | O59: 0 | P59: 0 | Q59: 0
C60: Cooperación Técnica de Apoyo al proceso de Integración Profunda Triángulo Norte de Centroamérica | D60: Sistema de Integración Centroamericana & Banco Interamericano de Desarrollo | E60: Apoyar la implementación de la Unión Aduanera Honduras Guatemala y el proceso de adhesión de El Salvador, mediante asistencia técnica en materia aduanera, fiscal y de facilitación comercial para la integración y el aprovechamiento del comercio en el Triángulo Norte. Así mismo se apoyará el cumplimiento de los estándares de Gestión Coordinada de Fronteras, la Estrategia Centroamericana de Facilitación de Comercio y los lineamientos del Acuerdo de Facilitación del Comercio de la OMC. | F60: Comercio | G60: Relaciones internacionales | H60: Nacional | I60: 3. Una economía territorial y sectorialmente integrada, innovadora, diversificada, plural, orientada a la calidad y ambientalmente sostenible | J60: 17. Alianzas para lograr los objetivos | K60: 20. El comercio, una actividad importante | L60: 4346600.00% | M60: 23,700,280.00 | N60: 23,700,280.00 | O60: 0 | P60: 0 | Q60: 0
C61: Cooperación Técnica DR-T1227 1/Apoyo al Fortalecimiento de la Asistencia Social Adaptativa | D61: Banco Interamericano de Desarrollo | E61: Fortalecer la institucionalidad del SIUBEN. | F61: Protección y asistencia social | G61: Fortalecimiento institucional | H61: Nacional | I61: 2. Una sociedad con igualdad de derechos y oportunidades | J61: 16. Paz, justicia e instituciones sólidas | K61: 3. Hacia una política integral de creación de oportunidades | L61: … | M61: 11,257,633.00 | N61: 11,257,633.00 | O61: 0 | P61: 0 | Q61: 0
C62: Cooperación técnica no reembolsable No. ATN/OC-19173-DR Diseño Técnico y Operativo del Proyecto de Gestión Costera Sostenible (DRT1238). | D62: Banco Interamericano de Desarrollo | E62: Apoyar el diseño técnico y operativo del Proyecto de Gestión Costera Sostenible (DR-L1154) | F62: Medioambiente y cambio climático | G62: Turismo | H62: Nacional | I62: 4. Una sociedad con cultura de producción y consumo sostenibles | J62: 13. Acción por el clima | K62: 23. La sostenibilidad ambiental y el cambio climático en un país insular | L62: 4462000.00% | M62: 29,625,350.00 | N62: 29,625,350.00 | O62: 0 | P62: 0 | Q62: 0
C63: Curso de Mediación Intercultural | D63: Organización de Estados Iberoamericanos para la Educación, la Ciencia y la Cultura | E63: Es un curso de especialización, que pretende aportar los conocimientos y metodologías, para fomentar; desde el trabajo en el ámbito cultural, la resolución de conflictos y la dinamización sociocultural, con énfasis en la promoción de la diversidad como una oportunidad de convivencia positiva. | F63: Arte y cultura | G63: No aplica | H63: Nacional | I63: 2. Una sociedad con igualdad de derechos y oportunidades | J63: 17. Alianzas para lograr los objetivos | K63: 9. Cultura para el cambio | L63: 4440000.00% | M63: 0 | N63: 0 | O63: 0 | P63: 0 | Q63: 0
C64: Desarrollo de capacidades en manejo y conservación integral de la biodiversidad en la Región del SICA, de 2019-2024 | D64: Sistema de Integración Centroamericana & Agencia de Cooperación Internacional de Japón | E64: Optimizar los beneficios económicos, ecológicos y sociales con base en la restauración de ecosistemas degradados, a través de prácticas de uso y manejo sostenible del capital natural. Apoyar las iniciativas en comunidades que habitan en áreas prioritarias de diversidad biológica y cuya subsistencia está vinculada estrechamente al uso y manejo de la tierra en el CBM. | F64: Medioambiente y cambio climático | G64: Sector agropecuario | H64: Nacional | I64: 4. Una sociedad con cultura de producción y consumo sostenibles | J64: 15. Vida de ecosistemas terrestres | K64: 23. La sostenibilidad ambiental y el cambio climático en un país insular | L64: 4346600.00% | M64: 15,405,182.00 | N64: 15,405,182.00 | O64: 0 | P64: 0 | Q64: 0
C65: Desarrollo de Capacidades para una Mejor Penetración de Mercados de Financiamiento de Eficiencia Energética y Energía Renovable | D65: Banco Interamericano de Desarrollo | E65: Apoyar a la Fundación Reservas en su fortalecimiento y preparación institucional para ofertar una gama de productos e instrumentos de segundo piso que promuevan el financiamiento de inversiones privadas en EE y ER por parte de las MIPYME. | F65: Generación y suministros de energía | G65: Sector financiero | H65: Nacional | I65: 3. Una economía territorial y sectorialmente integrada, innovadora, diversificada, plural, orientada a la calidad y ambientalmente sostenible | J65: 7. Energía asequible y no contaminante | K65: 13. Energía permanente y de calidad | L65: 4338500.00% | M65: 13,035,154.00 | N65: 11,850,140.00 | O65: 0 | P65: 0 | Q65: 1,185,014.00
C66: Desarrollo de Producto Turístico - Circuitos Turísticos para el Parque Nacional Lago Enriquillo e Isla Cabritos y Entornos | D66: Banco de Desarrollo de América Latina | E66: Apoyar al Ministerio de Turismo a desarrollar un producto turístico diferenciado en la Región Suroeste basado en la conservación y puesta en valor del Parque Nacional Lago Enriquillo e Isla Cabritos y las comunidades aledañas a través del reconocimiento y fortalecimiento de sus recursos naturales, sociales y culturales | F66: Turismo | G66: Medioambiente y cambio climático | H66: Provincial | I66: 3. Una economía territorial y sectorialmente integrada, innovadora, diversificada, plural, orientada a la calidad y ambientalmente sostenible | J66: 8. Trabajo decente y crecimiento económico | K66: 18. Turismo, una oportunidad | L66: 4548400.00% | M66: 9,776,365.50 | N66: 7,702,591.00 | O66: 0 | P66: 0 | Q66: 2,073,774.50
C67: Desarrollo de un Mecanismo de Preferencias para el Acceso a Mercados de Productos Agrícolas Producidos de Manera Sostenible | D67: Banco Interamericano de Desarrollo | E67: Establecer una alternativa de comercialización para la agricultura climáticamente inteligente, a través del desarrollo de criterios de transacción preferenciales para rubros agrícolas producidos de manera amigable al medio ambiente, cuyo resultado permita promover un cambio de conducta en los productores que utilizan métodos de producción | F67: Sector agropecuario | G67: Medioambiente y cambio climático | H67: Nacional | I67: 3. Una economía territorial y sectorialmente integrada, innovadora, diversificada, plural, orientada a la calidad y ambientalmente sostenible | J67: 2. Hambre cero | K67: 11. Población rural, desarrollo agropecuario y pesquero | L67: … | M67: 58,968,725.92 | N67: 27,656,745.49 | O67: 0 | P67: 0 | Q67: 31,311,980.43
C68: Desarrollo Sostenible del Sector Pesquero en la Región del Gran Caribe | D68: Banco Interamericano de Desarrollo | E68: Contribuir al desarrollo de planes de negocios pesqueros sostenibles para los sectores de pesca artesanal en Surinam y República Dominicana. Esto se logrará identificando oportunidades para el progreso económico de las comunidades pesqueras artesanales vinculadas a nuevos enfoques para fomentar prácticas pesqueras sostenibles y la participación del sector privado. La CT también brindará recomendaciones para fortalecer el marco regulatorio e institucional pesquero en ambos países y promoverá el diálogo y la difusión de conocimientos en el sector mencionado. | F68: Sector agropecuario | G68: Medioambiente y cambio climático | H68: Nacional | I68: 3. Una economía territorial y sectorialmente integrada, innovadora, diversificada, plural, orientada a la calidad y ambientalmente sostenible | J68: 14. Vida submarina | K68: 11. Población rural, desarrollo agropecuario y pesquero | L68: … | M68: 45,623,039.00 | N68: 45,623,039.00 | O68: 0 | P68: 0 | Q68: 0
C69: Descarbonización del Sector Infraestructura y Apoyo a Países con el Acuerdo de Paris (RG-T4072) | D69: Banco Interamericano de Desarrollo | E69: Apoyar la generación de información y datos que permita fortalecer las capacidades técnicas de agencias y entes gubernamentales para la planificación de sistemas de infraestructura sostenible (agua y saneamiento, energía y transporte) bajo en emisiones de gases efecto invernadero en las ciudades beneficiarias. | F69: Transporte | G69: No aplica | H69: Nacional | I69: 4. Una sociedad con cultura de producción y consumo sostenibles | J69: 13. Acción por el clima | K69: 23. La sostenibilidad ambiental y el cambio climático en un país insular | L69: … | M69: 29,625,350.00 | N69: 29,625,350.00 | O69: 0 | P69: 0 | Q69: 0
C70: Digitalización para el Apoyo al Desarrollo Socioeconómico Inclusión en Tiempos de COVID-19 | D70: Banco Interamericano de Desarrollo | E70: Elaboración del proyecto Piloto de asistencia técnica especializada para diez empresas de manufactura local | F70: Industria | G70: Ciencia, tecnología, comunicación e innovación | H70: Nacional | I70: 3. Una economía territorial y sectorialmente integrada, innovadora, diversificada, plural, orientada a la calidad y ambientalmente sostenible | J70: 8. Trabajo decente y crecimiento económico | K70: 22. Promoción de las Mipymes | L70: … | M70: 7,110,084.00 | N70: 7,110,084.00 | O70: 0 | P70: 0 | Q70: 0
C71: Dinamizando los Ecosistema de Innovación en América Latina mediante la Compra Pública de Innovación (RG-T4547) | D71: Banco Interamericano de Desarrollo | E71: Desplegar políticas y prácticas de adquisiciones públicas que promuevan la interacción con el ecosistema de emprendimiento e innovación de la región. | F71: Ciencia, tecnología, comunicación e innovación | G71: No aplica | H71: Nacional | I71: 3. Una economía territorial y sectorialmente integrada, innovadora, diversificada, plural, orientada a la calidad y ambientalmente sostenible | J71: 12. Producción y consumo responsables | K71: 15. Hacia un estado moderno e institucional | L71: 4547400.00% | M71: 30,810,364.00 | N71: 27,255,322.00 | O71: 0 | P71: 0 | Q71: 3,555,042.00
C72: Diseño Final de la Ampliación y Mejora de los Sistemas de Recolección y Tratamiento de Aguas Residuales del Municipio San Juan de la Maguana | D72: Banco de Desarrollo de América Latina | E72: Desarrollar los diseños finales para rehabilitar y ampliar los sistemas de tratamiento de aguas residuales del Municipio San Juan de la Maguana | F72: Agua y saneamiento | G72: No aplica | H72: Municipal | I72: 2. Una sociedad con igualdad de derechos y oportunidades | J72: 6. Agua limpia y saneamiento | K72: 12. El acceso al agua y mejora del recurso | L72: 4520000.00% | M72: 39,105,462.00 | N72: 39,105,462.00 | O72: 0 | P72: 0 | Q72: 0
C73: Diseño técnico y operativo del Proyecto de Gestión Costera Sostenible | D73: Banco Interamericano de Desarrollo | E73: Esta CT tiene como objetivo apoyar los diseño de la operación de préstamo Proyecto de Gestión Costera Sostenible (DR-L1154), cuyo objetivo es de mejorar la resiliencia de las zonas costeras del país, a través del fortalecimiento del marco legal e institucional y de la implementación de medidas de restauración y protección costera con enfoque en la promoción de intervenciones mixtas de infraestructuras gris y verde, con soluciones basadas en la naturaleza. | F73: Medioambiente y cambio climático | G73: No aplica | H73: Nacional | I73: 4. Una sociedad con cultura de producción y consumo sostenibles | J73: 14. Vida submarina | K73: 23. La sostenibilidad ambiental y el cambio climático en un país insular | L73: 4461700.00% | M73: 29,625,350.00 | N73: 29,625,350.00 | O73: 0 | P73: 0 | Q73: 0
C74: Disolvente Verde para la implementación del modelo de economía circular en los envases plásticos peligrosos | D74: Banco Interamericano de Desarrollo | E74: Contribuir a la implementación de un sistema de gestión segura y sostenible para uso de residuos prioritarios sujetos a régimen de responsabilidad extendida del productor segun la Ley 225-20 de Gestión integral y Coprocesamiento de Residuos Sólidos, de una perspectiva de economía lineal a una economía circular. | F74: Medioambiente y cambio climático | G74: No aplica | H74: Nacional | I74: 4. Una sociedad con cultura de producción y consumo sostenibles | J74: 13. Acción por el clima | K74: 23. La sostenibilidad ambiental y el cambio climático en un país insular | L74: … | M74: 77,025,910.00 | N74: 32,587,885.00 | O74: 0 | P74: 44,438,025.00 | Q74: 0
C75: Dominican Republic: Interinstitutional Strengthening Support on Migration | D75: Banco Interamericano de Desarrollo | E75: Apoyo al fortalecimiento interinstitucional en temas migratorios. | F75: Migración | G75: No aplica | H75: Nacional | I75: 2. Una sociedad con igualdad de derechos y oportunidades | J75: 10. Reducción de las desigualdades | K75: 27. La política exterior en el Gobierno del Cambio | L75: 4453900.00% | M75: 11,850,140.00 | N75: 11,850,140.00 | O75: 0 | P75: 0 | Q75: 0
C76: Donación Mascarillas KF94 | D76: Banco Centroamericano de Integración Económica | E76: Apoyar los esfuerzos nacionales, que el Beneficiario está realizando a través de sus autoridades gubernamentales, para enfrentar la propagación del virus SARS-CoV-2 (Coronavirus). | F76: Salud y seguridad social | G76: Protección y asistencia social | H76: Nacional | I76: 2. Una sociedad con igualdad de derechos y oportunidades | J76: 3. Salud y bienestar | K76: 4.1. Acceso a salud universal: enfoque salud | L76: … | M76: 19,552,731.00 | N76: 19,552,731.00 | O76: 0 | P76: 0 | Q76: 0
C77: Elaboración de Estudios y Diseños Finales de las Obras Complementarias de la Presa Montegrande, en República Dominicana | D77: Banco Centroamericano de Integración Económica | E77: Los fondos de la cooperación técnica bajo la modalidad recuperación contingente seran utilizados exclusivamente para financiar la elaboración de los estudios. | F77: Agua y saneamiento | G77: No aplica | H77: Regional | I77: 3. Una economía territorial y sectorialmente integrada, innovadora, diversificada, plural, orientada a la calidad y ambientalmente sostenible | J77: 6. Agua limpia y saneamiento | K77: 12. El acceso al agua y mejora del recurso | L77: 4487400.00% | M77: 218,879,492.14 | N77: 218,879,492.14 | O77: 0 | P77: 0 | Q77: 0
C78: Elaboración de un Informe de Actualización del Estatus de Conservación de la Pereskia Quisqueyana, Rosa de Bayahíbe, Flor Nacional de la República Dominicana y Revisión e Implementación de Mejoras a Borrador del Manual de Manejo de la Rosa de Bayahíbe | D78: Fondo para la Biodiversidad Caribeña | E78: Elaboración de un reporte de actualización del estatus de conservación de la Pereskia quisqueyana, Rosa de Bayahíbe, Flor Nacional de la República Dominicana, que evalúe el nivel de riesgo de extinción basado en el sistema de la Lista Roja de Especies Amenazadas de la UICN, además de aspectos como la distribución geográfica (hábitat natural de la especie), población (tamaño, magnitud, tendencias y estructura) y amenazas. *Revisar el borrador del Manual de Manejo de la Rosa de Bayahíbe y proponer e implementar las mejoras de lugar para finalizar el mismo. | F78: Medioambiente y cambio climático | G78: No aplica | H78: Local | I78: 4. Una sociedad con cultura de producción y consumo sostenibles | J78: 15. Vida de ecosistemas terrestres | K78: 23. La sostenibilidad ambiental y el cambio climático en un país insular | L78: 4497200.00% | M78: 697,008.30 | N78: 697,008.30 | O78: 0 | P78: 0 | Q78: 0
C79: Encuestas 2024 sobre los Determinantes de la Confianza en las Instituciones Públicas en los países de América Latina y el Caribe | D79: Banco de Desarrollo de América Latina & Perú & Brasil/Ecuador/Guatemala | E79: Implementar un diagnóstico que permita identificar la confianza de los dominicanos en las instituciones públicas de la República Dominicana, para así poder avanzar con un adecuado diseño e implementación de políticas centradas en el/la ciudadano/a, así como en mejorar las capacidades del Estado. | F79: Fortalecimiento institucional | G79: No aplica | H79: Nacional | I79: 1. Un Estado social y democrático de derecho | J79: 16. Paz, justicia e instituciones sólidas | K79: 15. Hacia un estado moderno e institucional | L79: … | M79: 10,368,872.50 | N79: 10,368,872.50 | O79: 0 | P79: 0 | Q79: 0
C80: Equipamiento de la Unidad Oncológica Pediátrica del Instituto del Cáncer Rosa Emilia Pérez de Tavares (INCART) | D80: Banco Centroamericano de Integración Económica | E80: financiar el “Equipamiento de la Unidad Oncológica Pediátrica del Instituto del Cáncer Rosa Emilia Pérez de Tavares (INCART)” | F80: Salud y seguridad social | G80: No aplica | H80: Nacional | I80: 2. Una sociedad con igualdad de derechos y oportunidades | J80: 3. Salud y bienestar | K80: 4.1. Acceso a salud universal: enfoque salud | L80: … | M80: 59,250,700.00 | N80: 59,250,700.00 | O80: 0 | P80: 0 | Q80: 0
C81: Escuela Centroamericana de Conservación de Bienes Culturales y Museología | D81: Sistema de Integración Centroamericana & Agencia Española de Cooperación Internacional para el Desarrollo | E81: Proporcionar educación superior (tanto de licenciatura como de posgrado), formar profesionales en restauración, investigación, protección y difusión del Patrimonio, desarrollar fundamentos teóricos y metodológicos a fin de crear normatividad en materia cultural y, por último pero no menos importante, difundir la cultura en toda la región. | F81: Arte y cultura | G81: Educación | H81: Nacional | I81: 2. Una sociedad con igualdad de derechos y oportunidades | J81: 11. Ciudades y comunidades sostenibles | K81: 6. Crear oportunidades para la juventud | L81: 4346600.00% | M81: 4,619,216.57 | N81: 4,619,216.57 | O81: 0 | P81: 0 | Q81: 0
C82: Establecimiento de una Asociación Estratégica para Fortalecer el COMISCA, en la región América Central, bajo el Plan de Emergencia del Presidente para el Alivio del SIDA | D82: Sistema de Integración Centroamericana & Estados Unidos de América | E82: Mejorar la eficiencia y la capacidad de los laboratorios nacionales y regionales en Centroamérica para el diagnóstico y manejo de calidad, hacia su acreditación. | F82: Salud y seguridad social | G82: Fortalecimiento institucional | H82: Nacional | I82: 2. Una sociedad con igualdad de derechos y oportunidades | J82: 3. Salud y bienestar | K82: 4.1. Acceso a salud universal: enfoque salud | L82: 4200500.00% | M82: 103,653,233.83 | N82: 103,653,233.83 | O82: 0 | P82: 0 | Q82: 0
C83: Estrategia de Cooperación de República Dominicana con Latinoamérica y el Caribe | D83: Banco de Desarrollo de América Latina | E83: Diseñar una estrategia de Cooperación de República Dominicana con Latinoamérica y el Caribe que establezca los lineamientos para aprovechar los mecanismos existentes de cooperación regional. | F83: Relaciones internacionales | G83: No aplica | H83: Nacional | I83: 1. Un Estado social y democrático de derecho | J83: 17. Alianzas para lograr los objetivos | K83: 27. La política exterior en el Gobierno del Cambio | L83: … | M83: 2,221,901.25 | N83: 1,777,521.00 | O83: 0 | P83: 0 | Q83: 444,380.25
C84: Estudio de factibilidad del “Proyecto Fortalecimiento del financiamiento para el sector agropecuario con enfoque tecnológico y sostenible en República Dominicana” | D84: Banco Interamericano de Desarrollo | E84: Objetivo determinar la factibilidad del proyecto, así como la planificación, evaluación y ejecución de acuerdo con los lineamientos y las normativas establecidas por las autoridades competentes | F84: Sector agropecuario | G84: No aplica | H84: Nacional | I84: 4. Una sociedad con cultura de producción y consumo sostenibles | J84: 1. Fin de la pobreza | K84: 20. El comercio, una actividad importante | L84: … | M84: 1,007,261.90 | N84: 1,007,261.90 | O84: 0 | P84: 0 | Q84: 0
C85: Estudio de Preinversión a nivel de perfil de proyecto del Centro Agroindustrial Enriquillo Norte | D85: Banco de Desarrollo de América Latina & Organización de las Naciones Unidas para la Alimentación y la Agricultura | E85: Apoyar el MEPyD en la elaboración del Estudio de Preinversión a nivel de perfil de proyecto del Centro Agroindustrial Enriquillo Norte, el cual buscará contribuir con la transformación de los sistemas agroalimentarios, fortalecer la seguridad alimentaria e incrementar el acceso a mercado de productores agrícolas de la Región Enriquillo localizada en el suroeste de la República Dominicana. | F85: Sector agropecuario | G85: Desarrollo rural | H85: Regional | I85: 3. Una economía territorial y sectorialmente integrada, innovadora, diversificada, plural, orientada a la calidad y ambientalmente sostenible | J85: 12. Producción y consumo responsables | K85: 11. Población rural, desarrollo agropecuario y pesquero | L85: 4529400.00% | M85: 8,887,605.00 | N85: 7,110,084.00 | O85: 0 | P85: 0 | Q85: 1,777,521.00
C86: Estudio de preinversión para la expansión de los Centros de Desarrollo Integral para la Mujer (CEDI-Mujer). Fase II | D86: Banco de Desarrollo de América Latina | E86: Apoyar al Gabinete de Políticas Sociales en el desarrollo del estudio de preinversión para la expansión de los CEDI-Mujer en territorios priorizado | F86: Protección y asistencia social | G86: Género | H86: Nacional | I86: 2. Una sociedad con igualdad de derechos y oportunidades | J86: 5. Igualdad de género | K86: 7. Igualdad de género, empoderamiento de la mujer y la No Violencia de género | L86: … | M86: 9,628,238.75 | N86: 7,702,591.00 | O86: 0 | P86: 0 | Q86: 1,925,647.75
C87: Estudio de retos y desafíos en cadenas de suministro por efecto del COVID 19 | D87: Banco Interamericano de Desarrollo | E87: Financiamiento no reembolsable para consultoría que elaborará el “Estudio de retos y desafíos en cadenas de suministro por efecto del COVID19" | F87: Comercio | G87: No aplica | H87: Nacional | I87: 3. Una economía territorial y sectorialmente integrada, innovadora, diversificada, plural, orientada a la calidad y ambientalmente sostenible | J87: No alineado | K87: 20. El comercio, una actividad importante | L87: 4398000.00% | M87: 1,007,261.90 | N87: 1,007,261.90 | O87: 0 | P87: 0 | Q87: 0
C88: Estudio de viabilidad del proyecto "Desarrollo Integral del Puerto de Haina en la República Dominicana" | D88: Banco Centroamericano de Integración Económica | E88: Financiar la elaboración de los estudios de viabilidad del Proyecto descrito en la Sección “Desarrollo Integral del Puerto de Haina en la República Dominicana”. | F88: Comercio | G88: No aplica | H88: Municipal | I88: 3. Una economía territorial y sectorialmente integrada, innovadora, diversificada, plural, orientada a la calidad y ambientalmente sostenible | J88: 9. Industria, innovación e infraestructuras | K88: 20. El comercio, una actividad importante | L88: 4441300.00% | M88: 99,541,176.00 | N88: 94,801,120.00 | O88: 0 | P88: 0 | Q88: 4,740,056.00
C89: Estudios de Competitividad y Sostenibilidad para República Dominicana y el Destino de Santo Domingo | D89: Banco Interamericano de Desarrollo | E89: Apoyar el Gobierno de República Dominicana con estudios para elaborar la estrategia de recuperación, competitividad y resiliencia del sector y destinos turísticos dominicanos post COVID-19, particularmente del destino de Santo Domingo. | F89: Turismo | G89: Medioambiente y cambio climático | H89: Provincial | I89: 3. Una economía territorial y sectorialmente integrada, innovadora, diversificada, plural, orientada a la calidad y ambientalmente sostenible | J89: 8. Trabajo decente y crecimiento económico | K89: 18. Turismo, una oportunidad | L89: 4447700.00% | M89: 11,850,140.00 | N89: 11,850,140.00 | O89: 0 | P89: 0 | Q89: 0
C90: Estudios de Factibilidad para el Manejo Costero Integrado | D90: Banco Interamericano de Desarrollo | E90: El objetivo de la cooperación técnica es apoyar al Gobierno de Republica Dominicana en el desarrollo de un programa de restauración de playas estratégicas del país, con un enfoque de gestión integrada de zonas costeras, adaptación al cambio climático y turismo costero sostenible. Los objetivos específicos son de: i) conducir los estudios de planificación, diseño y factibilidad necesarios para la restauración y el manejo integrado de playas y costas estratégicas del país, ii) fortalecer las capacidades institucionales para la gestión integrada de zonas costeras. | F90: Medioambiente y cambio climático | G90: Turismo | H90: Nacional | I90: 4. Una sociedad con cultura de producción y consumo sostenibles | J90: 14. Vida submarina | K90: 23. La sostenibilidad ambiental y el cambio climático en un país insular | L90: 4346100.00% | M90: 29,625,350.00 | N90: 29,625,350.00 | O90: 0 | P90: 0 | Q90: 0
C91: Estudios de Factibilidad y Diseños finales del Proyecto de Reconstrucción y Ampliación de Sistemas de Riego del Río Guayubín, República Dominicana | D91: Banco de Desarrollo de América Latina | E91: Elaborar los estudios y diseños finales para la reconstrucción y ampliación del sistema de riego Guayubín, para viabilizar una potencial inversión en riego para mejorar la productividad de aproximadamente 4.800 Ha. | F91: Agua y saneamiento | G91: Fortalecimiento institucional | H91: Municipal | I91: 4. Una sociedad con cultura de producción y consumo sostenibles | J91: 6. Agua limpia y saneamiento | K91: 12. El acceso al agua y mejora del recurso | L91: … | M91: 41,475,490.00 | N91: 41,475,490.00 | O91: 0 | P91: 0 | Q91: 0
C92: Estudios de factibilidad y diseños finales del Proyecto Riego Canal Alto Mao, República Dominicana | D92: Banco de Desarrollo de América Latina | E92: Realizar los estudios de factibilidad y diseños finales de obras de infraestructura del proyecto de mejora de la infraestructura de riego de Mao, que se basa en: El incremento de los niveles de competitividad de la producción agrícola bajo riego y mejora de las condiciones de vida de los productores agrícola y sus familias en la zona de riego de Mao, asegurando el suministro de agua, facilitado por la rehabilitación y complementación de los sistemas de riego Mao-Gurabo y Luis Bogaert, la construcción de nuevas obras de riego (canal Alto Mao) y la optimización de la operación de la red de distribución. | F92: Agua y saneamiento | G92: Sector agropecuario | H92: Municipal | I92: 4. Una sociedad con cultura de producción y consumo sostenibles | J92: 6. Agua limpia y saneamiento | K92: 12. El acceso al agua y mejora del recurso | L92: … | M92: 47,400,560.00 | N92: 47,400,560.00 | O92: 0 | P92: 0 | Q92: 0
C93: Estudios de prefactibilidad del Proyecto de Acueducto Múltiple de San Juan de la Maguana - Juan de Herrera - Las Matas de Farfán | D93: Banco de Desarrollo de América Latina | E93: Elaborar estudios, diseños de ingeniería y documentos de términos de referencia para realizar el proceso de contratacion del Acueducto Múltiple de San Juan de la Maguana. | F93: Agua y saneamiento | G93: No aplica | H93: Provincial | I93: 2. Una sociedad con igualdad de derechos y oportunidades | J93: 6. Agua limpia y saneamiento | K93: 14. Vivienda digna y adecuada, derecho fundamental del ser humano | L93: … | M93: 14,812,675.00 | N93: 11,850,140.00 | O93: 0 | P93: 0 | Q93: 2,962,535.00
C94: Estudios y Diseño del Alcantarillado Sanitario de Boca Chica | D94: Banco Interamericano de Desarrollo | E94: Apoyo al INAPA en la realización de los estudios y el diseño del Alcantarillado Sanitario de Boca Chica | F94: Agua y saneamiento | G94: No aplica | H94: Municipal | I94: 4. Una sociedad con cultura de producción y consumo sostenibles | J94: 6. Agua limpia y saneamiento | K94: 12. El acceso al agua y mejora del recurso | L94: … | M94: 14,812,675.00 | N94: 14,812,675.00 | O94: 0 | P94: 0 | Q94: 0
C95: Estudios y diseños finales para el mejoramiento de la gestión integral de la demanda. | D95: Banco de Desarrollo de América Latina | E95: Formular un proyecto de factibilidad que permita la implementación de un programa integral de gestión de la demanda en el Acueducto Oriental de Santo | F95: Agua y saneamiento | G95: Desarrollo urbano | H95: Provincial | I95: 2. Una sociedad con igualdad de derechos y oportunidades | J95: 6. Agua limpia y saneamiento | K95: 12. El acceso al agua y mejora del recurso | L95: 4452500.00% | M95: 29,625,350.00 | N95: 29,625,350.00 | O95: 0 | P95: 0 | Q95: 0
C96: EU CORSIA Africa and Caribbean Project | D96: Comunidad del Caribe & Reino Unido | E96: Implementacion de CORSIA | F96: Medioambiente y cambio climático | G96: No aplica | H96: Nacional | I96: 3. Una economía territorial y sectorialmente integrada, innovadora, diversificada, plural, orientada a la calidad y ambientalmente sostenible | J96: 13. Acción por el clima | K96: 18. Turismo, una oportunidad | L96: … | M96: 0 | N96: 0 | O96: 0 | P96: 0 | Q96: 0
C97: Evaluación y líneas de acción para la gestión corporativa, operativa y financiera de ETED. | D97: Banco Interamericano de Desarrollo | E97: Apoyar a ETED a completar la evaluación de gestión de la empresa y elaborar un Plan de Mejora de Gestión Integral que atienda el mandato del Pacto Eléctrico para la mejora de la gestión de las empresas eléctricas estatales, mediante compromisos y acciones definidas. | F97: Fortalecimiento institucional | G97: No aplica | H97: Nacional | I97: 3. Una economía territorial y sectorialmente integrada, innovadora, diversificada, plural, orientada a la calidad y ambientalmente sostenible | J97: 7. Energía asequible y no contaminante | K97: 13. Energía permanente y de calidad | L97: … | M97: 5,036,309.50 | N97: 5,036,309.50 | O97: 0 | P97: 0 | Q97: 0
C98: Financiamiento para la Expansión Sostenible de la Producción Láctea en la República Dominicana | D98: Banco Interamericano de Desarrollo | E98: Consolidar la producción y comercialización de la industria lacteal por medio de un préstamo a la cooperativa COOPESUR para que amplie su capacidad de producción láctea y el uso de tecnología UHT. | F98: Sector agropecuario | G98: Desarrollo rural | H98: Municipal | I98: 3. Una economía territorial y sectorialmente integrada, innovadora, diversificada, plural, orientada a la calidad y ambientalmente sostenible | J98: 2. Hambre cero | K98: 11. Población rural, desarrollo agropecuario y pesquero | L98: 4377800.00% | M98: 28,706,964.15 | N98: 14,812,675.00 | O98: 0 | P98: 0 | Q98: 13,894,289.15
C99: Fomento del ecoturismo sobre la base de la educación ambiental y la sensibilización de los visitantes, en torno a las unidades de conservación del Sistema Nacional de Áreas Protegidas (SINAP) de la República Dominicana. | D99: Fondo para la Biodiversidad Caribeña | E99: Fomento del turismo de naturaleza, a través de la sensibilización y educación ambiental de las partes interesadas, para garantizar una visitación consciente de la importancia de la conservación de nuestros recursos naturales, y propiciar un empoderamiento social entorno a la protección de las diferentes unidades de conservación del Sistema Nacional de Áreas Protegidas (SINAP); a la vez que se incrementan las facilidades para el uso público. | F99: Medioambiente y cambio climático | G99: Educación | H99: Nacional | I99: 4. Una sociedad con cultura de producción y consumo sostenibles | J99: 13. Acción por el clima | K99: 23. La sostenibilidad ambiental y el cambio climático en un país insular | L99: 4459400.00% | M99: 22,244,760.30 | N99: 14,999,119.80 | O99: 0 | P99: 1,365,000.00 | Q99: 5,880,640.50
C100: Fortalecimiento a la MIPYME con énfasis en cadenas regionales de valor en la región SICA | D100: Sistema de Integración Centroamericana & Agencia Española de Cooperación Internacional para el Desarrollo | E100: Contribuir al desarrollo sostenible e incluyente de la Región SICA, mejorando las condiciones competitivas de la MIPYME para la generación de empleo e ingresos, mediante la complementariedad de políticas que permitan la articulación productiva de carácter regional y la implementación de la Unión Aduanera Centroamericana. | F100: MIPYMES | G100: No aplica | H100: Nacional | I100: 3. Una economía territorial y sectorialmente integrada, innovadora, diversificada, plural, orientada a la calidad y ambientalmente sostenible | J100: 8. Trabajo decente y crecimiento económico | K100: 1. Empleo formal | L100: 4346600.00% | M100: 147,505,091.66 | N100: 147,505,091.66 | O100: 0 | P100: 0 | Q100: 0
C101: Fortalecimiento al Ayuntamiento del Distrito Nacional para la Implementación de Galerías de Servicios en Santo Domingo | D101: Banco de Desarrollo de América Latina | E101: Fortalecer al Ayuntamiento del Distrito Nacional en la definición de un modelo integral de intervención de vías públicas, que permita la construcción de galerías de servicios (cámara húmeda y cámara seca); así como el soterramiento de redes de servicios e infraestructura para el aseo urbano. | F101: Desarrollo urbano | G101: Fortalecimiento institucional | H101: Provincial | I101: 2. Una sociedad con igualdad de derechos y oportunidades | J101: 11. Ciudades y comunidades sostenibles | K101: 25. Políticas públicas territoriales y municipales para el cambio | L101: … | M101: 26,662,815.00 | N101: 26,662,815.00 | O101: 0 | P101: 0 | Q101: 0
C102: Fortalecimiento de Capacidades del Centro de Operaciones de Emergencia para hacer frente al COVID-19 | D102: Banco de Desarrollo de América Latina & Banco Centroamericano de Integración Económica | E102: Dotar a las instituciones del Sistema de Gestión de Riesgos de los recursos necesarios para una efectiva gestión de riesgos y una respuesta rápida y oportuna en la fase de emergencia, que permita proveer de alimentación, saneamiento y servicios de salud a la población afectada. | F102: Gestión de riesgo | G102: Fortalecimiento institucional | H102: Nacional | I102: 4. Una sociedad con cultura de producción y consumo sostenibles | J102: 3. Salud y bienestar | K102: 23. La sostenibilidad ambiental y el cambio climático en un país insular | L102: 4392200.00% | M102: 82,950,980.00 | N102: 82,950,980.00 | O102: 0 | P102: 0 | Q102: 0
C103: Fortalecimiento de Capacidades del Ministerio de Salud para hacer frente al COVID-19 | D103: Banco Centroamericano de Integración Económica | E103: Financiar actividades relacionadas para enfrentar la emergencia que se presenta en la Republica Dominicana por motivo de la expansión del virus COVID-19 (Coronavirus), con base a la declaración de la pandemia emitida por la Organización Mundial de la Salud (OMS) en mes de marzo 2020.. | F103: Salud y seguridad social | G103: Fortalecimiento institucional | H103: Nacional | I103: 2. Una sociedad con igualdad de derechos y oportunidades | J103: 3. Salud y bienestar | K103: 4.1. Acceso a salud universal: enfoque salud | L103: 4464600.00% | M103: 29,625,350.00 | N103: 29,625,350.00 | O103: 0 | P103: 0 | Q103: 0
C104: Fortalecimiento de la Gestión Ambiental Portuaria en los Países Miembros del DR-CAFTA | D104: Sistema de Integración Centroamericana & Agencia de Estados Unidos para el Desarrollo Internacional | E104: Fortalecer la gestión ambiental portuaria a través del desarrollo de las capacidades y entrenamiento en estrategias de prevención, preparación y respuesta, especialmente en lo relacionado a actividades marítimas y portuarias que representen un alto riesgo de contaminación. | F104: Medioambiente y cambio climático | G104: Fortalecimiento institucional | H104: Nacional | I104: 4. Una sociedad con cultura de producción y consumo sostenibles | J104: 14. Vida submarina | K104: 24. Implementar la politica nacional de produccion y consumo sostenible | L104: 4273600.00% | M104: 21,922,759.00 | N104: 21,922,759.00 | O104: 0 | P104: 0 | Q104: 0
C105: Fortalecimiento de la Gestión del Ministerio de Educación de la República Dominicana | D105: Banco Interamericano de Desarrollo | E105: Viabilizar los procesos para eficientizar la gestión de los recursos humanos y la UE del componente de Educación del Programa de República Digital y, por consiguiente, contribuir a mejorar la capacidad del MINERD de gestión por resultados para hacer más efectivos sus esfuerzos para aumentar la calidad de la educación. | F105: Educación | G105: Fortalecimiento institucional | H105: Nacional | I105: 2. Una sociedad con igualdad de derechos y oportunidades | J105: 4. Educación de calidad | K105: 5. Hacia una educación de calidad con equidad | L105: 4308900.00% | M105: 29,625,350.00 | N105: 29,625,350.00 | O105: 0 | P105: 0 | Q105: 0
C106: Fortalecimiento De La Gestión Por Resultados Del Sector Salud En República Dominicana | D106: Banco Interamericano de Desarrollo | E106: Mejorar La Asignación Del Gasto En Salud Mediante La Expansión Del Financiamiento Basado En Resultados, Con Especial Énfasis En El Primer Nivel De Atención Contribuir A La Disminución De La Morbi-Mortalidad Materna E Infantil Mediante La Expansión De… | F106: Salud y seguridad social | G106: Fortalecimiento institucional | H106: Provincial | I106: 2. Una sociedad con igualdad de derechos y oportunidades | J106: 3. Salud y bienestar | K106: 4.1. Acceso a salud universal: enfoque salud | L106: 4127500.00% | M106: 6,244,420,000.00 | N106: 132,970.00 | O106: 6,244,287,030.00 | P106: 0 | Q106: 0
C107: Fortalecimiento de las Capacidades Institucionales de la Alcaldía del Distrito Nacional, de la República Dominicana | D107: Banco Centroamericano de Integración Económica | E107: Financiar la contratación de la consultoría denominada “Fortalecimiento de las Capacidades Institucionales de la Alcaldía del Distrito Nacional, de la República Dominicana”. | F107: Fortalecimiento institucional | G107: No aplica | H107: Provincial | I107: 1. Un Estado social y democrático de derecho | J107: 16. Paz, justicia e instituciones sólidas | K107: 15. Hacia un estado moderno e institucional | L107: … | M107: 5,285,636.45 | N107: 5,285,636.45 | O107: 0 | P107: 0 | Q107: 0
C108: Fortalecimiento de las condiciones de prestación de los servicios de la Corporación del Acueducto y Alcantarillado de Santo Domingo | D108: Banco de Desarrollo de América Latina | E108: Fortalecer las condiciones de prestación de los servicios de la Corporación del Acueducto y Alcantarillado de Santo Domingo. | F108: Agua y saneamiento | G108: Fortalecimiento institucional | H108: Provincial | I108: 2. Una sociedad con igualdad de derechos y oportunidades | J108: 6. Agua limpia y saneamiento | K108: 12. El acceso al agua y mejora del recurso | L108: … | M108: 26,662,815.00 | N108: 26,662,815.00 | O108: 0 | P108: 0 | Q108: 0
C109: Fortalecimiento de una salud pública regional de vigilancia, capacidad y Red de Laboratorios para Centroamérica con la SG-SICA/COMISCA | D109: Sistema de Integración Centroamericana & Estados Unidos de América | E109: Fortalecer las capacidades de los países de la región SICA en vigilancia e investigación epidemiológica, así como en la respuesta a emergencias sanitarias por epidemias y desastres naturales. La Secretaría Ejecutiva del COMISCA, implementa el Programa de Formación en Epidemiología de Campo, conocido como FETP por sus siglas en inglés. | F109: Salud y seguridad social | G109: Fortalecimiento institucional | H109: Nacional | I109: 2. Una sociedad con igualdad de derechos y oportunidades | J109: 3. Salud y bienestar | K109: 30. Gestión de datos | L109: 4200500.00% | M109: 183,897,938.11 | N109: 183,897,938.11 | O109: 0 | P109: 0 | Q109: 0
C110: Fortalecimiento del entorno institucional y regulatorio para habilitar la competitividad y el desarrollo empresarial en República Dominicana | D110: Banco Interamericano de Desarrollo | E110: Contribuir a la construcción de un entorno habilitador para la competitividad, el desarrollo empresarial y el emprendimiento en República Dominicana mediante la revisión de instrumentos, marco regulatorio y procesos gubernamentales. | F110: Comercio | G110: Fortalecimiento institucional | H110: Nacional | I110: 3. Una economía territorial y sectorialmente integrada, innovadora, diversificada, plural, orientada a la calidad y ambientalmente sostenible | J110: 9. Industria, innovación e infraestructuras | K110: 20. El comercio, una actividad importante | L110: 4478700.00% | M110: 8,887,605.00 | N110: 8,887,605.00 | O110: 0 | P110: 0 | Q110: 0
C111: Fortalecimiento del Programa Progresando con Solidaridad” a Nivel Nacional | D111: Banco Interamericano de Desarrollo | E111: Contribuir a aliviar las condiciones de la pobreza e incentivar la acumulación de capital humano de las familias pobres . | F111: Protección y asistencia social | G111: Fortalecimiento institucional | H111: Nacional | I111: 2. Una sociedad con igualdad de derechos y oportunidades | J111: 1. Fin de la pobreza | K111: 3. Hacia una política integral de creación de oportunidades | L111: 4127500.00% | M111: 4,200,000,000.00 | N111: 50,000,000.00 | O111: 4,098,872,257.00 | P111: 0 | Q111: 51,127,743.00
C112: Fortalecimiento del Sistema de Alerta Temprana | D112: Coalición para la Infraestructura Resiliente ante Desastres (CDRI) | E112: El propósito de este Memorando es proporcionar un marco de cooperación que facilite la colaboración entre las Partes basada en los principios de reciprocidad y beneficio mutuo para el fortalecimiento de la capacidad del COE para promover programas y actividades conjuntas en materia de cambio climático, crecimiento verde, alerta temprana, que respondan a las metas y compromisos vigentes para el país a nivel nacional e internacional. | F112: Gestión de riesgo | G112: Fortalecimiento institucional | H112: Nacional | I112: 4. Una sociedad con cultura de producción y consumo sostenibles | J112: 13. Acción por el clima | K112: 23. La sostenibilidad ambiental y el cambio climático en un país insular | L112: 4539500.00% | M112: 27,381,348.24 | N112: 27,381,348.24 | O112: 0 | P112: 0 | Q112: 0
C113: Fortalecimiento del Sistema Nacional de la Gestión del Riesgo de Desastres | D113: Banco Interamericano de Desarrollo | E113: El objetivo es mejorar las capacidades de gestión del riesgo de desastres en el país mediante la prestación de asistencia técnica. | F113: Gestión de riesgo | G113: Fortalecimiento institucional | H113: Nacional | I113: 4. Una sociedad con cultura de producción y consumo sostenibles | J113: 13. Acción por el clima | K113: 23. La sostenibilidad ambiental y el cambio climático en un país insular | L113: 4352800.00% | M113: 55,695,658.00 | N113: 44,438,025.00 | O113: 0 | P113: 0 | Q113: 11,257,633.00
C114: Fortalecimiento institucional a la Dirección General de Alianzas Público-Privadas (DGAPP) de la República Dominicana | D114: Banco de Desarrollo de América Latina | E114: Fortalecer las capacidades técnicas de la DGAPP en la implementación de proyectos de infraestructura bajo la modalidad de Alianzas Público-Privadas (APP) en la República Dominicana, con el fin de transparentar aspectos concesionarios y de asociación Público-Privada. | F114: Fortalecimiento institucional | G114: No aplica | H114: Nacional | I114: 1. Un Estado social y democrático de derecho | J114: 16. Paz, justicia e instituciones sólidas | K114: 15. Hacia un estado moderno e institucional | L114: 4443300.00% | M114: 7,406,337.50 | N114: 5,925,070.00 | O114: 0 | P114: 0 | Q114: 1,481,267.50
C115: Fortalecimiento Institucional al Banco de Desarrollo y Exportaciones (BANDEX) de la República Dominicana | D115: Banco de Desarrollo de América Latina | E115: Fortalecer las capacidades técnicas de BANDEX, que les permita promover un adecuado desempeño socioambiental en los proyectos y programas que financian, así como evaluar y monitorear el progreso de los sectores productivos hacia un desarrollo sostenible. | F115: Sector financiero | G115: Fortalecimiento institucional | H115: Nacional | I115: 3. Una economía territorial y sectorialmente integrada, innovadora, diversificada, plural, orientada a la calidad y ambientalmente sostenible | J115: 17. Alianzas para lograr los objetivos | K115: 23. La sostenibilidad ambiental y el cambio climático en un país insular | L115: 4567900.00% | M115: 11,109,506.25 | N115: 8,887,605.00 | O115: 0 | P115: 0 | Q115: 2,221,901.25
C116: Fortalecimiento institucional en el marco del programa para la sostenibilidad y eficiencia del sector eléctrico II. | D116: Banco Interamericano de Desarrollo | E116: Apoyar al Gobierno de República Dominicana en la consolidación de un marco para el sector eléctrico que cumpla con los criterios de sostenibilidad y eficiencia. | F116: Generación y suministros de energía | G116: Medioambiente y cambio climático | H116: Nacional | I116: 3. Una economía territorial y sectorialmente integrada, innovadora, diversificada, plural, orientada a la calidad y ambientalmente sostenible | J116: 7. Energía asequible y no contaminante | K116: 13. Energía permanente y de calidad | L116: 4415100.00% | M116: 11,850,140.00 | N116: 11,850,140.00 | O116: 0 | P116: 0 | Q116: 0
C117: IBERARCHIVOS | D117: Secretaría General Iberoamericana | E117: Fomentar el desarrollo archivístico en Iberoamérica, a través de la concesión de ayudas a proyectos que promuevan la protección y difusión de su Patrimonio Documental y la formación de profesionales especializados para fortalecer una Red de Archivos Iberoamericanos. | F117: Arte y cultura | G117: Fortalecimiento institucional | H117: Nacional | I117: 2. Una sociedad con igualdad de derechos y oportunidades | J117: 11. Ciudades y comunidades sostenibles | K117: 9. Cultura para el cambio | L117: 3579600.00% | M117: 46,683,062.68 | N117: 46,683,062.68 | O117: 0 | P117: 0 | Q117: 0
C118: Ibermemoria Sonora y Audiovisual | D118: Secretaría General Iberoamericana | E118: Creación de un espacio audiovisual iberoamericano por medio de ayudas financieras y a través de convocatorias que están abiertas a todos los productores independientes de cine de los países miembros de América Latina, España y Portugal | F118: Arte y cultura | G118: No aplica | H118: Nacional | I118: 2. Una sociedad con igualdad de derechos y oportunidades | J118: No alineado | K118: 9. Cultura para el cambio | L118: … | M118: 0 | N118: 0 | O118: 0 | P118: 0 | Q118: 0
C119: Identificación, clasificación y mejora de la asignación de recursos presupuestarios y la inversión publica destinados a las acciones de mitigación y adaptación del cambio climático | D119: Banco Interamericano de Desarrollo | E119: Crear una nueva metodología de clasificación con incidencia en cambio climático y la gestion de riesgo de desastres. | F119: Medioambiente y cambio climático | G119: Fortalecimiento institucional | H119: Nacional | I119: 4. Una sociedad con cultura de producción y consumo sostenibles | J119: 13. Acción por el clima | K119: 23. La sostenibilidad ambiental y el cambio climático en un país insular | L119: 4346600.00% | M119: 0 | N119: 0 | O119: 0 | P119: 0 | Q119: 0
C120: Implementación de un programa de formación y concienciación sobre la importancia de la protección del medioambiente en las escuelas salesianas de República Dominicana. | D120: Fondo para la Biodiversidad Caribeña | E120: Promover la educación ambiental y el involucramiento de la población en la valoración, protección y defensa del medio ambiente y el manejo sostenible de los recursos naturales, incluyendo la educación sobre las causas y consecuencias del cambio climático. | F120: Medioambiente y cambio climático | G120: Educación | H120: Nacional | I120: 4. Una sociedad con cultura de producción y consumo sostenibles | J120: 13. Acción por el clima | K120: 23. La sostenibilidad ambiental y el cambio climático en un país insular | L120: 4490200.00% | M120: 3,262,989.50 | N120: 2,049,000.00 | O120: 0 | P120: 1,213,989.50 | Q120: 0
C121: Implementación Tecnológica para el Proceso Productivo de Caficultores en la Frontera Dominico-Haitiana | D121: Banco Interamericano de Desarrollo | E121: El objetivo principal que busca el proyecto es mejorar los niveles de ingreso y rentabilidad de las fincas de productores de café en la frontera Dominico-Haitiana, a fin de superar los niveles de pobreza de las familias cafetaleras. Los objetivos específicos del proyecto son: i) aumentar los niveles de producción y productividad mediante la implementación de nuevas tecnologías que sean adoptadas por los productores con un enfoque de sostenibilidad, y ii) mejorar la capacidad de adaptación al cambio climático y mitigación a las inclemencias medioambientales. | F121: Sector agropecuario | G121: Medioambiente y cambio climático | H121: Nacional | I121: 3. Una economía territorial y sectorialmente integrada, innovadora, diversificada, plural, orientada a la calidad y ambientalmente sostenible | J121: 2. Hambre cero | K121: 11. Población rural, desarrollo agropecuario y pesquero | L121: 4362100.00% | M121: 49,734,563.57 | N121: 29,625,350.00 | O121: 0 | P121: 0 | Q121: 20,109,213.57
C122: Implementar una intervención multicomponente para mejorar el control de la hipertensión en América Central - 744/PN | D122: Sistema de Integración Centroamericana | E122: Evaluar la repercusión, adaptabilidad, factibilidad, fidelidad y sostenibilidad de la implementación de un programa de intervención multinivel y multicomponente para mejorar el control de la presión arterial en pacientes con hipertensión arterial (HTA) que acuden a los sistemas públicos de atención primaria de salud de la región Centroamericana. | F122: Salud y seguridad social | G122: No aplica | H122: Nacional | I122: 2. Una sociedad con igualdad de derechos y oportunidades | J122: 3. Salud y bienestar | K122: 4.1. Acceso a salud universal: enfoque salud | L122: 4273600.00% | M122: 89,954,649.74 | N122: 89,954,649.74 | O122: 0 | P122: 0 | Q122: 0
C123: Infraestructura de Transporte Resiliente: Apoyo al Desarrollo de Infraestructura de Transporte Adaptable al Cambio Climático | D123: Banco Interamericano de Desarrollo | E123: Apoyar al gobierno de la República Dominicana en la integración de la información sectorial con el sistema de gestión integral de riesgos, implementando el sistema de modelaje de riesgos de inundación HydroBID-Flood, básica para priorizar las intervenciones en los activos viales en función de los distintos escenarios climáticos y de riesgo a desastres naturales. Asimismo, esta cooperación pretende actualizar el inventario y el diagnóstico de calidad de la infraestructura vial nacional, además de fortalecer los criterios técnicos de diseño de programas carreteros, y los ejercicios de planificación y priorización de infraestructura a mantener, reforzar o reconstruir. | F123: Transporte | G123: Gestión de riesgo | H123: Nacional | I123: 3. Una economía territorial y sectorialmente integrada, innovadora, diversificada, plural, orientada a la calidad y ambientalmente sostenible | J123: 11. Ciudades y comunidades sostenibles | K123: 26. La transformación del sector transporte | L123: 4330700.00% | M123: 38,512,955.00 | N123: 38,512,955.00 | O123: 0 | P123: 0 | Q123: 0
C124: Iniciativa Iberoamericana para Prevenir y Eliminar la Violencia Contra las Mujeres | D124: Secretaría General Iberoamericana | E124: Eliminar todas las formas de violencia contra todas las mujeres y las niñas en los ámbitos público y privado, incluidas la trata y la explotación sexual y otros tipos de explotación. | F124: Género | G124: Fortalecimiento institucional | H124: Nacional | I124: 2. Una sociedad con igualdad de derechos y oportunidades | J124: 5. Igualdad de género | K124: 7. Igualdad de género, empoderamiento de la mujer y la No Violencia de género | L124: 4431700.00% | M124: 10,565,414.36 | N124: 10,565,414.36 | O124: 0 | P124: 0 | Q124: 0
C125: Iniciativa MIPYMES Verdes II | D125: Sistema de Integración Centroamericana & Banco de Desarrollo de Alemania & Banco Centroamericano de Integración Económica | E125: Fomentar el financiamiento de inversiones ambientales que permitan impulsar el desarrollo de las fuentes de eficiencia infraestructura necesaria para la conversión, transporte y almacenamiento de la energía. | F125: Medioambiente y cambio climático | G125: MIPYMES | H125: Nacional | I125: 4. Una sociedad con cultura de producción y consumo sostenibles | J125: 12. Producción y consumo responsables | K125: 23. La sostenibilidad ambiental y el cambio climático en un país insular | L125: 4310100.00% | M125: 3,980,659,680.00 | N125: 1,416,627,680.00 | O125: 2,564,032,000.00 | P125: 0 | Q125: 0
C126: Iniciativa Regional para la Eliminación de la Malaria (IREM) en Mesoamérica y República Dominicana | D126: Banco Interamericano de Desarrollo | E126: El objetivo de la operación es contribuir con los esfuerzos hacia la eliminación de la transmisión autóctona de la malaria en RD y evitar la reintroducción. | F126: Salud y seguridad social | G126: No aplica | H126: Nacional | I126: 2. Una sociedad con igualdad de derechos y oportunidades | J126: 3. Salud y bienestar | K126: 4.1. Acceso a salud universal: enfoque salud | L126: 4358500.00% | M126: 248,704,813.25 | N126: 86,506,022.00 | O126: 0 | P126: 0 | Q126: 162,198,791.25
C127: Innovaciones Tecnológicas para Mejorar la Transparencia e Integridad en América Latina y el Caribe (Fase II) | D127: Banco Interamericano de Desarrollo | E127: Apoyar a los países a mejorar la transparencia e integridad mediante el fortalecimiento de la gestión de la información, la implementación de herramientas tecnológicas, el desarrollo de capacidades en las entidades públicas y la promoción de mecanismos institucionales e incentivos que permitan acelerar la transformación digital y contribuir a la reactivación económica. | F127: Fortalecimiento institucional | G127: Ciencia, tecnología, comunicación e innovación | H127: Nacional | I127: 1. Un Estado social y democrático de derecho | J127: 16. Paz, justicia e instituciones sólidas | K127: 15. Hacia un estado moderno e institucional | L127: 4434800.00% | M127: 38,512,955.00 | N127: 38,512,955.00 | O127: 0 | P127: 0 | Q127: 0
C128: Jóvenes Líderes para el Desarrollo Rural en la Región del Sistema de la Integración Centroamericana | D128: Sistema de Integración Centroamericana & Fondo Internacional para el Desarrollo Agrícola | E128: Contribuir al diálogo, el desarrollo de capacidades y el desarrollo de iniciativas focalizadas en las juventudes rurales; promoviendo su inclusión e incidencia en los espacios de decisión a nivel territorial, nacional y regional, en cooperación con instituciones públicas del sector agricultura, desarrollo rural y juventud; organizaciones de la sociedad civil y cooperación para el desarrollo. | F128: Desarrollo rural | G128: No aplica | H128: Nacional | I128: 2. Una sociedad con igualdad de derechos y oportunidades | J128: 11. Ciudades y comunidades sostenibles | K128: 6. Crear oportunidades para la juventud | L128: 4310800.00% | M128: 148,126,750.00 | N128: 148,126,750.00 | O128: 0 | P128: 0 | Q128: 0
C129: La Educación Inclusiva en la Región Mesoamericana y el Caribe como bien público, en el marco del Programa Mesoamericano de Cooperación | D129: Sistema de Integración Centroamericana & Agencia Mexicana de Cooperación Internacional | E129: Promover el enfoque y la filosofía de la Educación Inclusiva en los países de la región mesoamericana, para hacer efectivo el derecho a la educación, la igualdad de oportunidades y la participación de la niñez, de la juventud y de la población adulta. | F129: Educación | G129: Protección y asistencia social | H129: Nacional | I129: 2. Una sociedad con igualdad de derechos y oportunidades | J129: 4. Educación de calidad | K129: 5. Hacia una educación de calidad con equidad | L129: 4346600.00% | M129: 0 | N129: 0 | O129: 0 | P129: 0 | Q129: 0
C130: Nature Village: Innovación y Tecnologías Limpias para el Desarrollo Rural Sostenible | D130: Banco Interamericano de Desarrollo | E130: Desarrollar una comunidad sostenible que llevará acceso a agua, energía, mejora de vivienda y saneamiento, mediante soluciones alternativas que protejan el medio ambiente y que resulten en un mejor costo que las soluciones que hoy encuentran estas familias. | F130: Vivienda y servicios comunitarios | G130: Desarrollo rural | H130: Municipal | I130: 4. Una sociedad con cultura de producción y consumo sostenibles | J130: 12. Producción y consumo responsables | K130: 24. Implementar la politica nacional de produccion y consumo sostenible | L130: 4381800.00% | M130: 58,935,071.52 | N130: 29,602,182.98 | O130: 0 | P130: 29,332,888.54 | Q130: 0
C131: Participación privada en Compañías de Distribución Eléctrica (EDEs) en República Dominicana | D131: Banco Interamericano de Desarrollo | E131: Brindar apoyo a República Dominicana (RD) en la evaluación de las condiciones y el cumplimiento de los requisitos de cumplimiento - bajo la nueva ley de Asociaciones Público-Privadas (APP) - para estructurar la concesión de la Empresas Distribuidoras de Energía Eléctrica (EDEs), incluyendo la realización de estudios relacionados con la análisis socioeconómico y de elegibilidad, valor por dinero y asignación de riesgos, así como un estudio de impacto fiscal. | F131: Generación y suministros de energía | G131: No aplica | H131: Nacional | I131: 3. Una economía territorial y sectorialmente integrada, innovadora, diversificada, plural, orientada a la calidad y ambientalmente sostenible | J131: 7. Energía asequible y no contaminante | K131: 13. Energía permanente y de calidad | L131: 4440500.00% | M131: 14,812,675.00 | N131: 14,812,675.00 | O131: 0 | P131: 0 | Q131: 0
C132: Plan operativo de respuesta a la emergencia por la covid-19 | D132: Banco Interamericano de Desarrollo & Organización Panamericana de la Salud | E132: Fortalecer el desarrollo de las acciones de cooperación técnica a la emergencia por la COVID-19 en la República Dominicana contempladas en el Plan de país en el marco de los 9 pilares de la OMS, facilitando los mecanismos de compra conjunta a través del Fondo Estratégico, Fondo Rotatorio y Portal de compra de la OMS, garantizando los criterios de calidad, oportunidad y eficiencia | F132: Salud y seguridad social | G132: No aplica | H132: Nacional | I132: 2. Una sociedad con igualdad de derechos y oportunidades | J132: 3. Salud y bienestar | K132: 4.1. Acceso a salud universal: enfoque salud | L132: 4427400.00% | M132: 1,755,150,437.84 | N132: 1,755,150,437.84 | O132: 0 | P132: 0 | Q132: 0
C133: Programa de Abastecimiento de Ambulancias para el Sistema de Salud de la República Dominicana | D133: Banco Centroamericano de Integración Económica | E133: El objetivo del proyecto es fortalecer los servicios de atención a emergencias médicas del sistema de salud de la República Dominicana. Los objetivos específicos son: Incremento del número de ambulancias que se encuentran en el sistema de salud. Disminución del tiempo de respuesta de atención a las emergencias médicas. Mejora en la calidad de atención prehospitalaria. Actualmente existe la necesidad en la República Dominicana de fortalecer el parque vehicular de ambulancias, de forma que se logre disminuir el tiempo de respuesta ante emergencias. Esto brindará un beneficio a los más de 9,100.0 miles de dominicanos que gozan de la cobertura del servicio que brinda el Sistema 9-1-1. En este contexto, la UNOPS brindará el apoyo técnico para la Adquisición de 200 Ambulancias para el Sistema de Salud de la República Dominicana. | F133: Salud y seguridad social | G133: No aplica | H133: Nacional | I133: 2. Una sociedad con igualdad de derechos y oportunidades | J133: 3. Salud y bienestar | K133: 4.1. Acceso a salud universal: enfoque salud | L133: 4544600.00% | M133: 0 | N133: 0 | O133: 0 | P133: 0 | Q133: 0
C134: Programa de Apoyo a la Consolidadción de un Sistema de Protección Social Inclusivo en República Dominicana | D134: Banco Interamericano de Desarrollo | E134: Mejorar las condiciones de vida de la población más vulnerable del país. | F134: Protección y asistencia social | G134: Fortalecimiento institucional | H134: Nacional | I134: 2. Una sociedad con igualdad de derechos y oportunidades | J134: 1. Fin de la pobreza | K134: 3. Hacia una política integral de creación de oportunidades | L134: 4499400.00% | M134: 5,948,770,280.00 | N134: 23,700,280.00 | O134: 5,925,070,000.00 | P134: 0 | Q134: 0
C135: Programa de Desarrollo en Apoyo a la Construcción del Espacio Audiovisual (IBERMEDIA) | D135: Secretaría General Iberoamericana | E135: Creación de un espacio audiovisual iberoamericano por medio de ayudas financieras y a través de convocatorias que están abiertas a todos los productores independientes de cine de los países miembros de América Latina, España y Portugal. | F135: Arte y cultura | G135: No aplica | H135: Nacional | I135: 2. Una sociedad con igualdad de derechos y oportunidades | J135: 11. Ciudades y comunidades sostenibles | K135: 9. Cultura para el cambio | L135: 3579600.00% | M135: 304,400,411.13 | N135: 304,400,411.13 | O135: 0 | P135: 0 | Q135: 0
C136: Programa de Fortalecimiento de la Administración Tributaria e Inversión Pública en República Dominicana | D136: Banco Interamericano de Desarrollo | E136: El objetivo de esta cooperación técnica (CT) es apoyar los esfuerzos del Gobierno de la República Dominicana para lograr su consolidación fiscal a través de tres canales. Primero, está diseñado para apoyar a la Dirección General de Ingresos Internos (DGII) en sus esfuerzos por fortalecer su capacidad institucional mediante la incorporación de buenas prácticas internacionales y la adopción de tecnologías digitales avanzadas para aumentar la eficiencia operativa que contribuye a una mejor gestión de la recaudación de ingresos. En segundo lugar, esta cooperación técnica respaldará los esfuerzos del Ministerio de Hacienda (MH) para fortalecer su capacidad de revisar, evaluar y medir los riesgos fiscales de los proyectos de inversión pública y lograr una mejor supervisión de las empresas estatales. Por último, apoyará el fortalecimiento de la capacidad institucional del Ministerio de Economía, Planificación y Desarrollo (MEPyD) en el diseño de metodologías de evaluación de valor por dinero, análisis de costo-beneficio, comparador del sector público-privado, priorización para la ejecución de servicios públicos. asociación privada y proyectos tradicionales de inversión pública. | F136: Fortalecimiento institucional | G136: No aplica | H136: Nacional | I136: 3. Una economía territorial y sectorialmente integrada, innovadora, diversificada, plural, orientada a la calidad y ambientalmente sostenible | J136: 17. Alianzas para lograr los objetivos | K136: 15. Hacia un estado moderno e institucional | L136: 4401400.00% | M136: 32,587,885.00 | N136: 32,587,885.00 | O136: 0 | P136: 0 | Q136: 0
C137: Programa de Gestión Integral y Sostenible de Residuos Sólidos en el Gran Santo Domingo | D137: Banco Interamericano de Desarrollo | E137: Contribuir con el mejoramiento de la gestión integral de los Residuos Sólidos Urbanos (RSU) en República Dominicana, con especial enfoque en el Gran Santo Domingo, a fin de mitigar los impactos negativos ambientales y sociales de los vertederos a cielo abierto localizados en las áreas objeto de intervención. | F137: Medioambiente y cambio climático | G137: Desarrollo urbano | H137: Provincial | I137: 4. Una sociedad con cultura de producción y consumo sostenibles | J137: 12. Producción y consumo responsables | K137: 24. Implementar la politica nacional de produccion y consumo sostenible | L137: 4495300.00% | M137: 2,666,281,500.00 | N137: 47,400,560.00 | O137: 2,618,880,940.00 | P137: 0 | Q137: 0
C138: Programa de Inversiones de Agua Potable y Saneamiento del INAPA | D138: Banco Interamericano de Desarrollo & Agencia Española de Cooperación Internacional para el Desarrollo | E138: Mejorar el acceso a los servicios de agua potable y saneamiento de manera sostenible, mediante la modernización de los servicios del INAPA, y la implementación de proyectos de construcción, rehabilitación y mejoramiento de acueductos, alcantarillados y saneamiento básico en las provincias: San Pedro de Macorís, San Cristóbal, San Juan, Elías Piña, Barahona, Bahoruco e Independencia. | F138: Agua y saneamiento | G138: Fortalecimiento institucional | H138: Provincial | I138: 2. Una sociedad con igualdad de derechos y oportunidades | J138: 6. Agua limpia y saneamiento | K138: 12. El acceso al agua y mejora del recurso | L138: 4054400.00% | M138: 4,147,549,000.00 | N138: 2,073,774,500.00 | O138: 2,073,774,500.00 | P138: 0 | Q138: 0
C139: Programa de Televisión Educativa IBETv | D139: Secretaría General Iberoamericana & Organización de Estados Americanos | E139: Impulsar la producción, coproducción y difusión de contenidos audiovisuales, con especial énfasis en aquellos de temática educativa, además de culturales y científicos. Para ello, hace uso de la formación de recursos humanos y tecnologías de la información y comunicación a través de la cooperación en el ámbito iberoamericano para incrementar la competitividad de la región. | F139: Arte y cultura | G139: Educación | H139: Nacional | I139: 2. Una sociedad con igualdad de derechos y oportunidades | J139: 4. Educación de calidad | K139: 9. Cultura para el cambio | L139: 3944800.00% | M139: 0 | N139: 0 | O139: 0 | P139: 0 | Q139: 0
C140: Programa Iberoamericano de Acceso a la Justica | D140: Secretaría General Iberoamericana | E140: Promover un mayor acceso a la justicia en Iberoamérica, especialmente de los grupos más vulnerables, a través de un fortalecimiento de las políticas públicas llevadas por los gobiernos de la región, principalmente posicionando el tema de acceso a la justicia en un lugar preferente en la agenda sobre reformas judiciales en Iberoamérica, y a través de la puesta en marcha de reformas en otros ámbitos que incidan directamente en la posibilidad de ofrecer adecuadamente este servicio público. | F140: Justicia | G140: Fortalecimiento institucional | H140: Nacional | I140: 1. Un Estado social y democrático de derecho | J140: 16. Paz, justicia e instituciones sólidas | K140: 2. Seguridad ciudadana | L140: 4092000.00% | M140: 8,140,801.60 | N140: 8,140,801.60 | O140: 0 | P140: 0 | Q140: 0
C141: Programa Iberoamericano de Ciencia y Tecnología para el Desarrollo | D141: Secretaría General Iberoamericana | E141: Contribuir al desarrollo armónico y sostenible de la Región Iberoamericana mediante la cooperación en ciencia, tecnología e innovación. | F141: Ciencia, tecnología, comunicación e innovación | G141: Educación | H141: Nacional | I141: 3. Una economía territorial y sectorialmente integrada, innovadora, diversificada, plural, orientada a la calidad y ambientalmente sostenible | J141: 9. Industria, innovación e infraestructuras | K141: 8. Transformando la educación superior, la ciencia y la tecnología | L141: 3081300.00% | M141: 639,446,721.81 | N141: 639,446,721.81 | O141: 0 | P141: 0 | Q141: 0
C142: Programa Iberoamericano de Cooperación sobre la Situación de las Personas Adultas Mayores | D142: Secretaría General Iberoamericana | E142: Promover y fortalecer las políticas publicas necesarias para una mayor protección de los derechos y desarrollo de los Adultos Mayores en la región, a través de l conocimiento de la situación, el estudio, investigación y evaluación de lo existente con el fin de proponer las mejoras oportunas | F142: Protección y asistencia social | G142: Fortalecimiento institucional | H142: Nacional | I142: 2. Una sociedad con igualdad de derechos y oportunidades | J142: 10. Reducción de las desigualdades | K142: 3. Hacia una política integral de creación de oportunidades | L142: 4352800.00% | M142: 16,307,402.49 | N142: 16,307,402.49 | O142: 0 | P142: 0 | Q142: 0
C143: Programa Iberoamericano de Fortalecimiento de Alfabetización a lo Largo de Vida | D143: Secretaría General Iberoamericana | E143: an es universalizar, en el menor tiempo posible y en cualquier caso antes de, la alfabetización en la región, y ofrecer a la población joven y adulta que no ha completado su escolarización básica la posibilidad de continuidad educativa, al menos hasta la finalización de la educación básica, en el marco de la educación para todos a lo largo de toda la vida. | F143: Educación | G143: No aplica | H143: Nacional | I143: 2. Una sociedad con igualdad de derechos y oportunidades | J143: 4. Educación de calidad | K143: 5. Hacia una educación de calidad con equidad | L143: 4002900.00% | M143: 37,322,991.43 | N143: 37,322,991.43 | O143: 0 | P143: 0 | Q143: 0
C144: Programa Iberoamericano de Fortalecimiento de la Cooperación Sur Sur | D144: Secretaría General Iberoamericana | E144: Fortalecer y dinamizar la Cooperación Horizontal Sur-Sur Iberoamericana, contribuyendo a la calidad e impacto de sus acciones, así como a la promoción del intercambio de experiencias que sean adaptadas a los contextos y prioridades de las políticas públicas de cada país. | F144: Relaciones internacionales | G144: No aplica | H144: Nacional | I144: 1. Un Estado social y democrático de derecho | J144: 17. Alianzas para lograr los objetivos | K144: 27. La política exterior en el Gobierno del Cambio | L144: 4007800.00% | M144: 57,161,348.67 | N144: 57,161,348.67 | O144: 0 | P144: 0 | Q144: 0
C145: Programa Iberoamericano de Museos | D145: Secretaría General Iberoamericana | E145: Contribuir a la articulación de políticas publicas museológicas en Iberoamérica favoreciendo el desarrollo sostenible y la integración regional de los museos de la Conferencia Iberoamericana. | F145: Arte y cultura | G145: No aplica | H145: Nacional | I145: 2. Una sociedad con igualdad de derechos y oportunidades | J145: 11. Ciudades y comunidades sostenibles | K145: 9. Cultura para el cambio | L145: 4492200.00% | M145: 39,697,969.00 | N145: 39,697,969.00 | O145: 0 | P145: 0 | Q145: 0
C146: Programa Iberoamericano de Propiedad Industrial y Promoción del Desarrollo | D146: Secretaría General Iberoamericana | E146: Promover el desarrollo de las sociedades iberoamericanas mediante el uso estratégico de la propiedad industrial en apoyo a las políticas públicas y su aprovechamiento como instrumento de competitividad por parte de los sectores industrial, comercial y de investigación de los países de la región. | F146: Industria | G146: Fortalecimiento institucional | H146: Nacional | I146: 3. Una economía territorial y sectorialmente integrada, innovadora, diversificada, plural, orientada a la calidad y ambientalmente sostenible | J146: 9. Industria, innovación e infraestructuras | K146: 21. El desarrollo industrial, una prioridad | L146: 4090900.00% | M146: 13,230,502.55 | N146: 13,230,502.55 | O146: 0 | P146: 0 | Q146: 0
C147: Programa Iberoamericano de Seguridad Vial | D147: Secretaría General Iberoamericana | E147: Generar y gestionar conocimiento estandarizado en materia de Seguridad Vial que favorezca la toma de decisiones, a través del Observatorio Iberoamericano de la Seguridad Vial (OISEVI). Además de implicar a grupos de la sociedad civil activos en el ámbito de Seguridad Vial en la definición, implementación y evaluación de una política pública integral e inclusiva. | F147: Transporte | G147: No aplica | H147: Nacional | I147: 3. Una economía territorial y sectorialmente integrada, innovadora, diversificada, plural, orientada a la calidad y ambientalmente sostenible | J147: 11. Ciudades y comunidades sostenibles | K147: 26. La transformación del sector transporte | L147: 4346600.00% | M147: 10,814,668.40 | N147: 10,814,668.40 | O147: 0 | P147: 0 | Q147: 0
C148: Programa Iberoamericano sobre los Derechos de Personas con Discapacidad | D148: Secretaría General Iberoamericana | E148: Contribuir a la inclusión de las personas con discapacidad en la vida política, económica y social, a través de políticas que garanticen el pleno goce y ejercicio de sus derechos de conformidad con la Convención de Naciones Unidas sobre los Derechos de las Personas con Discapacidad y la consecución de los Objetivos de Desarrollo Sostenible. | F148: Protección y asistencia social | G148: Justicia | H148: Nacional | I148: 2. Una sociedad con igualdad de derechos y oportunidades | J148: 10. Reducción de las desigualdades | K148: 3. Hacia una política integral de creación de oportunidades | L148: 4346600.00% | M148: 19,983,219.92 | N148: 19,983,219.92 | O148: 0 | P148: 0 | Q148: 0
C149: Programa Integral de Desarrollo Turístico y Urbano de la Ciudad Colonial de Santo Domingo | D149: Banco Interamericano de Desarrollo & Unión Europea | E149: El objetivo principal del IGR es revitalizar la Ciudad Colonial de Santo Domingo (CCSD) en sus aspectos urbanos, económicos y de turismo cultural. | F149: Turismo | G149: Desarrollo urbano | H149: Provincial | I149: 3. Una economía territorial y sectorialmente integrada, innovadora, diversificada, plural, orientada a la calidad y ambientalmente sostenible | J149: 8. Trabajo decente y crecimiento económico | K149: 18. Turismo, una oportunidad | L149: … | M149: 226,797,577.93 | N149: 226,797,577.93 | O149: 0 | P149: 0 | Q149: 0
C150: Programa Interamericano de Datos Abiertos para Prevenir y Combatir la Corrupción (PIDA) | D150: Banco de Desarrollo de América Latina | E150: Fortalecer las capacidades de las instituciones públicas y ciudadanía para la prevención y el combate a la corrupción por medio de la apertura de datos en la República Dominicana. | F150: Fortalecimiento institucional | G150: No aplica | H150: Nacional | I150: 1. Un Estado social y democrático de derecho | J150: No alineado | K150: 16. Enfrentar la corrupción y la impunidad | L150: 4499800.00% | M150: 7,406,337.50 | N150: 5,925,070.00 | O150: 0 | P150: 0 | Q150: 1,481,267.50
C151: Programa Regional para la Promoción de la Empresarialidad Femenina en Centroamérica y República Dominicana | D151: Sistema de Integración Centroamericana | E151: Contribuir a que las mujeres emprendedoras y empresarias de la región SICA generen iniciativas emprendedoras y MIPYMES más competitivas y productivas, apoyadas por un sistema de atención especializado y un fondo no reembolsable de capital semilla. | F151: MIPYMES | G151: Género | H151: Nacional | I151: 2. Una sociedad con igualdad de derechos y oportunidades | J151: 5. Igualdad de género | K151: 1. Empleo formal | L151: 4310100.00% | M151: 88,876,050.00 | N151: 88,876,050.00 | O151: 0 | P151: 0 | Q151: 0
C152: Promoción de Buena Gobernanza Financiera en el Sistema de Estados de la Integración Centroamericana | D152: Sistema de Integración Centroamericana & Agencia Alemana de Cooperación Técnica | E152: Mejorar la Buena Gobernanza Financiera (GFG) en los países del Sistema de Integración Centroamericana (SICA), en cuanto a movilización de recursos, calidad del gasto y transparencia fiscal. | F152: Fortalecimiento institucional | G152: No aplica | H152: Nacional | I152: 3. Una economía territorial y sectorialmente integrada, innovadora, diversificada, plural, orientada a la calidad y ambientalmente sostenible | J152: 8. Trabajo decente y crecimiento económico | K152: 31. Deuda, gastos e ingresos públicos” y “Monetaria, crediticia y cambiaria | L152: 4310700.00% | M152: 296,253,500.00 | N152: 296,253,500.00 | O152: 0 | P152: 0 | Q152: 0
C153: Proyecto de construcción de la línea 2-C del Metro de Santo Domingo | D153: Banco Centroamericano de Integración Económica | E153: Los fondos de la Cooperación Técnica de recuperación contingente serán utilizados exclusivamente para financiar la elaboración de los estudios de viabilidad del Proyecto, teniendo como base el dictamen del BCIE que sustentó esta cooperación. | F153: Transporte | G153: No aplica | H153: Provincial | I153: 3. Una economía territorial y sectorialmente integrada, innovadora, diversificada, plural, orientada a la calidad y ambientalmente sostenible | J153: 11. Ciudades y comunidades sostenibles | K153: 26. La transformación del sector transporte | L153: 4485400.00% | M153: 58,658,193.00 | N153: 58,658,193.00 | O153: 0 | P153: 0 | Q153: 0
C154: Proyecto de Creación y Fortalecimiento de la Red Nacional de Centros de Prototipado y Transferencias Tecnológicas de la República Dominicana 2022-2024 | D154: Organización de Estados Americanos | E154: Establecer una estrategia de formación empresarial para el sector textil de República Dominicana basado en la experiencia de Inexmoda de Colombia/Mejorar el acceso y la diseminación de mecanismos y herramientas tecnológicas y no-tecnológicas y la innovación para las micro, pequeñas y medianas empresas (MIPyME) , a fin de apoyar la reactivación de la economía, afrontando los desafíos de diversa índole impuestos por la pandemia del coronavirus. | F154: MIPYMES | G154: Ciencia, tecnología, comunicación e innovación | H154: Nacional | I154: 3. Una economía territorial y sectorialmente integrada, innovadora, diversificada, plural, orientada a la calidad y ambientalmente sostenible | J154: 8. Trabajo decente y crecimiento económico | K154: 21. El desarrollo industrial, una prioridad | L154: 4457800.00% | M154: 8,792,803.88 | N154: 5,925,070.00 | O154: 0 | P154: 0 | Q154: 2,867,733.88
C155: Proyecto de Facilitación de Comercio y Gestión de Fronteras | D155: Sistema de Integración Centroamericana & Agencia de Estados Unidos para el Desarrollo Internacional | E155: Consolidar en Centroamérica un modelo de Gestión Coordinada de Fronteras (GCF), elemento clave para el proceso de integración centroamericana. | F155: Comercio | G155: Fortalecimiento institucional | H155: Nacional | I155: 3. Una economía territorial y sectorialmente integrada, innovadora, diversificada, plural, orientada a la calidad y ambientalmente sostenible | J155: 17. Alianzas para lograr los objetivos | K155: 20. El comercio, una actividad importante | L155: 4328200.00% | M155: 1,036,887,250.00 | N155: 1,036,887,250.00 | O155: 0 | P155: 0 | Q155: 0
C156: Proyecto de Manejo Sostenible y Adaptación al Cambio Climático del Riego | D156: Banco Interamericano de Desarrollo | E156: Fortalecer las capacidades de Gobierno de República Dominicana en la gestión resiliente del agua de riego y la planificación de las inversiones en este sector, en cuencas priorizadas. | F156: Sector agropecuario | G156: Medioambiente y cambio climático | H156: Regional | I156: 4. Una sociedad con cultura de producción y consumo sostenibles | J156: 6. Agua limpia y saneamiento | K156: 12. El acceso al agua y mejora del recurso | L156: 4450300.00% | M156: 17,775,210.00 | N156: 17,775,210.00 | O156: 0 | P156: 0 | Q156: 0
C157: Proyecto ECOMUJER | D157: Fondo para la Biodiversidad Caribeña | E157: Impulsado el empoderamiento de la mujer en el cuidado y protección medioambiental. | F157: Medioambiente y cambio climático | G157: Género | H157: Provincial | I157: 4. Una sociedad con cultura de producción y consumo sostenibles | J157: 13. Acción por el clima | K157: 23. La sostenibilidad ambiental y el cambio climático en un país insular | L157: 4495800.00% | M157: 2,405,025.00 | N157: 1,661,025.00 | O157: 0 | P157: 0 | Q157: 744,000.00
C158: Proyecto Incorporación de la Resiliencia Climática y las Soluciones Ecológicas en las Inversiones de Recuperación Dominicana | D158: Banco Interamericano de Desarrollo | E158: Incorporar la resiliencia climática en las inversiones a realizarse para recuperación post-COVID-19 en la República Dominicana | F158: Medioambiente y cambio climático | G158: Gestión de riesgo | H158: Nacional | I158: 4. Una sociedad con cultura de producción y consumo sostenibles | J158: 12. Producción y consumo responsables | K158: 23. La sostenibilidad ambiental y el cambio climático en un país insular | L158: 4454600.00% | M158: 38,512,955.00 | N158: 38,512,955.00 | O158: 0 | P158: 0 | Q158: 0
C159: Proyecto para la conservación, educación y reconocimiento de la Pereskia quisqueyana, rosa de Bayahíbe, flor nacional de República Dominicana. | D159: Fondo para la Biodiversidad Caribeña | E159: Conservar, educar y fortalecer el reconocimiento de la Pereskia quisqueyana, rosa de Bayahíbe, como flor nacional en la República Dominicana | F159: Medioambiente y cambio climático | G159: Educación | H159: Provincial | I159: 4. Una sociedad con cultura de producción y consumo sostenibles | J159: 15. Vida de ecosistemas terrestres | K159: 23. La sostenibilidad ambiental y el cambio climático en un país insular | L159: 4431700.00% | M159: 11,069,520.00 | N159: 9,579,520.00 | O159: 0 | P159: 0 | Q159: 1,490,000.00
C160: Reconstrucción Regional del Paisaje de los Ecosistemas Forestales en Centroamérica y República Dominicana | D160: Sistema de Integración Centroamericana & Agencia Alemana de Cooperación Técnica | E160: Aumentar la adaptabilidad ante los efectos del cambio climático y contribuir a un desarrollo sostenible y resiliente en los países del SICA. | F160: Medioambiente y cambio climático | G160: Gestión de riesgo | H160: Nacional | I160: 4. Una sociedad con cultura de producción y consumo sostenibles | J160: 13. Acción por el clima | K160: 23. La sostenibilidad ambiental y el cambio climático en un país insular | L160: 4273600.00% | M160: 1,577,253,634.00 | N160: 1,577,253,634.00 | O160: 0 | P160: 0 | Q160: 0
C161: Red de Archivos Diplomáticos Iberoamericanos | D161: Secretaría General Iberoamericana | E161: ayudar a mejorar el rendimiento administrativo, sirviendo a los ministerios de relaciones exteriores y a los usuarios para tener acceso a la información de manera expedita, a fin de tomar decisiones con eficacia y apoyar la investigación | F161: Relaciones internacionales | G161: Fortalecimiento institucional | H161: Nacional | I161: 1. Un Estado social y democrático de derecho | J161: 17. Alianzas para lograr los objetivos | K161: 27. La política exterior en el Gobierno del Cambio | L161: 3926400.00% | M161: 26,264,931.66 | N161: 26,264,931.66 | O161: 0 | P161: 0 | Q161: 0
C162: Reforma Institucional y Actualización del Plan Maestro de Manejo de Residuos Sólidos del Gran Santo Domingo | D162: Banco Interamericano de Desarrollo | E162: Apoyo para la Reforma Institucional y redacción de la nueva Ley de residuos sólidos y sus reglamentos y Actualización del Plan Maestro de residuos sólidos del Gran Santo Domingo. | F162: Medioambiente y cambio climático | G162: Fortalecimiento institucional | H162: Nacional | I162: 4. Una sociedad con cultura de producción y consumo sostenibles | J162: 12. Producción y consumo responsables | K162: 24. Implementar la politica nacional de produccion y consumo sostenible | L162: 4330400.00% | M162: 46,215,546.00 | N162: 41,475,490.00 | O162: 0 | P162: 0 | Q162: 4,740,056.00
C163: Sectores Prioritarios para la Transformación Productiva | D163: Banco Interamericano de Desarrollo | E163: El objetivo de la cooperación técnica es fortalecer la capacidad del gobierno en desarrollar, implementar y monitorear, estrategias e instrumentos para fomentar la innovación y productividad del país. Específicamente, la cooperación técnica busca fortalecer la capacidad del gobierno en: (i) la coordinación del desarrollo de la Estrategia Nacional de Innovación; y (ii) la coordinación de la generación y monitoreo de los datos e indicadores midiendo la productividad y la innovación en el país | F163: Ciencia, tecnología, comunicación e innovación | G163: Fortalecimiento institucional | H163: Nacional | I163: 3. Una economía territorial y sectorialmente integrada, innovadora, diversificada, plural, orientada a la calidad y ambientalmente sostenible | J163: 8. Trabajo decente y crecimiento económico | K163: 17. Hacia la transformación digital | L163: 4373100.00% | M163: 22,219,012.50 | N163: 20,737,745.00 | O163: 0 | P163: 0 | Q163: 1,481,267.50
C164: Sistema de Información Integrado de Seguridad Vial y Revisión del Plan Estratégico Nacional de Seguridad Vial de Motociclistas 2019 – 2022, acciones de impacto | D164: Banco de Desarrollo de América Latina | E164: Diseñar y elaborar un Sistema Único Nacional de Registros de accidentes y siniestros de tránsito para la República Dominicana. Identificar y priorizar las medidas de alto impacto para construir una hoja de ruta conducente a lograr reducciones en las fatalidades y lesiones graves en las provincias con mayores índices de siniestralidad. Realizar un piloto para el Gran Santo Domingo con énfasis en las motocicletas/motores. | F164: Fortalecimiento institucional | G164: Transporte | H164: Nacional | I164: 4. Una sociedad con cultura de producción y consumo sostenibles | J164: 11. Ciudades y comunidades sostenibles | K164: 26. La transformación del sector transporte | L164: … | M164: 9,628,238.75 | N164: 7,702,591.00 | O164: 0 | P164: 0 | Q164: 1,925,647.75
C165: SISTEMA DE MONITOREO DE LA SEGURIDAD ALIMENTARIA | D165: Sistema de Integración Centroamericana & Organización de las Naciones Unidas para la Alimentación y la Agricultura | E165: Monitorear periódicamente los diferentes estado de la soberanía y seguridad alimentaria y nutricional. | F165: Sector agropecuario | G165: No aplica | H165: Nacional | I165: 4. Una sociedad con cultura de producción y consumo sostenibles | J165: 2. Hambre cero | K165: 23. La sostenibilidad ambiental y el cambio climático en un país insular | L165: 4492700.00% | M165: 0 | N165: 0 | O165: 0 | P165: 0 | Q165: 0
C166: Support for Technical Professional Education | D166: Banco Interamericano de Desarrollo | E166: Brindar asistencia técnica en temas operativos y de implementación de la primera fase del programa de prestamo DR-L1127. | F166: Empleo | G166: Fortalecimiento institucional | H166: Nacional | I166: 3. Una economía territorial y sectorialmente integrada, innovadora, diversificada, plural, orientada a la calidad y ambientalmente sostenible | J166: 8. Trabajo decente y crecimiento económico | K166: 6. Crear oportunidades para la juventud | L166: 4468600.00% | M166: 8,887,605.00 | N166: 8,887,605.00 | O166: 0 | P166: 0 | Q166: 0
C167: Transferencia de la Plataforma Informática Farmacovigilancia Centroamericana Datos de Reacciones Adversas | D167: Sistema de Integración Centroamericana & Agencia Española de Cooperación Internacional para el Desarrollo | E167: Potenciar el desarrollo de capacidades técnicas regionales que permitan el análisis colaborativo de problemas de seguridad con medicamentos. La generación de alertas regionales permitiendo el aporte de la región al proceso de evaluación de la seguridad de los medicamentos a nivel mundial. | F167: Salud y seguridad social | G167: Fortalecimiento institucional | H167: Nacional | I167: 2. Una sociedad con igualdad de derechos y oportunidades | J167: 3. Salud y bienestar | K167: 4.1. Acceso a salud universal: enfoque salud | L167: 4310100.00% | M167: 7,147,115.69 | N167: 7,147,115.69 | O167: 0 | P167: 0 | Q167: 0
C168: Visita Agencia Nacional de Licencia Ambientales de Colombia | D168: Banco Interamericano de Desarrollo | E168: Conocer y analizar el proceso desarrollado en la Agencia Nacional de Licencias Ambientales de Colombia en lo que corresponde a su modernización, digitalización que permite la mejora del procedimiento de otorgamiento haciéndolo más transparente y ágil. | F168: Fortalecimiento institucional | G168: No aplica | H168: Nacional | I168: 1. Un Estado social y democrático de derecho | J168: 16. Paz, justicia e instituciones sólidas | K168: 15. Hacia un estado moderno e institucional | L168: … | M168: 829,509.80 | N168: 829,509.80 | O168: 0 | P168: 0 | Q168: 0
B169: Privada | C169: Acompañamiento al gobierno en el diseño e implementación de programas nacionales, que incluyan acciones integrales en nutrición para la prevención de la malnutrición de los grupos vulnerables | D169: Fundación CIDCA | E169: Desarrollo de iniciativas y productos para el fortalecimiento de las capacidades del Gobierno en nutrición, educación y consejería nutricional de las poblaciones en mayor vulnerabilidad. Dentro de las estrategias utilizadas se encuentran: - diseño de guías de consejería nutricional alineadas a la estrategia de comunicación social y educación nutricional - desarrollo del componente de nutrición junto a PROSOLI y SNS, asistiendo a población beneficiaria con alimentos fortificados para la suplementación en el hogar y alimentos nutritivos | F169: Salud y seguridad social | G169: Fortalecimiento institucional | H169: Nacional | I169: 2. Una sociedad con igualdad de derechos y oportunidades | J169: 2. Hambre cero | K169: No alineado | L169: 4419700.00% | M169: 68,730,812.00 | N169: 53,325,630.00 | O169: 0 | P169: 0 | Q169: 15,405,182.00
C170: Acompañar a las instituciones de salud priorizados en el análisis de los datos para toma de decisiones | D170: Fundación Popular | E170: Establecimiento de Sala de Situación de Salud en centro de salud priorizado | F170: Salud y seguridad social | G170: No aplica | H170: Provincial | I170: 2. Una sociedad con igualdad de derechos y oportunidades | J170: 3. Salud y bienestar | K170: 4.1. Acceso a salud universal: enfoque salud | L170: 4310100.00% | M170: 243,589.11 | N170: 243,589.11 | O170: 0 | P170: 0 | Q170: 0
C171: Apoyar la implementación de guías e instrumentos de monitoreo y evaluación en las instituciones priorizadas y acompañar en la formulación de planes de mejoramiento en las instituciones priorizadas enfocadas en la calidad de la atención | D171: Fundación Popular | E171: Elaboración e implementación de planes de mejora de la calidad de la atención materna y/o neonatal en instituciones sanitarias. | F171: Salud y seguridad social | G171: Fortalecimiento institucional | H171: Provincial | I171: 2. Una sociedad con igualdad de derechos y oportunidades | J171: 3. Salud y bienestar | K171: 4.1. Acceso a salud universal: enfoque salud | L171: 4310100.00% | M171: 797,015.53 | N171: 797,015.53 | O171: 0 | P171: 0 | Q171: 0
C172: Apoyar la implementación y monitoreo del Sistema Informático Perinatal con indicadores de calidad | D172: Fundación Popular | E172: Implementación del Sistema Informático Perinatal PLUS en la maternidad Nuestra Señora de La Altagracia | F172: Salud y seguridad social | G172: No aplica | H172: Provincial | I172: 2. Una sociedad con igualdad de derechos y oportunidades | J172: 3. Salud y bienestar | K172: 4.1. Acceso a salud universal: enfoque salud | L172: 4310100.00% | M172: 184,338.41 | N172: 184,338.41 | O172: 0 | P172: 0 | Q172: 0
C173: Apoyar los procesos de capacitación en las instituciones priorizadas en el uso de los instrumentos de monitoreo y evaluación del cumplimiento de los protocolos | D173: Fundación Popular & Fondo de Población de las Naciones Unidas | E173: Desarrollar un hospital modelo de referencia nacional para la reducción de la mortalidad materna y expandirlo a 4 centros de salud de referencia y fortalecer las capacidades de proveedores de la salud atención prenatal, cuidados obstetricos de emergencia, tecnologia anticonceptiva y adherencia a protocolos | F173: Salud y seguridad social | G173: Fortalecimiento institucional | H173: Municipal | I173: 2. Una sociedad con igualdad de derechos y oportunidades | J173: 3. Salud y bienestar | K173: 4.1. Acceso a salud universal: enfoque salud | L173: 4310100.00% | M173: 7,076,570.62 | N173: 7,076,570.62 | O173: 0 | P173: 0 | Q173: 0
C174: Apoyo para el fortalecimiento de acciones de preparación y respuesta ante desastres | D174: Global Support and Development | E174: Fortalecer las capacidades institucionales incluyendo el nivel local en materia de preparación y respuesta a emergencias mediante la colaboración con los gobiernos y las comunidades locales para la toma de decisión oportuna de los actores clave, a partir de escenarios de riesgos de desastres por eventos naturales y los efectos de cambio climático orientadas a la implementación de acciones preventivas efectivas y cerrando las brechas existentes. | F174: Gestión de riesgo | G174: Fortalecimiento institucional | H174: Nacional | I174: 4. Una sociedad con cultura de producción y consumo sostenibles | J174: 13. Acción por el clima | K174: 23. La sostenibilidad ambiental y el cambio climático en un país insular | L174: 4572700.00% | M174: 8,882,910.57 | N174: 8,882,910.57 | O174: 0 | P174: 0 | Q174: 0
C175: Caribbean Engagement - Dominican Republic Intervention | D175: Blue Nature Alliance | E175: Establecer las condiciones habilitantes necesarias para establecer el área protegida oceánica en la Cresta de la Beata, definida como Santuario Marino Orlando Jorge Mera, e identificación de posibles espacios adicionales para la conservación marina, así como proveer de las bases para la Gestión Efectiva de las áreas marinas protegidas océanicas de gran escala. | F175: Medioambiente y cambio climático | G175: No aplica | H175: Nacional | I175: 4. Una sociedad con cultura de producción y consumo sostenibles | J175: 14. Vida submarina | K175: 23. La sostenibilidad ambiental y el cambio climático en un país insular | L175: 4526100.00% | M175: 24,121,000.85 | N175: 24,121,000.85 | O175: 0 | P175: 0 | Q175: 0
C176: Convenio de Colaboración Interinstitucional entre el Programa Supérate y Heartland Alliance International | D176: Heartland Alliance International | E176: El programa Supérate y Heartland Alliance International, aúnan esfuerzos mediante el cumplimiento de las iniciativas de suministrar asistencias técnicas, sociales y de cualquier otra índole que se entiendan pertinente, con el interés de incentivar programas educativos , de manera gratuita y sostenibles en el tiempo, fomentando estos programas mediante iniciativas piloto de capacitación dirigido a las diferentes comunidades beneficiarios del programa Supérate y Heartland Alliance International, enfocados en lograr la inserción laboral y fortalecimiento de los medios de vida. | F176: Protección y asistencia social | G176: Empleo | H176: Municipal | I176: 2. Una sociedad con igualdad de derechos y oportunidades | J176: 8. Trabajo decente y crecimiento económico | K176: 3. Hacia una política integral de creación de oportunidades | L176: 4447700.00% | M176: 0 | N176: 0 | O176: 0 | P176: 0 | Q176: 0
C177: Desarrollo de Portafolio de Inversiones Bancables para financiar proyectos de cambio climático en la República Dominicana | D177: NDC Partnership | E177: Desarrollar carteras de inversión financiables a nivel de cuenca que incluyan una estrategia financiera a corto / mediano plazo. | F177: Medioambiente y cambio climático | G177: Agua y saneamiento | H177: Nacional | I177: 4. Una sociedad con cultura de producción y consumo sostenibles | J177: 13. Acción por el clima | K177: 23. La sostenibilidad ambiental y el cambio climático en un país insular | L177: 4413600.00% | M177: 0 | N177: 0 | O177: 0 | P177: 0 | Q177: 0
C178: Desarrollo de un portal web de datos sobre el Cambio Climático en la República Dominicana | D178: NDC Partnership | E178: Construir un repositorio de datos en línea que permita al público en general y a los tomadores de decisión interactuar, consultar, filtrar y descargar conjuntos de datos de interés de Cambio Climático, Gestión de Riesgo y temas afines, para impulsar la concientización y promover el desarrollo de medidas de Adaptación al Cambio Climático. | F178: Medioambiente y cambio climático | G178: Fortalecimiento institucional | H178: Nacional | I178: 4. Una sociedad con cultura de producción y consumo sostenibles | J178: 13. Acción por el clima | K178: 30. Gestión de datos | L178: 4412400.00% | M178: 1,066,512.60 | N178: 1,066,512.60 | O178: 0 | P178: 0 | Q178: 0
C179: Diplomado en nutrición | D179: DSM | E179: Esta acción forma parte de los compromisos asumidos para fortalecer las competencias técnicas del personal responsable del diseño e implementación de las políticas, programas y proyectos con incidencia en nutrición con el propósito de eficientizar la respuesta al contexto nutricional actual, desde un enfoque integral e interinstitucional, esta focalizado a representantes de instituciones de Gobierno del sector salud y nutrición. | F179: Salud y seguridad social | G179: Fortalecimiento institucional | H179: Nacional | I179: 2. Una sociedad con igualdad de derechos y oportunidades | J179: 2. Hambre cero | K179: No alineado | L179: 4428700.00% | M179: 2,784,782.90 | N179: 2,784,782.90 | O179: 0 | P179: 0 | Q179: 0
C180: Diseño e implementación de una hoja de ruta para establecer nuevas áreas marinas protegidas y pilares fundamentales de gestión para garantizar una efectiva y duradera conservación del océano. | D180: Blue Nature Alliance | E180: Diseñar e implementar una hoja de ruta destinada a proteger áreas clave de las aguas jurisdiccionales del país a través del establecimiento de nuevas áreas marinas protegidas en atención al interés político del país de alcanzar el 30% de protección de los océanos y establecer pilares fundamentales para garantizar una gestión efectiva y duradera de áreas marinas protegidas nacionales de gran escala con un enfoque en planes de manejo, control y vigilancia, y financiamiento sostenible. | F180: Medioambiente y cambio climático | G180: No aplica | H180: Nacional | I180: 4. Una sociedad con cultura de producción y consumo sostenibles | J180: 14. Vida submarina | K180: 23. La sostenibilidad ambiental y el cambio climático en un país insular | L180: … | M180: 31,050,000.00 | N180: 31,050,000.00 | O180: 0 | P180: 0 | Q180: 0
C181: Documenting Diversity Amidst a Mass Extinction: Generating a Conservation Framework for the Flora of Hispaniola | D181: The Field Museum & Walder Foundation | E181: El propósito de este convenio es promover la cooperación en los campos de la enseñanza e investigación entre TFM y JBN, en relación con el proyecto “Documenting Diversity Amidst a Mass Extinction: Generating a Conservation Framework for the Flora of Hispaniola”, (en adelante, “el proyecto) financiado por el Walder Foundation. De acuerdo con este objetivo, ambas instituciones cooperarán en acciones de interés recíproco de acuerdo en investigación, conservación, y asistencia técnica con el fin de avanzar en el estudio de la flora de la República Dominicana. | F181: Medioambiente y cambio climático | G181: No aplica | H181: Nacional | I181: 4. Una sociedad con cultura de producción y consumo sostenibles | J181: 15. Vida de ecosistemas terrestres | K181: 23. La sostenibilidad ambiental y el cambio climático en un país insular | L181: 4541200.00% | M181: 4,325,301.10 | N181: 4,325,301.10 | O181: 0 | P181: 0 | Q181: 0
C182: Estrategia de estadísticas de genero de Republica Dominicana 2021-2024 | D182: Alianza en Estadísticas para el Desarrollo del Siglo 21 | E182: Determinar las pautas necesarias para guiar el accionar de la ONE en los próximos cuatro años en materia de estadísticas de género. En este sentido, el establecimiento de los objetivos ha considerado las prioridades del país en cuanto a necesidades de información tanto para responder de forma efectiva a los acuerdos internacionales, como para responder a la legislación nacional y los instrumentos de planificación vigentes. | F182: Fortalecimiento institucional | G182: Género | H182: Nacional | I182: 1. Un Estado social y democrático de derecho | J182: 5. Igualdad de género | K182: 30. Gestión de datos | L182: 4424500.00% | M182: 0 | N182: 0 | O182: 0 | P182: 0 | Q182: 0
C183: Fortaleciendo la resiliencia ante eventos climáticos y otras amenazas naturales y promoviendo la sostenibilidad social y ambiental en la República Dominicana | D183: Fundación Popular & Mondelez Europe GmbH & Programa de las Naciones Unidas para el Desarrollo/Programa Mundial de Alimentos | E183: Producto 1: Fortalecida la resiliencia ante eventos climáticos y otras amenazas naturales promovida la sostenibilidad social y ambiental y en RD. Metas: 1. Portafolio sobre oportunidades y condiciones de inversión favorable a los ODS elaborado. 2. Catálogo de prácticas prometedoras para la Economía Circular elaborado. 3. Al menos 27 prácticas promisorias del sector empresarial reconocidas. 4. Segunda Encuesta de Percepción sobre el Cambio Climático realizada, con resultados desagregados por sexo y grupos de edades. 5. Número de funcionarios, desagregados por sexo, de instituciones públicas y privadas formados en género responsivo y Cambio Climático. 6. Metas e indicadores del Plan de Acción NDC con enfoque género responsivo. 7. Comites PMR fortalecidos | F183: Gestión de riesgo | G183: Medioambiente y cambio climático | H183: Nacional | I183: 3. Una economía territorial y sectorialmente integrada, innovadora, diversificada, plural, orientada a la calidad y ambientalmente sostenible | J183: 12. Producción y consumo responsables | K183: 23. La sostenibilidad ambiental y el cambio climático en un país insular | L183: 4492700.00% | M183: 4,934,398.30 | N183: 4,934,398.30 | O183: 0 | P183: 0 | Q183: 0
C184: Fortalecimiento de las capacidades de respuesta a desastres y a la resiliencia en la República Dominicana | D184: Global Support and Development | E184: Fortalecer las capacidades de respuesta ante desastres y la resiliencia en la República Dominicana | F184: Gestión de riesgo | G184: Fortalecimiento institucional | H184: Nacional | I184: 4. Una sociedad con cultura de producción y consumo sostenibles | J184: 13. Acción por el clima | K184: 23. La sostenibilidad ambiental y el cambio climático en un país insular | L184: 4563500.00% | M184: 1,238,007.23 | N184: 1,238,007.23 | O184: 0 | P184: 0 | Q184: 0
C185: Fortalecimiento de las capacidades institucionales para la seguridad alimentaria nutricional de las personas vulnerables en situaciones de emergencias. | D185: Mastercard Foundation | E185: Acciones de prevencion de la desnutricion en las unidades de atencion primaria afectadas por el Huracan Fiona, Capacitaciones a personal de salud al respecto y entrega de alimentos complementarios fortificados. Como respuesta a los aguaceros de noviembre 2023, se distribuyeron a las UNAP, INAIPI, INABIE, SUPERATE y SNS alimentos complementarios fortificados. Pilotear un modelo de fortalecimiento al sistema de proteccion social con acciones integrales de nutricion, preparacion y respuesta a emergencias. Instalacion de huertos comunitarios. | F185: Fortalecimiento institucional | G185: Protección y asistencia social | H185: Provincial | I185: 2. Una sociedad con igualdad de derechos y oportunidades | J185: 2. Hambre cero | K185: 11. Población rural, desarrollo agropecuario y pesquero | L185: 4492700.00% | M185: 12,087,142.80 | N185: 12,087,142.80 | O185: 0 | P185: 0 | Q185: 0
C186: Fortalecimiento de las capacidades nacionales para fomentar la ampliación del arroz fortificado en la República Dominicana | D186: DSM | E186: Impulsar un marco normativo que permita la inclusión del arroz fortificado en los procesos de contratación pública del CONASAN/Sistemas de aseguramiento de la calidad de los alimentos/Cambio de comportamiento social y comunicación (SBCC) | F186: Salud y seguridad social | G186: Fortalecimiento institucional | H186: Nacional | I186: 3. Una economía territorial y sectorialmente integrada, innovadora, diversificada, plural, orientada a la calidad y ambientalmente sostenible | J186: 3. Salud y bienestar | K186: 11. Población rural, desarrollo agropecuario y pesquero | L186: 4419700.00% | M186: 3,258,788.50 | N186: 3,258,788.50 | O186: 0 | P186: 0 | Q186: 0
C187: Fortalecimiento del sistema de salud y la calidad de atención a las personas con diabetes e hipertensión | D187: World Diabetes Foundation | E187: Fortalecer el sistema de salud en República Dominicana, mejorando la prevención, acceso y calidad de la atención de las personas con diabetes, hipertensión y comorbilidad de TB | F187: Salud y seguridad social | G187: Protección y asistencia social | H187: Nacional | I187: 2. Una sociedad con igualdad de derechos y oportunidades | J187: 3. Salud y bienestar | K187: 4.1. Acceso a salud universal: enfoque salud | L187: 4497200.00% | M187: 63,560,889.21 | N187: 50,170,183.61 | O187: 0 | P187: 0 | Q187: 13,390,705.60
C188: Fortalecimiento servicios salud para la reducción de la mortalidad materna y neonatal | D188: Fundación Popular & Fondo de Población de las Naciones Unidas | E188: Desarrollo de hospital con modelo de gestión para la reducción de la mortalidad materna y neonatal, incluye fortalecimiento de competencias del personal de salud en cuidados prenatales y obstétricos de emergencia, así como en anticoncepción y, equipamiento con apoyo de la Fundación Popular. Este modelo se desarrolla en el Hospital Universitario Maternidad Nuestra Señora de La Altagracia e inicia expansión en Maternidad Reneé Klang Vda. Guzmán y el Municipal de Engombe | F188: Fortalecimiento institucional | G188: Salud y seguridad social | H188: Nacional | I188: 2. Una sociedad con igualdad de derechos y oportunidades | J188: 3. Salud y bienestar | K188: 4.1. Acceso a salud universal: enfoque salud | L188: 4492700.00% | M188: 0 | N188: 0 | O188: 0 | P188: 0 | Q188: 0
C189: Implementación de un piloto para mejorar la adopción de estándares de calidad en servicios de salud sexual y reproductiva de adolescentes | D189: Good Neighbors & Fondo de Población de las Naciones Unidas & Programa de las Naciones Unidas para el Desarrollo | E189: Promover el desarrollo de estrategias que faciliten el acceso y demanda a los anticonceptivos y fortalezcan la calidad de la atención en salud sexual y reproductiva. | F189: Salud y seguridad social | G189: Género | H189: Provincial | I189: 2. Una sociedad con igualdad de derechos y oportunidades | J189: 3. Salud y bienestar | K189: 4.1. Acceso a salud universal: enfoque salud | L189: 4361700.00% | M189: 5,029,554.33 | N189: 5,029,554.33 | O189: 0 | P189: 0 | Q189: 0
C190: Impulsando la Autonomía Económica y la Participación de las Mujeres en la Provincia Valverde- FASE II | D190: Fundación Popular & Programa de las Naciones Unidas para el Desarrollo & Reino Unido | E190: El proyecto Impulsando la Autonomía económica y participación de las mujeres en la provincia de Valverde» es implementado por el PNUD y la Agencia de Desarrollo Económico Local de Valverde (ADELVA), con el fin de visibilizar y reconocer a las mujeres como agentes claves dinamizadoras y aportadas al desarrollo económico y social del territorio y a nivel nacional promoviendo contextos más igualitarios. | F190: Género | G190: No aplica | H190: Provincial | I190: 2. Una sociedad con igualdad de derechos y oportunidades | J190: 5. Igualdad de género | K190: 7. Igualdad de género, empoderamiento de la mujer y la No Violencia de género | L190: 4313200.00% | M190: 13,848,251.36 | N190: 13,848,251.36 | O190: 0 | P190: 0 | Q190: 0
C191: Informe País Sobre Apoyo de las Estadísticas (CRESS) | D191: Alianza en Estadísticas para el Desarrollo del Siglo 21 | E191: Mejorar el financiamiento de las diversas iniciativas de desarrollo del sistema estadístico nacional (SEN) mediante un modelo de información integral sobre el apoyo financiero otorgado a las diversas actividades estadísticas de la Republica Dominicana. | F191: Fortalecimiento institucional | G191: No aplica | H191: Nacional | I191: 1. Un Estado social y democrático de derecho | J191: 16. Paz, justicia e instituciones sólidas | K191: 30. Gestión de datos | L191: 4445400.00% | M191: 974,332.16 | N191: 974,332.16 | O191: 0 | P191: 0 | Q191: 0
C192: Iniciativa Madres y Recién Nacidos Bien Cuidados | D192: Grupo Ramos & Fondo de las Naciones Unidas para la Infancia | E192: Es un modelo de mejora continua de la calidad y humanización de los servicios de atención materna y neonatal en los centros de salud. También incluye la implementación de la certificación del Ministerio de Salud que reconoce las buenas practicas en relación a la adherencia a los protocolos y al logro de reducción de la muertes maternas y neonatales en los hospitales, que tuvo como origen la resolución ministerial 000002 del 15-1-2020. | F192: Salud y seguridad social | G192: No aplica | H192: Municipal | I192: 2. Una sociedad con igualdad de derechos y oportunidades | J192: 3. Salud y bienestar | K192: 4.1. Acceso a salud universal: enfoque salud | L192: 4340500.00% | M192: 124,426,470.00 | N192: 124,426,470.00 | O192: 0 | P192: 0 | Q192: 0
C193: Marco Normativo actualizado y/o elaborado asociado a Salud Sexual y Reproductivo | D193: Fundación Popular & Fondo de las Naciones Unidas para la Infancia & Fondo de Población de las Naciones Unidas | E193: Documentos normativos actualizados y/o elaborados | F193: Salud y seguridad social | G193: No aplica | H193: Nacional | I193: 2. Una sociedad con igualdad de derechos y oportunidades | J193: 3. Salud y bienestar | K193: 4.1. Acceso a salud universal: enfoque salud | L193: 4492700.00% | M193: 0 | N193: 0 | O193: 0 | P193: 0 | Q193: 0
C194: Mejora de las capacidades para la gestión de riesgo frente a eventos hidrometeorológicos en la provincia de San Juan | D194: CESAL ONG | E194: Mejorar las condiciones de adaptación al cambio climático y el sistema de Reducción de Riesgos de Desastres en los municipios Vallejuelo y el Cercado de la provincia San Juan de la República Dominicana | F194: Gestión de riesgo | G194: Sector agropecuario | H194: Municipal | I194: 4. Una sociedad con cultura de producción y consumo sostenibles | J194: 13. Acción por el clima | K194: 23. La sostenibilidad ambiental y el cambio climático en un país insular | L194: 4310200.00% | M194: 381,950.02 | N194: 381,950.02 | O194: 0 | P194: 0 | Q194: 0
C195: Memorándum de Cooperación Internacional entre los Curadores de la Universidad de Missouri, en representación de la universidad de Ciencias y Tecnología de Missouri y el Ministerio de Energía y Minas de la Rep. Dom. | D195: Missouri University of Sciencie and Technology | E195: Promover la cooperación en la enseñanza, la investigación y la consulta, para facilitar el intercambio internacional de ideas y mejorar los esfuerzos académicos de las partes participantes. | F195: Minería | G195: No aplica | H195: Nacional | I195: 3. Una economía territorial y sectorialmente integrada, innovadora, diversificada, plural, orientada a la calidad y ambientalmente sostenible | J195: No alineado | K195: 13. Energía permanente y de calidad | L195: 4407500.00% | M195: 0 | N195: 0 | O195: 0 | P195: 0 | Q195: 0
C196: Memorándum de Entendimiento (MOU), negociado y consensuado, entre el Ministerio de Energía y Minas de la República Dominicana (MEM), el Servicio geológico Nacional (SGN) y el Centro de Estudios de Geodesia de Brasil (CENEGEO). | D196: Centro de Estudios de Geodesia | E196: Planificación e implementación de actividades relacionadas con el desarrollo de la Referencia de Gravedad (absoluta) y la red de gravedad relativa; así como la asistencia técnica, el asesoramiento y el intercambio de información. | F196: Medioambiente y cambio climático | G196: No aplica | H196: Nacional | I196: No alineado | J196: No alineado | K196: No alineado | L196: … | M196: 0 | N196: 0 | O196: 0 | P196: 0 | Q196: 0
C197: NDC Partnership Action Fund (Fondo de Acción de la Asociación NDC) | D197: NDC Partnership | E197: Su objetivo es ayudar a los a los países en desarrollo miembros a acelerar la aplicación de sus Contribuciones (NDC) y colmar las lagunas en el apoyo. República Dominicana es un miembro activo. | F197: Medioambiente y cambio climático | G197: No aplica | H197: Nacional | I197: 4. Una sociedad con cultura de producción y consumo sostenibles | J197: 13. Acción por el clima | K197: 23. La sostenibilidad ambiental y el cambio climático en un país insular | L197: 4492700.00% | M197: 0 | N197: 0 | O197: 0 | P197: 0 | Q197: 0
C198: Plataforma multi actor para la gestión integral de plásticos y residuos | D198: The Ocean Cleanup & Programa de las Naciones Unidas para el Desarrollo & Países Bajos/Programa para el Medio Ambiente de Naciones Unidas | E198: Establecer una plataforma multi actor para la gestión integral de plásticos y residuos, a fin de contribuir con las metas de Producción y Consumo Sostenible en la República Dominicana. | F198: Medioambiente y cambio climático | G198: No aplica | H198: Provincial | I198: 4. Una sociedad con cultura de producción y consumo sostenibles | J198: 13. Acción por el clima | K198: 24. Implementar la politica nacional de produccion y consumo sostenible | L198: 4387300.00% | M198: 142,933,307.64 | N198: 46,571,050.20 | O198: 0 | P198: 0 | Q198: 96,362,257.44
C199: PORTALENTO RD | D199: Fundación ONCE | E199: Creación y fortalecimento de las capacidades y marcos normativos para la inclusión de las personas con discapacidad en el mercado laboral dominicano, creando de esta manera medios de vida. La estrategia consiste en la coordinación de los diferentes sectores que confluyen como empleadores: sector público, reguladores de sectores y setor privado. | F199: Protección y asistencia social | G199: Empleo | H199: Nacional | I199: 2. Una sociedad con igualdad de derechos y oportunidades | J199: 10. Reducción de las desigualdades | K199: 27. La política exterior en el Gobierno del Cambio | L199: 4503300.00% | M199: 5,171,401.10 | N199: 5,171,401.10 | O199: 0 | P199: 0 | Q199: 0
C200: Posicionamiento de la fortificación del arroz como política pública para la prevención de las deficiencias de micronutrientes | D200: DSM | E200: Fortalecimiento de las capacidades de Gobierno en el monitoreo de la calidad y cumplimiento de los requerimientos nutritivos del arroz fortificado. De igual forma, realización de actividades de incidencia para incluir el arroz fortificado en las compras gubernamentales. | F200: Sector agropecuario | G200: No aplica | H200: Nacional | I200: 2. Una sociedad con igualdad de derechos y oportunidades | J200: 2. Hambre cero | K200: No alineado | L200: 4419700.00% | M200: 2,962,535.00 | N200: 2,962,535.00 | O200: 0 | P200: 0 | Q200: 0
C201: Preservación de la memoria cinematográfica dominicana - (Preservation of the Dominican Film Memory) | D201: Universidad de las Indias Occidentales | E201: Lograr la preservación a largo plazo de los archivos cinematográficos del cine dominicano/Lograr un correcto manejo y transferencia de los materiales cinematográficos dominicanos | F201: Arte y cultura | G201: Fortalecimiento institucional | H201: Nacional | I201: 2. Una sociedad con igualdad de derechos y oportunidades | J201: No alineado | K201: 9. Cultura para el cambio | L201: … | M201: 6,363,999.19 | N201: 2,586,944.81 | O201: 0 | P201: 0 | Q201: 3,777,054.37
C202: Programa Cocoa Life en la República Dominicana – Fase II | D202: Mondelez Europe GmbH | E202: Contribuir con los medios de subsistencia del productor de cacao y mejorar la producción de mismo dentro de su cadena de suministro | F202: Sector agropecuario | G202: No aplica | H202: Provincial | I202: 3. Una economía territorial y sectorialmente integrada, innovadora, diversificada, plural, orientada a la calidad y ambientalmente sostenible | J202: 2. Hambre cero | K202: 11. Población rural, desarrollo agropecuario y pesquero | L202: 4325200.00% | M202: 33,421,897.85 | N202: 33,421,897.85 | O202: 0 | P202: 0 | Q202: 0
C203: Programa de Vigilancia Epidemiológica, Prevención y Reacción Rápida Fitosanitaria para la Palomilla del Tomate (Tuta absoluta) en República Dominicana. En coordinación con la International Executive Service Corps (IESC) | D203: Cuerpo de Servicio Ejecutivo Internacional | E203: Establecer la Red de Trampeo preventivo para la palomilla del Tomate - Tuta absoluta, Meyrick a nivel Nacional. | F203: Sector agropecuario | G203: No aplica | H203: Nacional | I203: 3. Una economía territorial y sectorialmente integrada, innovadora, diversificada, plural, orientada a la calidad y ambientalmente sostenible | J203: 12. Producción y consumo responsables | K203: 11. Población rural, desarrollo agropecuario y pesquero | L203: … | M203: 0 | N203: 0 | O203: 0 | P203: 0 | Q203: 0
... 936 more rows

Sheet Ficha de iniciativa
E6: Proyecto de Inclusión Productiva y Resiliencia de las Familias Rurales Pobres (PRORURAL) | AJ6: Iniciativa | AK6: Column1
AD7: riesgo | AE7: =IFERROR(_xlfn.XLOOKUP(E6,Registro1[Nombre de la iniciativa],Registro1[Nivel de riesgo de la ejecución según lo previsto de la iniciativa al momento de reporte]),"") -> Medio → | AJ7: Proyecto de Inclusión Productiva y Resiliencia de las Familias Rurales Pobres (PRORURAL) | AK7: =_xlfn._xlws.FILTER('Ficha de iniciativa'!$AJ$7:$AJ$1136,ISNUMBER(SEARCH(E6,'Ficha de iniciativa'!$AJ$7:$AJ$1136)),"Sin resultados") -> Proyecto de Inclusión Productiva y Resiliencia de las Familias Rurales Pobres (PRORURAL)
AD8: Ejecutor | AE8: =IFERROR(_xlfn.XLOOKUP(E6,Registro1[Nombre de la iniciativa],Registro1[Institución responsable de la ejecución física]),"") -> Ministerio de Economía, Planificación y Desarrollo (MEPyD) | AJ8: Mejoramiento de obras públicas para reducir el riesgo de desastres (PRORESILIENCIA)
AD9: Cooperante | AE9: =IFERROR(_xlfn.XLOOKUP(E6,Registro1[Nombre de la iniciativa],Registro1[Socios Cooperantes]),"") -> Fondo Internacional para el Desarrollo Agrícola | AJ9: AP - Programa de Apoyo a la Reforma de la Administración Pública y Financiera de la Rep.Dom y la Movilización de los Recursos Nacionales (PROGEF)
AD10: Objetivo general | AE10: =IFERROR(_xlfn.XLOOKUP(E6,Registro1[Nombre de la iniciativa],Registro1[Objetivo general]),"") -> Promover actividades generadoras de ingresos y la seguridad alimentaria y nutricional de las familias rurales, aumentar la resiliencia y el acceso a los mercados de productos, servicios y empleo de las familias beneficiarias. | AJ10: AP -Coordinación en la prevención de la violencia de género (PVG) en línea con los Objetivos de Desarrollo Sostenible (ODS) en la República Dominicana (C-PREV)
AD11: Estado | AE11: =IFERROR(_xlfn.XLOOKUP(E6,Registro1[Nombre de la iniciativa],Registro1[Último estado al reporte]),"") -> Atrasos en la ejecución | AJ11: AP - Programa de Apoyo a la Educación y Formación Técnico/Profesional (PRO-ETP II)
A12: 12.43" | AD12: Resultados esperados | AE12: =IFERROR(_xlfn.XLOOKUP($E$6,Registro1[Nombre de la iniciativa],Registro1[Resultados]),"") -> 1. Fomentar la inclusión productiva de las familias beneficiarias y mejorar la resiliencia de las familias pobres rurales. 2. Generar un proceso de aprendizaje para la definición de una estrategia de focalización y modelos de intervención para escalar la inclusión productiva y la resiliencia de las familias. 3. Contribuir de manera efectiva a la inclusión productiva y la resiliencia de las familias rurales al proceso de aprendizaje y al diálogo interinstitucional | AJ12: AP-Programa de Apoyo a la Reforma de la Administración Pública y a la Calidad de los Servicios Públicos (PARAP II)
AD13: Temática | AE13: =IFERROR(_xlfn.XLOOKUP(E6,Registro1[Nombre de la iniciativa],Registro1[Temática principal]),"") -> Desarrollo rural | AJ13: Programa Fortalecimiento de la Calidad para el Desarrollo de las MIPYMES
AD14: Instrumento | AE14: =IFERROR(_xlfn.XLOOKUP($E$6,Registro1[Nombre de la iniciativa],Registro1[Código SINACID]),"") -> CI18-FBLFIDA0-N00001 | AJ14: Componente de República Dominicana del Programa Centroamericano de Gestión Integral de la Roya del Café (PROCAGICA-RD)
AD15: Via | AE15: =IFERROR(_xlfn.XLOOKUP($E$6,Registro1[Nombre de la iniciativa],Registro1[Características de los países, organismos o agencias cooperantes 1]),"") -> Norte-Sur | AJ15: Financiamiento (TCF-I) "Programa de Fortalecimiento e Internacionalización de PYMES de la República Dominicana"
AD16: Tipo de iniciativa | AE16: =IFERROR(_xlfn.XLOOKUP($E$6,Registro1[Nombre de la iniciativa],Registro1[Tipo de iniciativa]),"") -> Capital fijo | AJ16: Financiamiento (TCF-I) "Programa Multisectorial para la Reducción del Matrimonio Infantil y las Uniones Tempranas en la República Dominicana"
AD17: Condiciones | AE17: =IFERROR(_xlfn.XLOOKUP($E$6,Registro1[Nombre de la iniciativa],Registro1[Condiciones de la cooperación]),"") -> Blending | AJ17: Financiamiento (TCF-I) "Proyecto Actividades para el fortalecimiento de la producción y la difusión del Sistema de Indicadores Económicos para el monitoreo de la END y de los compromisos internacionales asumidos por la República Dominicana"
AD18: Naturaleza | AE18: =IFERROR(_xlfn.XLOOKUP($E$6,Registro1[Nombre de la iniciativa],Registro1[Naturaleza de los recursos]),"") -> Cooperación financiera | AJ18: Aumento de la Eficiencia en la Gestión del Agua y Saneamiento (CIF-INAPA)
AD19: Instrumento | AE19: =IFERROR(_xlfn.XLOOKUP($E$6,Registro1[Nombre de la iniciativa],Registro1[Código SINACID]),"") -> CI18-FBLFIDA0-N00001 | AJ19: Reducción de Pérdida en la Distribución de Electricidad (CIF-CDEE)
AD20: Alcance | AE20: =IFERROR(_xlfn.XLOOKUP($E$6,Registro1[Nombre de la iniciativa],Registro1[Alcance territorial]),"") -> Provincial | AJ20: Programa Facilidad de Cooperación Técnica (TCF II)
AD21: ubicacion | AE21: =IFERROR(_xlfn.XLOOKUP($E$6,Registro1[Nombre de la iniciativa],Registro1[Especifique el territorio]),"") -> San Juan/Elías Piña/Independencia/Pedernales/Barahona/Baoruco/Azua/Monte Plata/Monte Cristi/Dajabón/Santiago Rodríguez | AJ21: TCF II - Asistencia Técnica para definición de mapa de procesos
AD22: ODS | AE22: =IFERROR(_xlfn.XLOOKUP($E$6,Registro1[Nombre de la iniciativa],Registro1[Objetivo de Desarrollo Sostenible]),"") -> 2. Hambre cero | AJ22: TCF II - Asistencia Técnica para la sistematización y digitalización de las informaciones de la Cooperación Internacional
AD23: END | AE23: =IFERROR(_xlfn.XLOOKUP($E$6,Registro1[Nombre de la iniciativa],Registro1[Eje END]),"") -> 2. Una sociedad con igualdad de derechos y oportunidades | AJ23: TCF II - Asistencia Técnica para el Estudio, diseño y elaboración de los instrumentos de las políticas públicas para la Inclusión de la visión de ordenamiento territorial
AD24: PNPSP | AE24: =IFERROR(_xlfn.XLOOKUP($E$6,Registro1[Nombre de la iniciativa],Registro1[Política priorizada PNPSP]),"") -> 11. Población rural, desarrollo agropecuario y pesquero | AJ24: TCF II - Asistencia Técnica para el Desarrollo y análisis de línea de comunicación ciudadana de los estudios y propuestas de políticas que desarrolla MEPyD
AD25: Hipotesis | AE25: =IFERROR(_xlfn.XLOOKUP($E$6,Registro1[Nombre de la iniciativa],Registro1[Hipótesis de política priorizada PNPSP]),"") -> 11.4. Se disminuye la pobreza rural | AJ25: TCF II - Asistencia Técnica para el procesos de la Escuela Nacional de Estadísticas sistematizado y automatizados
AD26: grupo de impacto | AE26: =IFERROR(_xlfn.XLOOKUP($E$6,Registro1[Nombre de la iniciativa],Registro1[Grupo poblacional beneficiario principal]),"") -> Población rural | AJ26: TCF II - Asistencia Técnica para el fortalecimiento de las capacidades de la Dirección de Supervisión de Riesgos (Anti Lavado de Activos) del Instituto de Desarrollo y Crédito Cooperativo (IDECOOP)
AD27: Semanas restantes | AE27: =IFERROR(_xlfn.XLOOKUP($E$6,Registro1[Nombre de la iniciativa],Registro1[Tiempo restante para cierre administrativo (semanas)]),"") -> 95.71428571 | AJ27: TCF II - Asistencia Técnica para la Evaluación del impacto económico de la implementación de oficinas de análisis legislativo senatorial en la República Dominicana
AD28: fecha firma | AE28: =IFERROR(_xlfn.XLOOKUP($E$6,Registro1[Nombre de la iniciativa],Registro1[Fecha de firma de convenio]),"") -> 4335700.00% | AF28: =IF(AE28<>0,AE28,"No definido") -> 4335700.00% | AJ28: TCF II - Asistencia Técnica para la evaluación del marco jurídico de la implementación de oficinas de análisis legislativo senatorial en la República Dominicana
AD29: fecha ejecu | AE29: =IFERROR(_xlfn.XLOOKUP($E$6,Registro1[Nombre de la iniciativa],Registro1[Fecha de ejecución]),"") -> 4373800.00% | AF29: 4373800.00% | AJ29: TCF II - Asistencia Técnica para la Creación del método de trabajo de las oficinas de análisis legislativo senatorial en la República Dominicana
AD30: fecha cierre | AE30: =IFERROR(_xlfn.XLOOKUP($E$6,Registro1[Nombre de la iniciativa],Registro1[Última fecha de cierre operativo]),"") -> 4629500.00% | AF30: 4629500.00% | AJ30: TCF II - Asistencia Técnica para el Taller Planificación Viceministerio de Cooperación Internacional
AE31: =IFERROR(_xlfn.XLOOKUP(E4,Registro1[Nombre de la iniciativa],Registro1[Monto total no reembolsable DOP]),"") ->  | AJ31: TCF II - Asistencia Técnica para el Taller de formulación de proyectos para el fortalecimiento de la sociedad civil y actores no estales vinculados a la cooperación europea
AD32: Pregunta | AE32: 2 | AG32: =INDEX(AE33:AF33,$AE$32) -> 16.5 | AJ32: TCF II - Asistencia Técnica para el financiamiento Modelo de gestión de riesgo de asociaciones sin fines de lucro
AD33: Presupuesto DOP | AE33: =IFERROR(_xlfn.XLOOKUP(E6,Registro1[Nombre de la iniciativa],Registro1[Presupuesto total DOP]),"") -> 975.7 | AF33: =IFERROR(_xlfn.XLOOKUP($E$6,Registro1[Nombre de la iniciativa],Registro1[Presupuesto total en moneda original]),"") -> 16.5 | AG33: =INDEX(AE34:AF34,$AE$32) -> 0.2 | AJ33: TCF II - Asistencia Técnica para la elaboración de planificación de los planes sectoriales en el marco del Sistema de Planificación e Inversión Pública
AD34: Donacion DOP | AE34: =IFERROR(_xlfn.XLOOKUP(E6,Registro1[Nombre de la iniciativa],Registro1[Monto total no reembolsable DOP]),"") -> 11.9 | AF34: =IFERROR(_xlfn.XLOOKUP($E$6,Registro1[Nombre de la iniciativa],Registro1[Monto total no reembolsable en moneda original]),"") -> 0.2 | AG34: =INDEX(AE35:AF35,$AE$32) -> 11.7 | AJ34: TCF II - AT Diseño e implementación de una política articulación territorial con perspectiva de género y Sistema Nacional de Planificación Pública
AD35: Reembolsable DOP | AE35: =IFERROR(_xlfn.XLOOKUP(E6,Registro1[Nombre de la iniciativa],Registro1[Monto total reembolsable DOP]),"") -> 692.0 | AF35: =IFERROR(_xlfn.XLOOKUP($E$6,Registro1[Nombre de la iniciativa],Registro1[Monto total reembolsable en moneda original]),"") -> 11.7 | AG35: =INDEX(AE36:AF36,$AE$32) -> 0.0 | AJ35: TCF II - Fortalecimiento Institucional, Proceso de Elaboración de Lineamientos Estratégicos y Formulación del Plan Operativo Anual (POA 2022) del Instituto para el Desarrollo del Suroeste (INDESUR)
AD36: Contra Priv DOP | AE36: =IFERROR(_xlfn.XLOOKUP(E6,Registro1[Nombre de la iniciativa],Registro1[Contrapartida privada DOP]),"") -> 0.0 | AF36: =IFERROR(_xlfn.XLOOKUP($E$6,Registro1[Nombre de la iniciativa],Registro1[Contrapartida privada]),"") -> 0.0 | AG36: =INDEX(AE37:AF37,$AE$32) -> 4.6 | AJ36: TCF II - Coordinación editorial, Corrección de estilo, Cuidado de edición, corrección de diseño y diagramación; Registro bibliográfico y catalogación del Plan Nacional Plurianual del Sector Público (PNPSP)
AD37: Contra gob DOP | AE37: =IFERROR(_xlfn.XLOOKUP(E6,Registro1[Nombre de la iniciativa],Registro1[Contrapartida gobierno DOP]),"") -> 271.8 | AF37: =IFERROR(_xlfn.XLOOKUP($E$6,Registro1[Nombre de la iniciativa],Registro1[Contrapartida del gobierno]),"") -> 4.6 | AG37: =INDEX(AE38:AF38,$AE$32) ->  | AJ37: TCF II - AT Caracterización de la aptitud de los suelos para la producción bajo riesgo y de las condiciones hidrológicas y ambientales que influencia en la disponibilidad de Agua superficial en la subcuenta del Río Guayubín, en la Región Noroeste, República Dominicana.
AD38: Desembolso | AE38: =IFERROR(_xlfn.XLOOKUP(E6,Registro1[Nombre de la iniciativa],Registro1[Monto pendiente de ejecución a la fecha de reporte del seguimiento]),"") -> 10.9 | AF38: =IFERROR(_xlfn.XLOOKUP($E$6,Registro1[Nombre de la iniciativa],Registro1[Porcentaje de ejecución de actividades de la iniciativa global]),"") ->  | AG38: =INDEX(AE39:AF39,$AE$32) -> Dólar estadounidense (USD) | AH38: =INDEX(AF40:AG40,$AE$32) -> 0 | AJ38: TCF II - Repositorio de información histórica del ámbito económico y de cooperación
AD39: Moneda | AE39: Pesos dominicanos (DOP) | AF39: =IFERROR(_xlfn.XLOOKUP($E$6,Registro1[Nombre de la iniciativa],Registro1[Moneda original del presupuesto]),"") -> Dólar estadounidense (USD) | AG39: =IFERROR(_xlfn.XLOOKUP($E$6,Registro1[Nombre de la iniciativa],Registro1[Moneda original del presupuesto]),"") -> Dólar estadounidense (USD) | AJ39: TCF II -AT internacional para apoyar el Programa de Fortalecimiento de la Supervisión Basada en Riesgos de los Supervisores del Sistema Financiero para agentes financieros y NO financieros designados. Unidad de Análisis Financiero (UAF) contra el lavado de activos
AJ40: TCF II - Financiamiento a Capacitación en gestión Hospitalaria - Servicio Nacional de Salud
AJ41: TCF II - Financiamiento VI premio Nacional, "Producción mas Limpia" (Talleres; contratación de expertos en Pml y Elaboración de Certificados)
AJ42: TCF II - Financiamiento Elaboración de Estudio diagnóstico sobre el estado actual de las ASFL den RD: contribución al desarrollo nacional y participación en la gestión de las políticas públicas durante el 2020/2021 (1.3.3.3)
AJ43: TCF II - Diplomado en gestión de ciclo del proyecto para servidores de Vice Ministerio de Cooperación Internacional y otras entidades vinculadas a la cooperación
AD44: Física | AE44: =IFERROR(_xlfn.XLOOKUP($E$6,Registro1[Nombre de la iniciativa],Registro1[Porcentaje de ejecución de actividades de la iniciativa global]),"") ->  | AJ44: TCF II - Proyecto El Caribe y los Desafíos ante los efectos del COVID 19
AD45: Financiera | AE45: =IFERROR(_xlfn.XLOOKUP($E$6,Registro1[Nombre de la iniciativa],Registro1[Porcentaje de ejecución financiera del monto desembolsado]),"") -> 80% | AJ45: TCF II - AT para acompañamiento e implementación del plan de visibilidad de la cooperación UE
AJ46: Financiamiento TCF II - Participación de la República Dominicana en EUROsociAL+ Fundación Internacional y para Iberoamérica de Administración y Políticas Públicas
AJ47: Financiamiento TCF II - Asistencia Técnica - Contratación de experto en Formulación de proyectos - Twinning Justicia
AJ48: Ciudades Incluyentes, Comunidades Solidarias
AJ49: Proyecto Promoviendo la Gestión Ganadera Climáticamente Inteligente en la República Dominicana (GANACLIMA-RD)
AJ50: Apoyo a la formulación del Programa Binacional de Fortalecimiento de los Servicios de Sanidad Agropecuaria entre la República de Haití y la República Dominicana (PBSA/H-RD)
AJ51: Fortalecimiento de las capacidades regionales de vigilancia, prevención y manejo frente a la eventual propagación de la marchitez por Fusarium del banano causada por la raza tropical 4 de Fusarium oxysporum f.sp. cubense (Foc R4T)
AJ52: Fortalecimiento de la agricultura familiar para mejorar la seguridad alimentaria y nutricional (SAN) en comunidades de 3 provincias de la República Dominicana
AJ53: Promoviendo la Articulación Productiva de las Familias Beneficiadas de PROSOLI
AJ54: Apoyo para la Reorganización del Servicio de Asistencia Técnica e innovación Agropecuaria en la República Dominicana (TCP/DOM/3703)
AJ55: Fortalecimiento de la gobernanza y de la gestión integrada de recursos hídricos para incrementar la eficiencia en el uso del agua en la agricultura TCP/DOM/3801
AJ56: Consultoría para Guía de Planes Municipales de Desarrollo (PMD)-TCP 3705 - Gobernanza para la planificación territorial
AJ57: Plataforma Virtual para Coordinar la Implementación de la Acción Migratoria (VIPCIMA) en Mesoamérica y República Dominicana
AJ58: Adherencia a protocolos de atención materno neonatales
AJ59: Implementación del Sistema Informático Perinatal Plus (SIP Plus) en 6 maternidades
AJ60: Inclusión de las personas con discapacidad en República Dominicana
AJ61: Programa de Pequeños Subsidios (PPS-SGP)
AJ62: Protección de la población más vulnerable a través del análisis de necesidades en tiempo real para el diseño de intervenciones adaptadas a la respuesta al COVID19 en la República Dominicana (actualizado de SEIA - Red Actúa COVID-19, valoración y monitoreo continuo del Impacto socioeconómico en hogares)
AJ63: Sistema de Gestión para la Igualdad de Género en las Empresas y Organizaciones- Sellos de Igualdad de Género para Empresas y Organizaciones
AJ64: Impulsando la Autonomía Económica y la Participación de las Mujeres en la Provincia Valverde- FASE II
AJ65: Fortalecimiento institucional y los mecanismos de gobernanza para la seguridad alimentaria y la nutrición
AJ66: Inclusión de mujeres y jóvenes rurales en la cadena de valor del sector turístico
AJ67: Apoyo a la recuperación socioeconómica de los hogares afectados y las MIPYMES lideradas por mujeres
AJ68: Apoyo Estratégico al Ministerio de la Mujer
AJ69: Contribuyendo a la territorialización de la Agenda 2030 en tiempos de COVID-19: una alianza estratégica AACID-PNUD
A70: Elaborado por la Dirección de Análisis y Coordinación del Viceministerio de Cooperación Internacional del Ministerio de Economía, Planificación y Desarrollo de la República Dominicana. | AJ70: SIGOB Ministerio Presidencia
A71: Cobertura: Los datos que alimentan este tablero provienen del módulo de Registro y Seguimiento del SI-SINACID que contiene un registro de programas, proyectos y acciones | AJ71: Adoptando la Agenda 2030 para el Desarrollo Sostenible en los instrumentos del Sistema Nacional de Planificación e Inversión Pública en República Dominicana
A72: de cooperación internacional en seguimiento por el Viceministerio y la comunidad de cooperantes, sectoriales y entidades ejecutoras que reportan al Ministerio. | AJ72: Engagement Facility
A73: Contacto: DACCI@economia.gob.do | AJ73: Implementando enfoques de desarrollo humano en las políticas públicas de la República Dominicana
AJ74: Diálogo Político de Género
AJ75: Recuperación socioeconómica inclusiva y medios de vida
AJ76: Conservación Efectiva de Bienes y Servicios Ecosistémicos en Paisajes de Montañas Amenazados
AJ77: Conservando la Biodiversidad en las Áreas Costeras Amenazadas por el Rápido Desarrollo del Turismo y la Infraestructura Física
AJ78: Plataforma multi actor para la gestión integral de plásticos y residuos
AJ79: Plan de gestión de eliminación gradual de HCFC para la República Dominicana-Tercera etapa (HCFC Phase-Out Management Plan For The Dominican Republic-Thirth Stage (Hpmp III))
AJ80: Recuperación socioeconómica inclusiva, sostenible y resiliente de la cadena de valor del turismo en República Dominicana
AJ81: Desafiando el estigma y la discriminación para mejorar el acceso y la calidad de los servicios de VIH en el Caribe-Fondos Country Envelope
AJ82: Proyecto ser LGBTI en el Caribe [“Being LGBTI in the Caribbean: Reducing Inequality & Exclusion Experienced by LGBTI People in Barbados, Dominican Republic, Haiti and Jamaica”]
AJ83: Fortalecimiento de las capacidades de la consejería para que brinde sus Servicios en los Centros de Atención para PVVIH
AJ84: Plan operativo de respuesta a la emergencia por la covid-19
AJ85: Prevención y control de infecciones (PCI) en los establecimientos de salud (públicos, privados y sanidad militar) y resistencia antimicrobiana RAM
AJ86: Eliminación del Esquistosomiasis en República Dominicana
AJ87: Equipo conjunto sobre VIH y SIDA República Dominicana Sistema de seguimiento del programa conjunto ONUSIDA
AJ88: PROYECTO SUSAN THOMPSON
AJ89: Fortalecimiento de la Rectoría de la Seguridad Vial en Costa Rica y la República Dominicana
AJ90: Apoyo en la formulación del Plan Nacional de Cáncer Infantil
AJ91: Estrategia de escuelas saludables
AJ92: Apoyo en la formulación del Plan Nacional de Eliminación del Cáncer Cérvico Uterino
AJ93: Formulación de un Plan Nacional de Promoción de actividad física
AJ94: Desarrollo Programa de aseguramiento de la calidad del diagnóstico microscópico de malaria, Laboratorio Nacional de Referencia de CECOVEZ
AJ95: Proyecto Iniciativa regional para la eliminación de la malaria
AJ96: Expansión de la iniciativa HEARTS en Republica Dominicana
AJ97: Asistencia técnica para la gestión de riesgos, preparación y respuesta ante emergencias y adaptación al cambio climático (DO02.05.031.CSI1 - SO3)
AJ98: Servicios logísticos confiables durante crisis para la comunidad humanitaria y el gobierno de la RD (DO02.08.051CPA1 - SO5)
AJ99: Asistencia Técnica para el Hambre Cero (DO02.05.011.CSI1 - SO1)
AJ100: Asistencia técnica para abordar las causas principales de la doble carga de la malnutrición (DO02.02.021.CSI1 - SO2)
AJ101: Proyecto de preparación ante emergencias basado en pronósticos de riesgos climáticos en República Dominicana (Financiamiento Basado en pronóstico -Fbf-)
AJ102: Fortalecimiento de Capacidad de Preparación y Respuesta ante Emergencias de la República Dominicana
AJ103: Monitoreo de la sequía a través de una plataforma digital de vigilancia
AJ104: Fortalecimiento de las capacidades nacionales para fomentar la ampliación del arroz fortificado en la República Dominicana
AJ105: Accelerator Lab [Laboratorio de Aceleración]
AJ106: PROYECTO UHC-P Fortalecimiento de las capacidades del Ministerio de Salud para la implementación de funciones esenciales de salud pública
AJ107: Fortalecimiento de la respuesta nacional en las unidades de atención primaria para personas con trastornos mentales
AJ108: Fortalecer la vigilancia epidemiológica de investigación de casos y contactos de COVID-19 y de los Eventos atribuidos a vacunación e inmunización en el Sistema Nacional de Vigilancia Epidemiológica en República Dominicana
AJ109: REDD+ Desarrollo de Capacidades de Actores involucrados en el uso y cambio de uso de la tierra en la RD
AJ110: Paisajes productivos integrados a través de la ordenación territorial, la restauración y la intensificación sostenible del arroz en Yaque y Yuna (Manejo Integrado del Paisaje en las Cuencas Hidrográficas de República Dominicana)
AJ111: República Dominicana: Implementando la Iniciativa de Transparencia de las Industrias Extractivas (EITI)
AJ112: Asistencia para la modernización de la red de distribución y la reducción de pérdidas en República Dominicana
AJ113: Programa País de Reducción de Emisiones
AJ114: Mi Comunidad Participa en Como Va mi Escuela
AJ115: República Dominicana: Proyecto de mejoramiento y reducción de pérdidas de aguas residuales
AJ116: Mejorando el desarrollo territorial resiliente en la República Dominicana
AJ117: República Dominicana - Mecanismo de apoyo a las contribuciones determinadas a nivel nacional (NDC-SF) Track 3 (Del Programa para el Desarrollo resiliente al clima y con bajas emisiones de carbono)
AJ118: KCP III - Promoción de la inclusión económica de los jóvenes: evidencia de un programa de búsqueda y capacitación laboral en la República Dominicana
AJ119: Apoyando la reforma del sector eléctrico en la República Dominicana
AJ120: Fortaleciendo la Protección al Consumidor
AJ121: Mejora de los servicios electrónicos centrados en el usuario seleccionados en RD
AJ122: Proyecto de responsabilidad social colaborativa para mejorar la gobernanza en la protección de los puntos de calidad de la biodiversidad
AJ123: Apoyo al Programa Nacional de Viviendas
AJ124: Hacia un Sistema de Protección Social Adaptativo en República Dominicana
AJ125: InfoDev TF: Programa de promoción del emprendimiento y la innovación
AJ126: Compromiso comercial de RD
AJ127: Fortaleciendo la respuesta fiscal de la República Dominicana ante la crisis del covid-19 (Memorándum Económico País República Dominicana)
AJ128: Realización de un análisis de cadenas de valor sensible al género de los rubros habichuelas, plátano, cebolla y tomate en la región suroeste
AJ129: Estudio sobre Riesgos Actuales y Potenciales Del Sistema Alimentario en República Dominicana ante los Efectos de la Pandemia del Covid-19
AJ130: Metodología para la medición del Indicador 5.a.2
AJ131: Incrementar resiliencia a sequías a nivel de fincas de agricultores familiares en el suroeste y noroeste
AJ132: Incrementar capacidades del personal técnico de servicio de extensión agropecuaria en agricultura resiliente
AJ133: Dotar al país de la herramienta ASIS para la vigilancia de la sequía agrícola
AJ134: Dotar al país de una herramienta metodológica para la evaluación de daños y pérdidas en la agricultura ante desastres.
AJ135: Fortalecimiento de las capacidades del personal del Ministerio de Agricultura y de la Mujer en empoderamiento económico de mujeres rurales
AJ136: Talleres de Capacitación en los municipios para impulsar las Redes SSAN
AJ137: Talleres de Capacitación a las alcaldías vía FEDOMU
AJ138: Seminario Nacional para presentar Protocolo de Acuerdo, MEPyD
AJ139: Campaña de comunicación y movilización Hambre Cero
AJ140: Campaña piloto de comunicación social para el cambio de comportamientos
AJ141: Cumbre Global ONU sobre Sistemas Alimentarios (UN Food Systems Summit) 2021
AJ142: Encuesta nacional (remota) sobre Seguridad Alimentaria (rCARI)
AJ143: Promoción de iniciativas de intercambio de experiencias, buenas prácticas y cooperación Sur-Sur para el fortalecimiento de capacidades del sistema de protección social
AJ144: Análisis nacional del índice de funcionalidad de mercados
AJ145: Evaluación conjunta del componente de nutrición del programa Progresando con Solidaridad
AJ146: Análisis del gasto de las canastas básicas
AJ147: Diseño de mapas basados en web para generar, visualizar y compartir mapas en línea con las variables sociodemográficas que levanta y actualiza el SIUBEN
AJ148: Estudio Cerrando brechas de nutrición (FNG)
AJ149: Fortalecimiento de la respuesta integral al VIH, con enfoque en seguridad alimentaria y nutricional.
AJ150: Diplomado en nutrición
AJ151: Acompañamiento al gobierno en el diseño e implementación de programas nacionales, que incluyan acciones integrales en nutrición para la prevención de la malnutrición de los grupos vulnerables
AJ152: Posicionamiento de la fortificación del arroz como política pública para la prevención de las deficiencias de micronutrientes
AJ153: Fortalecimiento de las capacidades gubernamentales en nutrición para mejorar la atención a la población escolar
AJ154: Segundo diplomado en Cadena de Suministro Humanitario
AJ155: Definición de una estrategia de asistencia humanitaria y gestión de riesgos
AJ156: Mesa de protección social adaptativa
AJ157: Fortalecimiento de las capacidades nacionales y locales del sistema de prevención, mitigación y respuesta ante desastres
AJ158: Generación de evidencias sobre Seguridad Alimentaria y Nutricional: Análisis nacional del índice de funcionalidad de mercados
AJ159: Prevención de Embarazos en Adolescentes
AJ160: Programa Cocoa Life en la República Dominicana – Fase II
AJ161: Plan de gestión para la Eliminación del uso de Hidroclorofluorocarbonos (HCFC) en República Dominicana (HPMP). Segunda Fase.
AJ162: Proyecto Diseño de una Taxonomía de financiamiento Verde y creación de capacidades
AJ163: Apoyo para la adopción de hidrocarburos como refrigerante en el sector de refrigeración comercial en la República Dominicana
AJ164: Comunidades de Cuidado: diseño e Implementación del Piloto de Política Nacional de cuidado en territorios priorizados de la República Dominicana
AJ165: Prevención y atención a la poblaciones clave de mayor riesgo al VIH en RD
AJ166: Asistencia técnica y abogacía con autoridades nacionales para asegurar la sostenibilidad financiera de la respuesta nacional de VIH a través del aumento de fondos públicos y de contratos sociales para las ASFL.
AJ167: Asistencia técnica y abogacía para la expansión de los programas de prevención combinada
AJ168: Abogacía con las autoridades y acompañamiento a la respuesta nacional con asistencia técnica para Fortalecer los servicios de tratamiento de VIH
AJ169: Apoyo a la Respuesta Nacional de VIH para lograr la eliminación del Estigma y Discriminación hacia las poblaciones clave y las personas que viven con VIH, incluyendo equidad de genero
AJ170: Fortalecimiento de la capacidad para la atención del VIH/ETS en el tratamiento de las personas que usan drogas
AJ171: Fortalecimiento de la normativa y marcos legales en temas de atención del VIH en personas que usan drogas
AJ172: Programas de fortalecimiento de habilidades parentales y habilidades para la vida en niñez y adolescencia
AJ173: Fortalecimiento de la calidad de la atención en servicios y centros de tratamiento de los trastornos por uso de drogas
AJ174: Cooperación marítima interagencial a nivel nacional, subregional y regional fortalecida
AJ175: Conocimientos judiciales en el derecho de la mar fortalecidos para fortalecer la impunidad contra la delincuencia marítima
AJ176: Mecanismos de control portuario de carga por contenedores fortalecidas
AJ177: Mecanismos de prevención, control y respuesta en contra de la trata de personas fortalecidos
AJ178: Mecanismos institucionales sobre anticorrupción y ética fortalecidos
AJ179: Actualización del Plan Nacional de Migración Laboral
AJ180: Instrumentos para levantamiento de encuesta sectorial agrícola
AJ181: Piloto de inserción laboral dirigido a miembros de familias en situación de vulnerabilidad
AJ182: Programa de fortalecimiento de capacidades de la Dirección de Higiene y Seguridad Industrial del Ministerio de Trabajo implementado
AJ183: Programa curricular de capacitación de inspectores de trabajo (dirección de Trabajo) elaborado y entregado al Ministerio de Trabajo y dictado de cursos de capacitación.
AJ184: Desarrollo e implementación del Sistema de Casos de Inspección del Trabajo (SICIT) del Ministerio de Trabajo
AJ185: Desarrollo e implementación del Sistema Estadístico Institucional del Ministerio de Trabajo
AJ186: Fortalecimiento de las Capacidades del Ministerio de Trabajo para mejorar las condiciones de trabajo en la agricultura
AJ187: Formación en emprededurismo y técnico vocacional
AJ188: Formación en emprededurismo y apoyo con fondo semilla a 10 autoempleo.-
AJ189: Charlas Vocacionales, Formación técnico profesional acuerdo con programas INFOTEP, Talleres Bienestar emocional y Habilidades Laborales
AJ190: Formación en emprededurismo, Curso técnico vocacional y apoyo con fondo semilla a 95 autoempleo.-
AJ191: Formación en emprededurismo, Curso técnico vocacional y apoyo con fondo semilla a 40 autoempleo.-
AJ192: Capacitaciones a personal de CONANI en temas de protección internacional y grupos de interés para el ACNUR - Provincial
AJ193: Capacitaciones a personal de CONANI en temas de protección internacional y grupos de interés para el ACNUR - Nacional
AJ194: Diplomado ACNUR-UNESCO Derecho Internacional de Refugiados y Apatridia
AJ195: Protocolos nacionales para la atención materna y neonatal con calidad y respeto de los derechos fundamentales con enfoque de género
AJ196: Sistema informático perinatal (SIP) y de vigilancia y respuesta a la mortalidad materna y neonatal fortalecidos en las instituciones priorizadas para la gestión, monitoreo, seguimiento, evaluación y toma de decisiones
AJ197: Implementación de un piloto para mejorar la adopción de estándares de calidad en servicios de salud sexual y reproductiva de adolescentes
AJ198: Asistencia técnica, encuestas y evaluación del Programa de Transmisión Vertical del VIH
AJ199: Promoción del aprendizaje integral e inclusivo y la permanencia escolar de los niños, niñas y adolescentes estrategias de comunicación y apps
AJ200: Desarrollo de capacidades para la reducción del riesgo de desastres en el entorno construido en América Latina y el Caribe 2020-2022 (BERLAC 5)
AJ201: Proyecto Tsunami Ready (Puerto Plata y Palenque, República Dominicana)
AJ202: Panel Virtual: “Ciencias Sociales y Covid-19 en el Gran Caribe. Lecciones aprendidas y propuestas de acción”
AJ203: Apoyo técnico para la creación de la Red Nacional de Juventudes y Cambio Climático.
AJ204: Apoyo técnico para creación y adecuado funcionamiento del Comité Nacional del Programa MOST de la UNESCO.
AJ205: Evaluación nacional sobre desarrollo de política y estrategia de alfabetización mediática e informacional (AMI).
... 931 more rows

Sheet Calculos (hidden)
B1: Cantidad de iniciativas | E1: Doble via | I1: Cooperacion triagular | O1: Tipo de iniciativa
B2: Sum of Iniciativas | E2: Row Labels | F2: Count of Nombre de la iniciativa | I2: Row Labels | J2: Count of Nombre de la iniciativa | O2: Row Labels | P2: Count of Nombre de la iniciativa | S2: Row Labels | T2: Count of Nombre de la iniciativa
B3: 1121 | E3: Demanda | F3: 1102 | G3: Doble vía | H3: =IFERROR(INDEX($F$3:$F$5,MATCH($G$3,$E$3:$E$5,0)),0) -> 28 | I3: No | J3: 1114 | K3: Sí | L3: =IFERROR(INDEX($J$3:$J$5,MATCH($K$3,$I$3:$I$5,0)),0) -> 16 | O3: Capital fijo | P3: 9.47% | Q3: Capital fijo | R3: =GETPIVOTDATA("[Measures].[Count of Nombre de la iniciativa]",$O$2,"[Registro1].[Tipo de iniciativa]","[Registro1].[Tipo de iniciativa].&[Capital fijo]") -> 9.5% | S3: Creación de conocimiento | T3: 623
E4: Doble vía | F4: 28 | I4: Sí | J4: 16 | O4: Capital humano | P4: 35.40% | Q4: Capital humano | R4: =GETPIVOTDATA("[Measures].[Count of Nombre de la iniciativa]",$O$2,"[Registro1].[Tipo de iniciativa]","[Registro1].[Tipo de iniciativa].&[Capital humano]") -> 35.4% | S4: Capital fijo | T4: 107
E5: Grand Total | F5: 1130 | I5: Grand Total | J5: 1130 | O5: Creación de conocimiento | P5: 55.13% | Q5: Creación de conocimiento | R5: =GETPIVOTDATA("[Measures].[Count of Nombre de la iniciativa]",$O$2,"[Registro1].[Tipo de iniciativa]","[Registro1].[Tipo de iniciativa].&[Creación de conocimiento]") -> 55.1% | S5: Capital humano | T5: 400
O6: Grand Total | P6: 100.00% | S6: Grand Total | T6: 1130
B40: Presupuesto | I40: Presupuesto | O40: Estado
B41: Values | I41: Row Labels | J41: Count of Nombre de la iniciativa | O41: Row Labels | P41: Count of Nombre de la iniciativa
B42: Sum of Presupuesto total DOP | C42: 263,475,530,847.00 | D42: Presupuesto | E42: =GETPIVOTDATA("[Measures].[Sum of Presupuesto total DOP]",$B$41) -> $263,475.5 | I42: Dólar estadounidense (USD) | J42: 727 | O42: Ejecución según lo previsto | P42: 25.66% | Q42: No iniciada | R42: =IFERROR(INDEX($P$42:$P$49,MATCH(Q42,$O$42:$O$49,0)),0) -> 6.5%
B43: Sum of Monto total no reembolsable DOP | C43: 98,516,431,695.42 | D43: No reembolsable | E43: =GETPIVOTDATA("[Measures].[Sum of Monto total no reembolsable DOP]",$B$41) -> $98,516.4 | F43: =E43/$E$42 -> 37.4% | I43: Euro (EUR) | J43: 146 | O43: Finalizada | P43: 55.04% | Q43: Ejecución según lo previsto | R43: =IFERROR(INDEX($P$42:$P$49,MATCH(Q43,$O$42:$O$49,0)),0) -> 25.7%
B44: Sum of Monto total reembolsable DOP | C44: 121,356,890,120.59 | D44: Reembolsable | E44: =GETPIVOTDATA("[Measures].[Sum of Monto total reembolsable DOP]",$B$41) -> $121,356.9 | F44: =E44/$E$42 -> 46.1% | I44: Franco Suizo (CHF) | J44: 1 | O44: No iniciada | P44: 6.46% | Q44: Atrasos en la ejecución | R44: 3.9%
B45: Sum of Contrapartida privada DOP | C45: 115,368,170.55 | D45: Contrapartida privada | E45: =GETPIVOTDATA("[Measures].[Sum of Contrapartida privada DOP]",$B$41) -> $115.4 | F45: =E45/$E$42 -> 0.0% | I45: Libras esterlinas (GBP) | J45: 1 | O45: Atrasos en la ejecución | P45: 3.89% | Q45: Ejecución detenida | R45: 0.8%
B46: Sum of Contrapartida gobierno DOP | C46: 43,486,840,860.44 | D46: Contrapartida gobierno | E46: =GETPIVOTDATA("[Measures].[Sum of Contrapartida gobierno DOP]",$B$41) -> $43,486.8 | F46: =E46/$E$42 -> 16.5% | I46: N/D | J46: 138 | O46: Cancelada | P46: 1.59% | Q46: Ejecución prorrogada | R46: 1.5%
D47: N/D | E47: =IFERROR(INDEX($J$42:$J$48,MATCH(D47,I42:I48,0)),0) -> 138 | I47: Peso Dominicano (DOP) | J47: 114 | O47: Ejecución detenida | P47: 0.80% | Q47: En cierre | R47: 5.0%
I48: Yen japonés (JPY) | J48: 1 | O48: Ejecución prorrogada | P48: 1.50% | Q48: Finalizada | R48: 55.0%
I49: Yuan chino (CNY) | J49: 2 | O49: En cierre | P49: 5.04% | Q49: Cancelada | R49: 1.6%
I50: Grand Total | J50: 1130 | O50: Grand Total | P50: 100.00%
V70: 1
B71: Cooperante | H71: 1 | S71: Ejecutores
B72: Row Labels | C72: Count of Nombre de la iniciativa | D72: Sum of Monto no reembolsable cooperante 1 DOP | E72: Cooperante | F72: % cantidad de iniciativas | G72: % aporte no reembolsable | I72: Cooperante | J72: % cantidad de iniciativas | K72: % aporte no reembolsable | S72: Row Labels | T72: Count of Nombre de la iniciativa | U72: Sum of Monto total no reembolsable DOP
B73: AFP Popular | C73: 0.09% | D73: 0.02% | E73: =B73 -> AFP Popular | F73: =C73 -> 0.09% | G73: =D73 -> 0.02% | H73: 1.00% | I73: =IFERROR(IF(OR(E73="Grand total",E73=0),"",INDEX(E$73:E$209,$H$71)),"") -> AFP Popular | J73: =IFERROR(IF(OR(F73="Grand total",F73=0),"",INDEX(F73:F$209,$H$71)),"") -> 0.09% | K73: =IFERROR(IF(OR(G73="Grand total",G73=0),"",INDEX(G73:G$209,$H$71)),"") -> 0.02% | S73: 2Oceans in Health | T73: 0.18% | U73: 0.02% | V73: =IF(OR(S73="",S73="Grand Total"),"",S73) -> 2Oceans in Health | W73: =T73 -> 0.2% | X73: =U73 -> 0.0%
B74: Agencia Alemana de Cooperación Técnica | C74: 1.59% | D74: 2.00% | E74: =B74 -> Agencia Alemana de Cooperación Técnica | F74: =C74 -> 1.59% | G74: =D74 -> 2.00% | H74: 2.00% | I74: =IFERROR(IF(OR(E74="Grand total",E74=0),"",INDEX(E74:E$209,$H$71)),"") -> Agencia Alemana de Cooperación Técnica | J74: =IFERROR(IF(OR(F74="Grand total",F74=0),"",INDEX(F74:F$209,$H$71)),"") -> 1.59% | K74: =IFERROR(IF(OR(G74="Grand total",G74=0),"",INDEX(G74:G$209,$H$71)),"") -> 2.00% | S74: Abt Associates, Inc | T74: 0.18% | U74: 0.10% | V74: =IF(OR(S74="",S74="Grand Total"),"",S74) -> Abt Associates, Inc | W74: =T74 -> 0.2% | X74: =U74 -> 0.1%
B75: Agencia Andaluza de Cooperación Internacional para el Desarrollo | C75: 1.15% | D75: 0.23% | E75: Agencia Andaluza de Cooperación Internacional para el Desarrollo | F75: 1.15% | G75: 0.23% | H75: 3.00% | I75: =IFERROR(IF(OR(E75="Grand total",E75=0),"",INDEX(E75:E$209,$H$71)),"") -> Agencia Andaluza de Cooperación Internacional para el Desarrollo | J75: =IFERROR(IF(OR(F75="Grand total",F75=0),"",INDEX(F75:F$209,$H$71)),"") -> 1.15% | K75: =IFERROR(IF(OR(G75="Grand total",G75=0),"",INDEX(G75:G$209,$H$71)),"") -> 0.23% | S75: Acción Empresarial por la Educación (EDUCA)/Comisión Nacional Dominicana para la UNESCO | T75: 0.09% | U75: 0.00% | V75: Acción Empresarial por la Educación (EDUCA)/Comisión Nacional Dominicana para la UNESCO | W75: 0.1% | X75: 0.0%
B76: Agencia Brasileña de Cooperación Internacional | C76: 0.53% | D76: 0.06% | E76: Agencia Brasileña de Cooperación Internacional | F76: 0.53% | G76: 0.06% | H76: 4.00% | I76: =IFERROR(IF(OR(E76="Grand total",E76=0),"",INDEX(E76:E$209,$H$71)),"") -> Agencia Brasileña de Cooperación Internacional | J76: =IFERROR(IF(OR(F76="Grand total",F76=0),"",INDEX(F76:F$209,$H$71)),"") -> 0.53% | K76: =IFERROR(IF(OR(G76="Grand total",G76=0),"",INDEX(G76:G$209,$H$71)),"") -> 0.06% | S76: Administradora de Subsidios Sociales (ADESS)/Consejo Nacional para el VIH y el SIDA (CONAVIHSIDA)/Programa Supérate/Servicio Nacional de Salud (SNS)/Ministerio de Salud Pública y Asistencia Social (MISPAS) | T76: 0.09% | U76: 0.03% | V76: Administradora de Subsidios Sociales (ADESS)/Consejo Nacional para el VIH y el SIDA (CONAVIHSIDA)/Programa Supérate/Servicio Nacional de Salud (SNS)/Ministerio de Salud Pública y Asistencia Social (MISPAS) | W76: 0.1% | X76: 0.0%
B77: Agencia Chilena de Cooperación Internacional para el Desarrollo | C77: 0.88% | D77: 0.02% | E77: Agencia Chilena de Cooperación Internacional para el Desarrollo | F77: 0.88% | G77: 0.02% | H77: 5.00% | I77: =IFERROR(IF(OR(E77="Grand total",E77=0),"",INDEX(E77:E$209,$H$71)),"") -> Agencia Chilena de Cooperación Internacional para el Desarrollo | J77: =IFERROR(IF(OR(F77="Grand total",F77=0),"",INDEX(F77:F$209,$H$71)),"") -> 0.88% | K77: =IFERROR(IF(OR(G77="Grand total",G77=0),"",INDEX(G77:G$209,$H$71)),"") -> 0.02% | S77: Agencia Alemana de Cooperación Técnica | T77: 0.09% | U77: 0.49% | V77: Agencia Alemana de Cooperación Técnica | W77: 0.1% | X77: 0.5%
B78: Agencia de Comercio y Desarrollo de Estados Unidos | C78: 0.18% | D78: 0.04% | E78: Agencia de Comercio y Desarrollo de Estados Unidos | F78: 0.18% | G78: 0.04% | H78: 6.00% | I78: =IFERROR(IF(OR(E78="Grand total",E78=0),"",INDEX(E78:E$209,$H$71)),"") -> Agencia de Comercio y Desarrollo de Estados Unidos | J78: =IFERROR(IF(OR(F78="Grand total",F78=0),"",INDEX(F78:F$209,$H$71)),"") -> 0.18% | K78: =IFERROR(IF(OR(G78="Grand total",G78=0),"",INDEX(G78:G$209,$H$71)),"") -> 0.04% | S78: Agencia de Estados Unidos para el Desarrollo Internacional | T78: 1.50% | U78: 5.84% | V78: Agencia de Estados Unidos para el Desarrollo Internacional | W78: 1.5% | X78: 5.8%
B79: Agencia de Cooperación Internacional de Corea | C79: 0.88% | D79: 1.95% | E79: Agencia de Cooperación Internacional de Corea | F79: 0.88% | G79: 1.95% | H79: 7.00% | I79: =IFERROR(IF(OR(E79="Grand total",E79=0),"",INDEX(E79:E$209,$H$71)),"") -> Agencia de Cooperación Internacional de Corea | J79: =IFERROR(IF(OR(F79="Grand total",F79=0),"",INDEX(F79:F$209,$H$71)),"") -> 0.88% | K79: =IFERROR(IF(OR(G79="Grand total",G79=0),"",INDEX(G79:G$209,$H$71)),"") -> 1.95% | S79: Agencia para el Desarrollo de las Exportaciones del Caribe (Caribbean Export) | T79: 0.18% | U79: 2.38% | V79: Agencia para el Desarrollo de las Exportaciones del Caribe (Caribbean Export) | W79: 0.2% | X79: 2.4%
B80: Agencia de Cooperación Internacional de Japón | C80: 0.53% | D80: 0.95% | E80: Agencia de Cooperación Internacional de Japón | F80: 0.53% | G80: 0.95% | H80: 8.00% | I80: =IFERROR(IF(OR(E80="Grand total",E80=0),"",INDEX(E80:E$209,$H$71)),"") -> Agencia de Cooperación Internacional de Japón | J80: =IFERROR(IF(OR(F80="Grand total",F80=0),"",INDEX(F80:F$209,$H$71)),"") -> 0.53% | K80: =IFERROR(IF(OR(G80="Grand total",G80=0),"",INDEX(G80:G$209,$H$71)),"") -> 0.95% | S80: Agrofrontera | T80: 0.18% | U80: 0.05% | V80: Agrofrontera | W80: 0.2% | X80: 0.0%
B81: Agencia de Estados Unidos para el Desarrollo Internacional | C81: 6.99% | D81: 27.72% | E81: Agencia de Estados Unidos para el Desarrollo Internacional | F81: 6.99% | G81: 27.72% | H81: 9.00% | I81: =IFERROR(IF(OR(E81="Grand total",E81=0),"",INDEX(E81:E$209,$H$71)),"") -> Agencia de Estados Unidos para el Desarrollo Internacional | J81: =IFERROR(IF(OR(F81="Grand total",F81=0),"",INDEX(F81:F$209,$H$71)),"") -> 6.99% | K81: =IFERROR(IF(OR(G81="Grand total",G81=0),"",INDEX(G81:G$209,$H$71)),"") -> 27.72% | S81: Alianza Discapacidad por Nuestros Derechos (ADIDE)/International Foundation for Electoral Systems (IFES) | T81: 0.09% | U81: 0.02% | V81: Alianza Discapacidad por Nuestros Derechos (ADIDE)/International Foundation for Electoral Systems (IFES) | W81: 0.1% | X81: 0.0%
B82: Agencia Española de Cooperación Internacional para el Desarrollo | C82: 4.42% | D82: 0.93% | E82: Agencia Española de Cooperación Internacional para el Desarrollo | F82: 4.42% | G82: 0.93% | H82: 10.00% | I82: =IFERROR(IF(OR(E82="Grand total",E82=0),"",INDEX(E82:E$209,$H$71)),"") -> Agencia Española de Cooperación Internacional para el Desarrollo | J82: =IFERROR(IF(OR(F82="Grand total",F82=0),"",INDEX(F82:F$209,$H$71)),"") -> 4.42% | K82: =IFERROR(IF(OR(G82="Grand total",G82=0),"",INDEX(G82:G$209,$H$71)),"") -> 0.93% | S82: Alianza Global contra el Cambio Climático Plus/Centro de Cambio Climático de la Comunidad del Caribe | T82: 0.09% | U82: 0.78% | V82: Alianza Global contra el Cambio Climático Plus/Centro de Cambio Climático de la Comunidad del Caribe | W82: 0.1% | X82: 0.8%
B83: Agencia Francesa de Desarrollo | C83: 1.77% | D83: 1.72% | E83: Agencia Francesa de Desarrollo | F83: 1.77% | G83: 1.72% | H83: 11.00% | I83: =IFERROR(IF(OR(E83="Grand total",E83=0),"",INDEX(E83:E$209,$H$71)),"") -> Agencia Francesa de Desarrollo | J83: =IFERROR(IF(OR(F83="Grand total",F83=0),"",INDEX(F83:F$209,$H$71)),"") -> 1.77% | K83: =IFERROR(IF(OR(G83="Grand total",G83=0),"",INDEX(G83:G$209,$H$71)),"") -> 1.72% | S83: Alto Comisionado para los Refugiados | T83: 0.62% | U83: 0.06% | V83: Alto Comisionado para los Refugiados | W83: 0.6% | X83: 0.1%
B84: Agencia Mexicana de Cooperación Internacional | C84: 0.97% | D84: 0.01% | E84: Agencia Mexicana de Cooperación Internacional | F84: 0.97% | G84: 0.01% | H84: 12.00% | I84: =IFERROR(IF(OR(E84="Grand total",E84=0),"",INDEX(E84:E$209,$H$71)),"") -> Agencia Mexicana de Cooperación Internacional | J84: =IFERROR(IF(OR(F84="Grand total",F84=0),"",INDEX(F84:F$209,$H$71)),"") -> 0.97% | K84: =IFERROR(IF(OR(G84="Grand total",G84=0),"",INDEX(G84:G$209,$H$71)),"") -> 0.01% | S84: American Bird Conservancy (ABC) | T84: 0.09% | U84: 0.01% | V84: American Bird Conservancy (ABC) | W84: 0.1% | X84: 0.0%
B85: Agencia Peruana de Cooperación Internacional | C85: 0.62% | D85: 0.01% | E85: Agencia Peruana de Cooperación Internacional | F85: 0.62% | G85: 0.01% | H85: 13.00% | I85: =IFERROR(IF(OR(E85="Grand total",E85=0),"",INDEX(E85:E$209,$H$71)),"") -> Agencia Peruana de Cooperación Internacional | J85: =IFERROR(IF(OR(F85="Grand total",F85=0),"",INDEX(F85:F$209,$H$71)),"") -> 0.62% | K85: =IFERROR(IF(OR(G85="Grand total",G85=0),"",INDEX(G85:G$209,$H$71)),"") -> 0.01% | S85: Asociación Dominicana de Industrias Textiles (ADITEX) | T85: 0.09% | U85: 0.00% | V85: Asociación Dominicana de Industrias Textiles (ADITEX) | W85: 0.1% | X85: 0.0%
B86: Agencia Presidencial de Cooperación Internacional de Colombia | C86: 1.59% | D86: 0.04% | E86: Agencia Presidencial de Cooperación Internacional de Colombia | F86: 1.59% | G86: 0.04% | H86: 14.00% | I86: =IFERROR(IF(OR(E86="Grand total",E86=0),"",INDEX(E86:E$209,$H$71)),"") -> Agencia Presidencial de Cooperación Internacional de Colombia | J86: =IFERROR(IF(OR(F86="Grand total",F86=0),"",INDEX(F86:F$209,$H$71)),"") -> 1.59% | K86: =IFERROR(IF(OR(G86="Grand total",G86=0),"",INDEX(G86:G$209,$H$71)),"") -> 0.04% | S86: Asociación Scalabriniana (ASCALA) | T86: 0.18% | U86: 0.01% | V86: Asociación Scalabriniana (ASCALA) | W86: 0.2% | X86: 0.0%
B87: Agencia Sueca de Cooperación Internacional para el Desarrollo | C87: 0.18% | D87: 0.00% | E87: Agencia Sueca de Cooperación Internacional para el Desarrollo | F87: 0.18% | G87: 0.00% | S87: Asociación Scalabriniana (ASCALA)/Fundación Étnica Integral (FEI) | T87: 0.09% | U87: 0.00% | V87: Asociación Scalabriniana (ASCALA)/Fundación Étnica Integral (FEI) | W87: 0.1% | X87: 0.0%
B88: Agencia Turca de Cooperación y Coordinación | C88: 0.09% | D88: 0.01% | E88: Agencia Turca de Cooperación y Coordinación | F88: 0.09% | G88: 0.01% | S88: Asociación Scalabriniana (ASCALA)/Instituto Dominicano de Desarrollo Integral (IDDI)/Fondo de Población de las Naciones Unidas | T88: 0.09% | U88: 0.03% | V88: Asociación Scalabriniana (ASCALA)/Instituto Dominicano de Desarrollo Integral (IDDI)/Fondo de Población de las Naciones Unidas | W88: 0.1% | X88: 0.0%
B89: Agencia Uruguaya de Cooperación Internacional | C89: 0.09% | D89: 0.00% | E89: Agencia Uruguaya de Cooperación Internacional | F89: 0.09% | G89: 0.00% | S89: Asociación Scalabriniana (ASCALA)/Instituto Dominicano de Desarrollo Integral (IDDI)/HeartLand Alliance International (HAI) | T89: 0.44% | U89: 0.09% | V89: Asociación Scalabriniana (ASCALA)/Instituto Dominicano de Desarrollo Integral (IDDI)/HeartLand Alliance International (HAI) | W89: 0.4% | X89: 0.1%
B90: Alemania | C90: 0.35% | D90: 0.21% | E90: Alemania | F90: 0.35% | G90: 0.21% | S90: Asociación Scalabriniana (ASCALA)/Instituto Dominicano de Desarrollo Integral (IDDI)/HeartLand Alliance International (HAI)/Alto Comisionado para los Refugiados | T90: 0.09% | U90: 0.04% | V90: Asociación Scalabriniana (ASCALA)/Instituto Dominicano de Desarrollo Integral (IDDI)/HeartLand Alliance International (HAI)/Alto Comisionado para los Refugiados | W90: 0.1% | X90: 0.0%
B91: Alianza en Estadísticas para el Desarrollo del Siglo 21 | C91: 0.18% | D91: 0.00% | E91: Alianza en Estadísticas para el Desarrollo del Siglo 21 | F91: 0.18% | G91: 0.00% | I91: . | S91: Asociación Venezolanos en Santiago (AVES)/Cámara de Comercio Dominico-Venezolana (CADOVEN)/Fundación de Emigrantes y Refugiados - RD | T91: 0.09% | U91: 0.10% | V91: Asociación Venezolanos en Santiago (AVES)/Cámara de Comercio Dominico-Venezolana (CADOVEN)/Fundación de Emigrantes y Refugiados - RD | W91: 0.1% | X91: 0.1%
B92: Alto Comisionado para los Refugiados | C92: 2.92% | D92: 0.33% | E92: Alto Comisionado para los Refugiados | F92: 2.92% | G92: 0.33% | S92: Autoridad Portuaria Dominicana (APORDOM) | T92: 0.18% | U92: 0.12% | V92: Autoridad Portuaria Dominicana (APORDOM) | W92: 0.2% | X92: 0.1%
B93: Arabia Saudita | C93: 0.35% | D93: 0.44% | E93: Arabia Saudita | F93: 0.35% | G93: 0.44% | S93: Ayuntamiento de Bayaguana | T93: 0.09% | U93: 0.00% | V93: Ayuntamiento de Bayaguana | W93: 0.1% | X93: 0.0%
B94: Banco Centroamericano de Integración Económica | C94: 1.33% | D94: 1.03% | E94: Banco Centroamericano de Integración Económica | F94: 1.33% | G94: 1.03% | S94: Ayuntamiento de Bonao | T94: 0.09% | U94: 0.01% | V94: Ayuntamiento de Bonao | W94: 0.1% | X94: 0.0%
B95: Banco de Desarrollo de Alemania | C95: 0.09% | D95: 0.49% | E95: Banco de Desarrollo de Alemania | F95: 0.09% | G95: 0.49% | S95: Ayuntamiento de Cotuí | T95: 0.09% | U95: 0.00% | V95: Ayuntamiento de Cotuí | W95: 0.1% | X95: 0.0%
B96: Banco de Desarrollo de América Latina | C96: 1.86% | D96: 0.37% | E96: Banco de Desarrollo de América Latina | F96: 1.86% | G96: 0.37% | S96: Ayuntamiento de Duvergé | T96: 0.09% | U96: 0.00% | V96: Ayuntamiento de Duvergé | W96: 0.1% | X96: 0.0%
B97: Banco Europeo de Inversiones | C97: 0.18% | D97: 0.63% | E97: Banco Europeo de Inversiones | F97: 0.18% | G97: 0.63% | S97: Ayuntamiento de Guayubín | T97: 0.09% | U97: 0.00% | V97: Ayuntamiento de Guayubín | W97: 0.1% | X97: 0.0%
B98: Banco Interamericano de Desarrollo | C98: 6.73% | D98: 5.92% | E98: Banco Interamericano de Desarrollo | F98: 6.73% | G98: 5.92% | S98: Ayuntamiento de Los Cacaos | T98: 0.09% | U98: 0.00% | V98: Ayuntamiento de Los Cacaos | W98: 0.1% | X98: 0.0%
B99: Banco Mundial | C99: 4.96% | D99: 4.00% | E99: Banco Mundial | F99: 4.96% | G99: 4.00% | S99: Ayuntamiento de Neyba | T99: 0.18% | U99: 0.01% | V99: Ayuntamiento de Neyba | W99: 0.2% | X99: 0.0%
B100: Blue Nature Alliance | C100: 0.18% | D100: 0.06% | E100: Blue Nature Alliance | F100: 0.18% | G100: 0.06% | S100: Ayuntamiento de San Fernando de Monte Cristi | T100: 0.09% | U100: 0.00% | V100: Ayuntamiento de San Fernando de Monte Cristi | W100: 0.1% | X100: 0.0%
B101: Brighan And Women's Hospital | C101: 0.09% | D101: 0.00% | E101: Brighan And Women's Hospital | F101: 0.09% | G101: 0.00% | S101: Ayuntamiento de San Ignacio de Sabaneta | T101: 0.09% | U101: 0.00% | V101: Ayuntamiento de San Ignacio de Sabaneta | W101: 0.1% | X101: 0.0%
B102: Canadá | C102: 0.44% | D102: 0.03% | E102: Canadá | F102: 0.44% | G102: 0.03% | S102: Ayuntamiento de San Pedro de Macorís | T102: 0.09% | U102: 0.00% | V102: Ayuntamiento de San Pedro de Macorís | W102: 0.1% | X102: 0.0%
B103: Centro de Cooperación Económica Internacional de la Provincia de Fujian | C103: 0.09% | D103: 0.00% | E103: Centro de Cooperación Económica Internacional de la Provincia de Fujian | F103: 0.09% | G103: 0.00% | S103: Ayuntamiento de San Rafael del Yuma | T103: 0.09% | U103: 0.01% | V103: Ayuntamiento de San Rafael del Yuma | W103: 0.1% | X103: 0.0%
B104: Centro de Estudios de Geodesia | C104: 0.09% | D104: 0.00% | E104: Centro de Estudios de Geodesia | F104: 0.09% | G104: 0.00% | S104: Ayuntamiento de Santiago de los Caballeros | T104: 0.09% | U104: 0.01% | V104: Ayuntamiento de Santiago de los Caballeros | W104: 0.1% | X104: 0.0%
B105: Centro Regional de Colaboración St. George de la Convención Marco de Naciones Unidas para el Cambio Climático | C105: 0.18% | D105: 0.01% | E105: Centro Regional de Colaboración St. George de la Convención Marco de Naciones Unidas para el Cambio Climático | F105: 0.18% | G105: 0.01% | S105: Ayuntamiento de Santo Domingo Este | T105: 0.18% | U105: 0.01% | V105: Ayuntamiento de Santo Domingo Este | W105: 0.2% | X105: 0.0%
B106: Centro y Red de Tecnología Climática | C106: 0.09% | D106: 0.00% | E106: Centro y Red de Tecnología Climática | F106: 0.09% | G106: 0.00% | S106: Ayuntamiento de Santo Domingo Norte | T106: 0.18% | U106: 0.02% | V106: Ayuntamiento de Santo Domingo Norte | W106: 0.2% | X106: 0.0%
B107: CESAL ONG | C107: 0.09% | D107: 0.00% | E107: CESAL ONG | F107: 0.09% | G107: 0.00% | S107: Ayuntamiento de Tamboril | T107: 0.09% | U107: 0.00% | V107: Ayuntamiento de Tamboril | W107: 0.1% | X107: 0.0%
B108: Chile | C108: 0.09% | D108: 0.00% | E108: Chile | F108: 0.09% | G108: 0.00% | S108: Ayuntamiento del Distrito Nacional | T108: 0.35% | U108: 0.05% | V108: Ayuntamiento del Distrito Nacional | W108: 0.4% | X108: 0.0%
B109: China | C109: 0.27% | D109: 6.11% | E109: China | F109: 0.27% | G109: 6.11% | S109: Banco Agrícola de la República Dominicana (BAGRICOLA) | T109: 0.18% | U109: 0.36% | V109: Banco Agrícola de la República Dominicana (BAGRICOLA) | W109: 0.2% | X109: 0.4%
B110: Coalición Clima y Aire Limpio | C110: 0.09% | D110: 0.00% | E110: Coalición Clima y Aire Limpio | F110: 0.09% | G110: 0.00% | S110: Banco Agrícola de la República Dominicana (BAGRICOLA)/Asociación Dominicana de Granjas Porcinas (ADOGRANJA)/Dirección General de Ganadería (DGG)/Federación Dominicana De Porcicultores/Ministerio de Agricultura (MA) | T110: 0.09% | U110: 0.20% | V110: Banco Agrícola de la República Dominicana (BAGRICOLA)/Asociación Dominicana de Granjas Porcinas (ADOGRANJA)/Dirección General de Ganadería (DGG)/Federación Dominicana De Porcicultores/Ministerio de Agricultura (MA) | W110: 0.1% | X110: 0.2%
B111: Coalición para la Infraestructura Resiliente ante Desastres (CDRI) | C111: 0.09% | D111: 0.03% | E111: Coalición para la Infraestructura Resiliente ante Desastres (CDRI) | F111: 0.09% | G111: 0.03% | S111: Banco Central de la República Dominicana (BCR) | T111: 0.09% | U111: 0.03% | V111: Banco Central de la República Dominicana (BCR) | W111: 0.1% | X111: 0.0%
B112: Comunidad del Caribe | C112: 0.09% | D112: 0.00% | E112: Comunidad del Caribe | F112: 0.09% | G112: 0.00% | S112: Banco Centroamericano de Integración Económica | T112: 0.09% | U112: 1.44% | V112: Banco Centroamericano de Integración Económica | W112: 0.1% | X112: 1.4%
B113: Cooperación Coreana para la Alimentación y la Agricultura en América Latina | C113: 0.44% | D113: 0.02% | E113: Cooperación Coreana para la Alimentación y la Agricultura en América Latina | F113: 0.44% | G113: 0.02% | S113: Banco de Desarrollo de América Latina/Instituto Nacional de Recursos Hidráulicos (INDRHI) | T113: 0.09% | U113: 0.05% | V113: Banco de Desarrollo de América Latina/Instituto Nacional de Recursos Hidráulicos (INDRHI) | W113: 0.1% | X113: 0.0%
B114: Cooperación para el Desarrollo de Flanders | C114: 0.09% | D114: 0.01% | E114: Cooperación para el Desarrollo de Flanders | F114: 0.09% | G114: 0.01% | S114: Banco Interamericano de Desarrollo | T114: 3.10% | U114: 0.75% | V114: Banco Interamericano de Desarrollo | W114: 3.1% | X114: 0.7%
B115: Corea del Sur | C115: 0.53% | D115: 0.05% | E115: Corea del Sur | F115: 0.53% | G115: 0.05% | S115: Banco Mundial | T115: 0.53% | U115: 0.24% | V115: Banco Mundial | W115: 0.5% | X115: 0.2%
B116: Corporación Financiera Internacional | C116: 0.18% | D116: 0.05% | E116: Corporación Financiera Internacional | F116: 0.18% | G116: 0.05% | S116: Banco Mundial/Grupo de Acción Financiera del Caribe/Grupo de Acción Financiera de Latinoamérica/Comunidad del Caribe | T116: 0.09% | U116: 0.59% | V116: Banco Mundial/Grupo de Acción Financiera del Caribe/Grupo de Acción Financiera de Latinoamérica/Comunidad del Caribe | W116: 0.1% | X116: 0.6%
B117: Costa Rica | C117: 0.80% | D117: 0.06% | E117: Costa Rica | F117: 0.80% | G117: 0.06% | S117: Banco Nacional de las Exportaciones (BANDEX) | T117: 0.09% | U117: 0.01% | V117: Banco Nacional de las Exportaciones (BANDEX) | W117: 0.1% | X117: 0.0%
B118: Cuba | C118: 0.18% | D118: 0.02% | E118: Cuba | F118: 0.18% | G118: 0.02% | S118: Capítulo República Dominicana de la Internet Society (ISOC-DO) | T118: 0.09% | U118: 0.00% | V118: Capítulo República Dominicana de la Internet Society (ISOC-DO) | W118: 0.1% | X118: 0.0%
B119: Cuerpo de Servicio Ejecutivo Internacional | C119: 0.09% | D119: 0.00% | E119: Cuerpo de Servicio Ejecutivo Internacional | F119: 0.09% | G119: 0.00% | S119: Casa del Caribe/Fundación de Intercambio Cultural entre los Pueblos del Caribe (FUNCAR) – Centro Puente/M&E Consultants Profesionales al Servicio del Desarrollo Sostenible/Movimiento Socio Cultural Para Los Trabajadores Haitianos (MOSCTHA)/Movimiento de Mujeres Dominico Haitianas (MUDHA)/Fundación Étnica Integral (FEI) | T119: 0.09% | U119: 0.04% | V119: Casa del Caribe/Fundación de Intercambio Cultural entre los Pueblos del Caribe (FUNCAR) – Centro Puente/M&E Consultants Profesionales al Servicio del Desarrollo Sostenible/Movimiento Socio Cultural Para Los Trabajadores Haitianos (MOSCTHA)/Movimiento de Mujeres Dominico Haitianas (MUDHA)/Fundación Étnica Integral (FEI) | W119: 0.1% | X119: 0.0%
B120: Departamento de Agricultura de los Estados Unidos | C120: 0.09% | D120: 0.21% | E120: Departamento de Agricultura de los Estados Unidos | F120: 0.09% | G120: 0.21% | S120: Casa del Caribe/Fundación de Intercambio Cultural entre los Pueblos del Caribe (FUNCAR) – Centro Puente/Movimiento Socio Cultural Para Los Trabajadores Haitianos (MOSCTHA)/Movimiento de Mujeres Dominico Haitianas (MUDHA)/Fundación Étnica Integral (FEI) | T120: 0.09% | U120: 0.09% | V120: Casa del Caribe/Fundación de Intercambio Cultural entre los Pueblos del Caribe (FUNCAR) – Centro Puente/Movimiento Socio Cultural Para Los Trabajadores Haitianos (MOSCTHA)/Movimiento de Mujeres Dominico Haitianas (MUDHA)/Fundación Étnica Integral (FEI) | W120: 0.1% | X120: 0.1%
B121: Dirección General de Protección Civil y Operaciones de Ayuda Humanitaria de la Unión Europea | C121: 0.44% | D121: 0.03% | E121: Dirección General de Protección Civil y Operaciones de Ayuda Humanitaria de la Unión Europea | F121: 0.44% | G121: 0.03% | S121: Centro Agronómico Tropical de Investigación y Enseñanza (CATIE) | T121: 0.09% | U121: 0.00% | V121: Centro Agronómico Tropical de Investigación y Enseñanza (CATIE) | W121: 0.1% | X121: 0.0%
B122: DSM | C122: 0.27% | D122: 0.01% | E122: DSM | F122: 0.27% | G122: 0.01% | S122: Centro de Atención Integral para la Discapacidad (CAID) | T122: 0.18% | U122: 0.08% | V122: Centro de Atención Integral para la Discapacidad (CAID) | W122: 0.2% | X122: 0.1%
B123: Ecuador | C123: 0.27% | D123: 0.00% | E123: Ecuador | F123: 0.27% | G123: 0.00% | S123: Centro de Comercio Internacional/Instituto Caribeño de Investigación y Desarrollo Agrícola (CARDI)/Instituto Dominicano de Investigaciones Agropecuarias y Forestales (IDIAF) | T123: 0.09% | U123: 0.39% | V123: Centro de Comercio Internacional/Instituto Caribeño de Investigación y Desarrollo Agrícola (CARDI)/Instituto Dominicano de Investigaciones Agropecuarias y Forestales (IDIAF) | W123: 0.1% | X123: 0.4%
B124: El Salvador | C124: 0.09% | D124: 0.00% | E124: El Salvador | F124: 0.09% | G124: 0.00% | S124: Centro de Comercio Internacional/Organización de las Naciones Unidas para el Desarrollo Industrial/Banco Mundial | T124: 0.09% | U124: 2.26% | V124: Centro de Comercio Internacional/Organización de las Naciones Unidas para el Desarrollo Industrial/Banco Mundial | W124: 0.1% | X124: 2.3%
B125: Embajada de Estados Unidos | C125: 0.09% | D125: 0.02% | E125: Embajada de Estados Unidos | F125: 0.09% | G125: 0.02% | S125: Centro de Desarrollo y Competitividad Industrial (PROINDUSTRIA) | T125: 0.09% | U125: 0.00% | V125: Centro de Desarrollo y Competitividad Industrial (PROINDUSTRIA) | W125: 0.1% | X125: 0.0%
B126: Embajada de Gran Bretaña | C126: 0.18% | D126: 0.00% | E126: Embajada de Gran Bretaña | F126: 0.18% | G126: 0.00% | S126: Centro de Estudios en Desarrollo Sostenible (CEDESO) | T126: 0.27% | U126: 0.03% | V126: Centro de Estudios en Desarrollo Sostenible (CEDESO) | W126: 0.3% | X126: 0.0%
B127: Embajada de Japón | C127: 1.06% | D127: 0.19% | E127: Embajada de Japón | F127: 1.06% | G127: 0.19% | S127: Centro de Estudios en Desarrollo Sostenible (CEDESO)/Instituto Nacional de la Salud (INSALUD) | T127: 0.09% | U127: 0.03% | V127: Centro de Estudios en Desarrollo Sostenible (CEDESO)/Instituto Nacional de la Salud (INSALUD) | W127: 0.1% | X127: 0.0%
B128: Embajada de la República Popular China | C128: 0.09% | D128: 0.00% | E128: Embajada de la República Popular China | F128: 0.09% | G128: 0.00% | S128: Centro de Exportación e Inversión de la República Dominicana (ProDominicana) | T128: 0.27% | U128: 0.04% | V128: Centro de Exportación e Inversión de la República Dominicana (ProDominicana) | W128: 0.3% | X128: 0.0%
B129: Embajada del Reino de Arabia Saudita | C129: 0.27% | D129: 0.08% | E129: Embajada del Reino de Arabia Saudita | F129: 0.27% | G129: 0.08% | S129: Centro de Exportación e Inversión de la República Dominicana (PRODOMINICANA)/Junta Agroempresarial Dominicana, Inc. (JAD)/Ministerio de Agricultura (MA) | T129: 0.09% | U129: 0.01% | V129: Centro de Exportación e Inversión de la República Dominicana (PRODOMINICANA)/Junta Agroempresarial Dominicana, Inc. (JAD)/Ministerio de Agricultura (MA) | W129: 0.1% | X129: 0.0%
B130: Escuela de Negocios de Shanghai | C130: 0.09% | D130: 0.00% | E130: Escuela de Negocios de Shanghai | F130: 0.09% | G130: 0.00% | S130: Centro de Operaciones de Emergencias (COE) | T130: 0.18% | U130: 0.13% | V130: Centro de Operaciones de Emergencias (COE) | W130: 0.2% | X130: 0.1%
B131: España | C131: 0.18% | D131: 0.02% | E131: España | F131: 0.18% | G131: 0.02% | S131: Centro de Operaciones de Emergencias (COE)/Oficina de la Defensa Civil (ODC) | T131: 0.09% | U131: 0.04% | V131: Centro de Operaciones de Emergencias (COE)/Oficina de la Defensa Civil (ODC) | W131: 0.1% | X131: 0.0%
B132: Estados Unidos de América | C132: 1.86% | D132: 2.22% | E132: Estados Unidos de América | F132: 1.86% | G132: 2.22% | S132: Centro de Orientación e Investigación Integral (COIN) | T132: 0.09% | U132: 0.00% | V132: Centro de Orientación e Investigación Integral (COIN) | W132: 0.1% | X132: 0.0%
B133: Fondo Andaluz de Municipios para la Solidaridad Internacional | C133: 0.09% | D133: 0.01% | E133: Fondo Andaluz de Municipios para la Solidaridad Internacional | F133: 0.09% | G133: 0.01% | S133: Centro del Clima de Copenhague del Programa de las Naciones Unidas para el Medio Ambiente | T133: 0.09% | U133: 0.01% | V133: Centro del Clima de Copenhague del Programa de las Naciones Unidas para el Medio Ambiente | W133: 0.1% | X133: 0.0%
B134: Fondo de Abu Dabi para el Desarrollo | C134: 0.09% | D134: 0.19% | E134: Fondo de Abu Dabi para el Desarrollo | F134: 0.09% | G134: 0.19% | S134: Centro Español de Logística | T134: 0.09% | U134: 0.00% | V134: Centro Español de Logística | W134: 0.1% | X134: 0.0%
B135: Fondo de Inversión en el Clima | C135: 0.09% | D135: 0.03% | E135: Fondo de Inversión en el Clima | F135: 0.09% | G135: 0.03% | S135: Centro Internacional de Agricultura Tropical (CIAT) | T135: 0.09% | U135: 0.01% | V135: Centro Internacional de Agricultura Tropical (CIAT) | W135: 0.1% | X135: 0.0%
B136: Fondo de la ONU para la Seguridad Vial | C136: 0.09% | D136: 0.03% | E136: Fondo de la ONU para la Seguridad Vial | F136: 0.09% | G136: 0.03% | S136: Centro para el Desarrollo Agropecuario y Forestal (CEDAF) | T136: 0.09% | U136: 0.07% | V136: Centro para el Desarrollo Agropecuario y Forestal (CEDAF) | W136: 0.1% | X136: 0.1%
B137: Fondo de las Naciones Unidas para la Consolidación de la Paz | C137: 0.09% | D137: 0.03% | E137: Fondo de las Naciones Unidas para la Consolidación de la Paz | F137: 0.09% | G137: 0.03% | S137: Centro para la Observación Migratoria y el Desarrollo Social en el Caribe (OBMICA)/Alto Comisionado para los Refugiados | T137: 0.09% | U137: 0.01% | V137: Centro para la Observación Migratoria y el Desarrollo Social en el Caribe (OBMICA)/Alto Comisionado para los Refugiados | W137: 0.1% | X137: 0.0%
B138: Fondo de las Naciones Unidas para la Infancia | C138: 3.27% | D138: 2.64% | E138: =B138 -> Fondo de las Naciones Unidas para la Infancia | F138: =C138 -> 3.27% | G138: =D138 -> 2.64% | S138: Centro para la Observación Migratoria y el Desarrollo Social en el Caribe (OBMICA)/Asociación Scalabriniana (ASCALA)/Instituto Dominicano de Desarrollo Integral (IDDI) | T138: 0.09% | U138: 0.01% | V138: =IF(OR(S138="",S138="Grand Total"),"",S138) -> Centro para la Observación Migratoria y el Desarrollo Social en el Caribe (OBMICA)/Asociación Scalabriniana (ASCALA)/Instituto Dominicano de Desarrollo Integral (IDDI) | W138: =T138 -> 0.1% | X138: =U138 -> 0.0%
B139: Fondo de Población de las Naciones Unidas | C139: 2.04% | D139: 0.12% | E139: Fondo de Población de las Naciones Unidas | F139: 2.04% | G139: 0.12% | S139: Centro para la Observación Migratoria y el Desarrollo Social en el Caribe (OBMICA)/Asociación Scalabriniana (ASCALA)/Instituto Dominicano de Desarrollo Integral (IDDI)/HeartLand Alliance International (HAI) | T139: 0.09% | U139: 0.00% | V139: Centro para la Observación Migratoria y el Desarrollo Social en el Caribe (OBMICA)/Asociación Scalabriniana (ASCALA)/Instituto Dominicano de Desarrollo Integral (IDDI)/HeartLand Alliance International (HAI) | W139: 0.1% | X139: 0.0%
B140: Fondo Fiduciario de las Naciones Unidas para la Seguridad Humana | C140: 0.09% | D140: 0.01% | E140: Fondo Fiduciario de las Naciones Unidas para la Seguridad Humana | F140: 0.09% | G140: 0.01% | S140: Centros Tecnológicos Comunitarios (CTCs) | T140: 0.09% | U140: 0.00% | V140: Centros Tecnológicos Comunitarios (CTCs) | W140: 0.1% | X140: 0.0%
B141: Fondo Internacional para el Desarrollo Agrícola | C141: 0.27% | D141: 0.02% | E141: Fondo Internacional para el Desarrollo Agrícola | F141: 0.27% | G141: 0.02% | S141: Centros Tecnológicos Comunitarios (CTCs)/Unión Internacional de Telecomunicaciones (UIT) | T141: 0.09% | U141: 0.00% | V141: Centros Tecnológicos Comunitarios (CTCs)/Unión Internacional de Telecomunicaciones (UIT) | W141: 0.1% | X141: 0.0%
B142: Fondo Multilateral para la implementación del Protocolo de Montreal | C142: 0.18% | D142: 0.19% | E142: Fondo Multilateral para la implementación del Protocolo de Montreal | F142: 0.18% | G142: 0.19% | S142: CESAL ONG/Asociación Scalabriniana (ASCALA)/Instituto Dominicano de Desarrollo Integral (IDDI)/Alto Comisionado para los Refugiados | T142: 0.09% | U142: 0.01% | V142: CESAL ONG/Asociación Scalabriniana (ASCALA)/Instituto Dominicano de Desarrollo Integral (IDDI)/Alto Comisionado para los Refugiados | W142: 0.1% | X142: 0.0%
B143: Fondo Mundial para la lucha contra el SIDA, la tuberculosis y la malaria | C143: 0.53% | D143: 1.37% | E143: Fondo Mundial para la lucha contra el SIDA, la tuberculosis y la malaria | F143: 0.53% | G143: 1.37% | S143: Chemonics | T143: 0.27% | U143: 3.53% | V143: Chemonics | W143: 0.3% | X143: 3.5%
B144: Fondo Objetivos de Desarrollo Sostenible | C144: 0.35% | D144: 0.09% | E144: Fondo Objetivos de Desarrollo Sostenible | F144: 0.35% | G144: 0.09% | S144: Christian Aid | T144: 0.09% | U144: 0.04% | V144: Christian Aid | W144: 0.1% | X144: 0.0%
B145: Fondo para el Medio Ambiente Mundial | C145: 1.33% | D145: 2.25% | E145: Fondo para el Medio Ambiente Mundial | F145: 1.33% | G145: 2.25% | S145: Comandancia General de la Armada de la República Dominicana | T145: 0.18% | U145: 0.01% | V145: Comandancia General de la Armada de la República Dominicana | W145: 0.2% | X145: 0.0%
B146: Fondo para la Aplicación de Normas y el Fomento del Comercio | C146: 0.09% | D146: 0.00% | E146: Fondo para la Aplicación de Normas y el Fomento del Comercio | F146: 0.09% | G146: 0.00% | S146: Comisión Consultiva para la Ley de Libertad de Expresión y Medios de Comunicación (CCLEX)/Oficina del Coordinador Residente de las Naciones Unidas | T146: 0.09% | U146: 0.00% | V146: Comisión Consultiva para la Ley de Libertad de Expresión y Medios de Comunicación (CCLEX)/Oficina del Coordinador Residente de las Naciones Unidas | W146: 0.1% | X146: 0.0%
B147: Fondo para la Biodiversidad Caribeña | C147: 0.53% | D147: 0.04% | E147: Fondo para la Biodiversidad Caribeña | F147: 0.53% | G147: 0.04% | S147: Comisión Nacional de Defensa de la Competencia (PROCOMPETENCIA) | T147: 0.09% | U147: 0.00% | V147: Comisión Nacional de Defensa de la Competencia (PROCOMPETENCIA) | W147: 0.1% | X147: 0.0%
B148: Fondo Saudita para el Desarrollo | C148: 0.09% | D148: 0.03% | E148: Fondo Saudita para el Desarrollo | F148: 0.09% | G148: 0.03% | S148: Comisión Nacional de Emergencias | T148: 0.09% | U148: 0.16% | V148: Comisión Nacional de Emergencias | W148: 0.1% | X148: 0.2%
B149: Fondo Verde del Clima | C149: 0.62% | D149: 0.68% | E149: Fondo Verde del Clima | F149: 0.62% | G149: 0.68% | S149: Comisión Nacional de Emergencias/Agencia Caribeña para el Manejo de Emergencias por Desastres (CDEMA) | T149: 0.09% | U149: 0.91% | V149: Comisión Nacional de Emergencias/Agencia Caribeña para el Manejo de Emergencias por Desastres (CDEMA) | W149: 0.1% | X149: 0.9%
B150: Francia | C150: 0.18% | D150: 0.00% | E150: Francia | F150: 0.18% | G150: 0.00% | S150: Comisión Nacional de Emergencias/Dirección General de Desarrollo Fronterizo (DGDF)/Instituto Nacional de Recursos Hidráulicos (INDRHI)/Ministerio de Agricultura (MA)/Ministerio de Medio Ambiente y Recursos Naturales (MARENA)/Oficina Nacional de Meteorología (ONAMET)/Programa Supérate/Sistema Integrado Nacional de Información (SINI) | T150: 0.09% | U150: 0.01% | V150: Comisión Nacional de Emergencias/Dirección General de Desarrollo Fronterizo (DGDF)/Instituto Nacional de Recursos Hidráulicos (INDRHI)/Ministerio de Agricultura (MA)/Ministerio de Medio Ambiente y Recursos Naturales (MARENA)/Oficina Nacional de Meteorología (ONAMET)/Programa Supérate/Sistema Integrado Nacional de Información (SINI) | W150: 0.1% | X150: 0.0%
B151: Fundación Avina | C151: 0.09% | D151: 0.00% | E151: Fundación Avina | F151: 0.09% | G151: 0.00% | S151: Comisión Nacional de Energía (CNE)/Ministerio de Energía y Minas (MEM) | T151: 0.09% | U151: 0.00% | V151: Comisión Nacional de Energía (CNE)/Ministerio de Energía y Minas (MEM) | W151: 0.1% | X151: 0.0%
B152: Fundación CIDCA | C152: 0.09% | D152: 0.06% | E152: Fundación CIDCA | F152: 0.09% | G152: 0.06% | S152: Comisión Nacional Dominicana para la UNESCO | T152: 0.44% | U152: 0.00% | V152: Comisión Nacional Dominicana para la UNESCO | W152: 0.4% | X152: 0.0%
B153: Fundación ONCE | C153: 0.09% | D153: 0.01% | E153: Fundación ONCE | F153: 0.09% | G153: 0.01% | S153: Comisión Nacional Dominicana para la UNESCO/Archivo General de la Nación (AGN) | T153: 0.09% | U153: 0.00% | V153: Comisión Nacional Dominicana para la UNESCO/Archivo General de la Nación (AGN) | W153: 0.1% | X153: 0.0%
B154: Fundación Oswaldo Cruz | C154: 0.09% | D154: 0.00% | E154: Fundación Oswaldo Cruz | F154: 0.09% | G154: 0.00% | S154: Comisión Nacional Dominicana para la UNESCO/Instituto Global de Altos Estudios en Ciencias Sociales (IGLOBAL) | T154: 0.09% | U154: 0.00% | V154: Comisión Nacional Dominicana para la UNESCO/Instituto Global de Altos Estudios en Ciencias Sociales (IGLOBAL) | W154: 0.1% | X154: 0.0%
B155: Fundación para Internaciolización de las Administraciones Públicas | C155: 0.09% | D155: 0.03% | E155: Fundación para Internaciolización de las Administraciones Públicas | F155: 0.09% | G155: 0.03% | S155: Comisión Nacional Dominicana para la UNESCO/Ministerio de Cultura (MNC) | T155: 0.09% | U155: 0.00% | V155: Comisión Nacional Dominicana para la UNESCO/Ministerio de Cultura (MNC) | W155: 0.1% | X155: 0.0%
B156: Fundación Popular | C156: 1.06% | D156: 0.07% | E156: Fundación Popular | F156: 1.06% | G156: 0.07% | S156: Commercial Law Development Program (CLDP) | T156: 0.09% | U156: 0.09% | V156: Commercial Law Development Program (CLDP) | W156: 0.1% | X156: 0.1%
B157: Global Support and Development | C157: 0.18% | D157: 0.01% | E157: =B157 -> Global Support and Development | F157: 0.18% | G157: =D157 -> 0.01% | S157: Consejo de Ministros de Ambiente y Desarrollo | T157: 0.09% | U157: 1.60% | V157: Consejo de Ministros de Ambiente y Desarrollo | W157: 0.1% | X157: 1.6%
B158: Good Neighbors | C158: 0.18% | D158: 0.00% | E158: =B158 -> Good Neighbors | F158: 0.18% | G158: =D158 -> 0.00% | S158: Consejo del Poder Judicial (CPJ) | T158: 0.27% | U158: 0.03% | V158: Consejo del Poder Judicial (CPJ) | W158: 0.3% | X158: 0.0%
B159: Grupo Ramos | C159: 0.09% | D159: 0.07% | E159: Grupo Ramos | F159: 0.09% | G159: 0.07% | S159: Consejo Dominicano de Pesca y Acuicultura (CODOPESCA) | T159: 0.09% | U159: 0.01% | V159: Consejo Dominicano de Pesca y Acuicultura (CODOPESCA) | W159: 0.1% | X159: 0.0%
B160: Heartland Alliance International | C160: 0.09% | D160: 0.00% | E160: Heartland Alliance International | F160: 0.09% | G160: 0.00% | S160: Consejo Dominicano de Pesca y Acuicultura (CODOPESCA)/Ministerio de Agricultura (MA) | T160: 0.09% | U160: 0.03% | V160: Consejo Dominicano de Pesca y Acuicultura (CODOPESCA)/Ministerio de Agricultura (MA) | W160: 0.1% | X160: 0.0%
B161: India | C161: 0.09% | D161: 0.00% | E161: India | F161: 0.09% | G161: 0.00% | S161: Consejo Dominicano de Pesca y Acuicultura (CODOPESCA)/Ministerio de Economía, Planificación y Desarrollo (MEPyD) | T161: 0.09% | U161: 0.06% | V161: Consejo Dominicano de Pesca y Acuicultura (CODOPESCA)/Ministerio de Economía, Planificación y Desarrollo (MEPyD) | W161: 0.1% | X161: 0.1%
B162: Instituto Costarricense de Electricidad (ICE) | C162: 0.09% | D162: 0.00% | E162: Instituto Costarricense de Electricidad (ICE) | F162: 0.09% | G162: 0.00% | S162: Consejo Dominicano de Pesca y Acuicultura (CODOPESCA)/Universidad ISA/Organizaciones de la sociedad civil no especificadas | T162: 0.09% | U162: 0.02% | V162: Consejo Dominicano de Pesca y Acuicultura (CODOPESCA)/Universidad ISA/Organizaciones de la sociedad civil no especificadas | W162: 0.1% | X162: 0.0%
B163: Instituto Interamericano de Cooperación para la Agricultura | C163: 0.09% | D163: 0.03% | E163: Instituto Interamericano de Cooperación para la Agricultura | F163: 0.09% | G163: 0.03% | S163: Consejo Nacional de Competitividad (CNC) | T163: 0.09% | U163: 0.02% | V163: Consejo Nacional de Competitividad (CNC) | W163: 0.1% | X163: 0.0%
B164: Islas Baleares | C164: 0.09% | D164: 0.02% | E164: Islas Baleares | F164: 0.09% | G164: 0.02% | S164: Consejo Nacional de Competitividad (CNC)/Dirección General de Contrataciones Públicas (DGCP)/Consejo Nacional de Promoción y Apoyo a la Micro, Pequeña y Mediana Empresa (PROMIPYME)/Ministerio de Economía, Planificación y Desarrollo (MEPyD)/Ministerio de Medio Ambiente y Recursos Naturales (MARENA)/Centro de Exportación e Inversión de la República Dominicana (PRODOMINICANA)/Ministerio de Industria Comercio y Mipymes (MICM)/Ministerio de Hacienda (MH) | T164: 0.09% | U164: 0.85% | V164: Consejo Nacional de Competitividad (CNC)/Dirección General de Contrataciones Públicas (DGCP)/Consejo Nacional de Promoción y Apoyo a la Micro, Pequeña y Mediana Empresa (PROMIPYME)/Ministerio de Economía, Planificación y Desarrollo (MEPyD)/Ministerio de Medio Ambiente y Recursos Naturales (MARENA)/Centro de Exportación e Inversión de la República Dominicana (PRODOMINICANA)/Ministerio de Industria Comercio y Mipymes (MICM)/Ministerio de Hacienda (MH) | W164: 0.1% | X164: 0.8%
B165: Japón | C165: 0.44% | D165: 0.01% | E165: Japón | F165: 0.44% | G165: 0.01% | S165: Consejo Nacional de Discapacidad (CONADIS) | T165: 0.09% | U165: 0.00% | V165: Consejo Nacional de Discapacidad (CONADIS) | W165: 0.1% | X165: 0.0%
B166: Luxemburgo | C166: 0.09% | D166: 0.00% | E166: Luxemburgo | F166: 0.09% | G166: 0.00% | S166: Consejo Nacional de Discapacidad (CONADIS)/Ministerio de Trabajo (MIT)/Programa de las Naciones Unidas para el Desarrollo | T166: 0.09% | U166: 0.01% | V166: Consejo Nacional de Discapacidad (CONADIS)/Ministerio de Trabajo (MIT)/Programa de las Naciones Unidas para el Desarrollo | W166: 0.1% | X166: 0.0%
B167: Marruecos | C167: 0.27% | D167: 0.00% | E167: Marruecos | F167: 0.27% | G167: 0.00% | S167: Consejo Nacional de Drogas (CND)/Ministerio de Educación (MINERD) | T167: 0.09% | U167: 0.00% | V167: Consejo Nacional de Drogas (CND)/Ministerio de Educación (MINERD) | W167: 0.1% | X167: 0.0%
B168: Mastercard Foundation | C168: 0.09% | D168: 0.01% | E168: Mastercard Foundation | F168: 0.09% | G168: 0.01% | S168: Consejo Nacional de Drogas (CND)/Ministerio de Salud Pública y Asistencia Social (MISPAS)/Organizaciones de la sociedad civil no especificadas | T168: 0.09% | U168: 0.00% | V168: Consejo Nacional de Drogas (CND)/Ministerio de Salud Pública y Asistencia Social (MISPAS)/Organizaciones de la sociedad civil no especificadas | W168: 0.1% | X168: 0.0%
B169: Ministerio de Europa y Asuntos Exteriores | C169: 0.09% | D169: 0.00% | E169: Ministerio de Europa y Asuntos Exteriores | F169: 0.09% | G169: 0.00% | S169: Consejo Nacional de la Persona Envejeciente (CONAPE) | T169: 0.27% | U169: 0.00% | V169: Consejo Nacional de la Persona Envejeciente (CONAPE) | W169: 0.3% | X169: 0.0%
B170: Ministerio de Inmigración, Refugiados y Ciudadanía de Canada | C170: 0.09% | D170: 0.04% | E170: Ministerio de Inmigración, Refugiados y Ciudadanía de Canada | F170: 0.09% | G170: 0.04% | S170: Consejo Nacional de Zonas Francas de Exportación (CNZFE) | T170: 0.09% | U170: 0.03% | V170: Consejo Nacional de Zonas Francas de Exportación (CNZFE) | W170: 0.1% | X170: 0.0%
B171: Missouri University of Sciencie and Technology | C171: 0.09% | D171: 0.00% | E171: =B171 -> Missouri University of Sciencie and Technology | F171: =C171 -> 0.09% | G171: =D171 -> 0.00% | S171: Consejo Nacional para el Cambio Climático y Mecanismo de Desarrollo Limpio (CNCCMDL) | T171: 1.33% | U171: 0.16% | V171: Consejo Nacional para el Cambio Climático y Mecanismo de Desarrollo Limpio (CNCCMDL) | W171: 1.3% | X171: 0.2%
B172: Mondelez Europe GmbH | C172: 0.09% | D172: 0.04% | E172: Mondelez Europe GmbH | F172: 0.09% | G172: 0.04% | S172: Consejo Nacional para el Cambio Climático y Mecanismo de Desarrollo Limpio (CNCCMDL)/Ministerio de Economía, Planificación y Desarrollo (MEPYD) | T172: 0.09% | U172: 0.02% | V172: Consejo Nacional para el Cambio Climático y Mecanismo de Desarrollo Limpio (CNCCMDL)/Ministerio de Economía, Planificación y Desarrollo (MEPYD) | W172: 0.1% | X172: 0.0%
B173: N/D | C173: 0.27% | D173: 0.46% | E173: N/D | F173: 0.27% | G173: 0.46% | S173: Consejo Nacional para el Cambio Climático y Mecanismo de Desarrollo Limpio (CNCCMDL)/Ministerio de Economía, Planificación y Desarrollo (MEPyD)/Ministerio de Medio Ambiente y Recursos Naturales (MARENA) | T173: 0.09% | U173: 0.13% | V173: Consejo Nacional para el Cambio Climático y Mecanismo de Desarrollo Limpio (CNCCMDL)/Ministerio de Economía, Planificación y Desarrollo (MEPyD)/Ministerio de Medio Ambiente y Recursos Naturales (MARENA) | W173: 0.1% | X173: 0.1%
B174: NDC Partnership | C174: 0.27% | D174: 0.00% | E174: NDC Partnership | F174: 0.27% | G174: 0.00% | S174: Consejo Nacional para el VIH y el SIDA (CONAVIHSIDA) | T174: 0.71% | U174: 0.06% | V174: Consejo Nacional para el VIH y el SIDA (CONAVIHSIDA) | W174: 0.7% | X174: 0.1%
B175: Oficina de las Naciones Unidas de Servicios para Proyectos (UNOPS) | C175: 0.18% | D175: 0.02% | E175: Oficina de las Naciones Unidas de Servicios para Proyectos (UNOPS) | F175: 0.18% | G175: 0.02% | S175: Consejo Nacional para el VIH y el SIDA (CONAVIHSIDA)/Ministerio de Salud Pública y Asistencia Social (MISPAS) | T175: 0.09% | U175: 0.00% | V175: Consejo Nacional para el VIH y el SIDA (CONAVIHSIDA)/Ministerio de Salud Pública y Asistencia Social (MISPAS) | W175: 0.1% | X175: 0.0%
B176: Oficina de Naciones Unidas contra la Droga y el Delito | C176: 0.62% | D176: 0.06% | E176: Oficina de Naciones Unidas contra la Droga y el Delito | F176: 0.62% | G176: 0.06% | S176: Consejo Nacional para la Niñez y la Adolescencia (CONANI) | T176: 0.35% | U176: 0.00% | V176: Consejo Nacional para la Niñez y la Adolescencia (CONANI) | W176: 0.4% | X176: 0.0%
B177: Organización de Estados Americanos | C177: 0.09% | D177: 0.01% | E177: Organización de Estados Americanos | F177: 0.09% | G177: 0.01% | S177: Consejo Nacional para la Niñez y la Adolescencia (CONANI)/Gabinete de Coordinación de Política Social/Consejo del Poder Judicial (CPJ)/Dirección General de la Policía Nacional/Ministerio Público/Servicio Nacional de Salud (SNS)/Ministerio de Educación (MINERD)/Ministerio de Salud Pública y Asistencia Social (MISPAS)/Ministerio de la Mujer (MMUJER) | T177: 0.09% | U177: 0.00% | V177: Consejo Nacional para la Niñez y la Adolescencia (CONANI)/Gabinete de Coordinación de Política Social/Consejo del Poder Judicial (CPJ)/Dirección General de la Policía Nacional/Ministerio Público/Servicio Nacional de Salud (SNS)/Ministerio de Educación (MINERD)/Ministerio de Salud Pública y Asistencia Social (MISPAS)/Ministerio de la Mujer (MMUJER) | W177: 0.1% | X177: 0.0%
B178: Organización de Estados Iberoamericanos para la Educación, la Ciencia y la Cultura | C178: 0.18% | D178: 0.00% | E178: Organización de Estados Iberoamericanos para la Educación, la Ciencia y la Cultura | F178: 0.18% | G178: 0.00% | S178: Consejo Nacional para la Niñez y la Adolescencia (CONANI)/Ministerio de Salud Pública y Asistencia Social (MISPAS)/Gabinete de Coordinación de Política Social/Gabinete de la Niñez/Ministerio de Relaciones Exteriores (MIREX)/Ministerio de la Juventud (MJ)/Oficina Nacional de Estadística (ONE)/Ministerio Público | T178: 0.09% | U178: 0.08% | V178: Consejo Nacional para la Niñez y la Adolescencia (CONANI)/Ministerio de Salud Pública y Asistencia Social (MISPAS)/Gabinete de Coordinación de Política Social/Gabinete de la Niñez/Ministerio de Relaciones Exteriores (MIREX)/Ministerio de la Juventud (MJ)/Oficina Nacional de Estadística (ONE)/Ministerio Público | W178: 0.1% | X178: 0.1%
B179: Organización de las Naciones Unidas para el Desarrollo Industrial | C179: 0.09% | D179: 0.00% | E179: Organización de las Naciones Unidas para el Desarrollo Industrial | F179: 0.09% | G179: 0.00% | S179: Constructora AQUAMAR SRL | T179: 0.09% | U179: 0.01% | V179: Constructora AQUAMAR SRL | W179: 0.1% | X179: 0.0%
B180: Organización de las Naciones Unidas para la Alimentación y la Agricultura | C180: 2.65% | D180: 3.17% | E180: Organización de las Naciones Unidas para la Alimentación y la Agricultura | F180: 2.65% | G180: 3.17% | S180: Cooperativa Agropecuaria de Ganaderos del Sur, Inc | T180: 0.09% | U180: 0.02% | V180: Cooperativa Agropecuaria de Ganaderos del Sur, Inc | W180: 0.1% | X180: 0.0%
B181: Organización de las Naciones Unidas para la Educación, la Ciencia y la Cultura | C181: 5.49% | D181: 0.08% | E181: Organización de las Naciones Unidas para la Educación, la Ciencia y la Cultura | F181: 5.49% | G181: 0.08% | S181: Coordinación Educativa y Cultural Centroamericana del SICA (CECC-SICA) | T181: 0.09% | U181: 0.00% | V181: Coordinación Educativa y Cultural Centroamericana del SICA (CECC-SICA) | W181: 0.1% | X181: 0.0%
B182: Organización Internacional del Trabajo | C182: 0.44% | D182: 0.01% | E182: Organización Internacional del Trabajo | F182: 0.44% | G182: 0.01% | S182: Corporación del Acueducto y Alcantarillado de La Vega (CORAAVEGA)/Instituto Nacional de Aguas Potables y Alcantarillados (INAPA)/Corporación del Acueducto y Alcantarillado de Santiago (CORAASAN)/Ministerio de Economía, Planificación y Desarrollo (MEPyD)/Instituto Nacional de Recursos Hidráulicos (INDRHI) | T182: 0.09% | U182: 0.03% | V182: Corporación del Acueducto y Alcantarillado de La Vega (CORAAVEGA)/Instituto Nacional de Aguas Potables y Alcantarillados (INAPA)/Corporación del Acueducto y Alcantarillado de Santiago (CORAASAN)/Ministerio de Economía, Planificación y Desarrollo (MEPyD)/Instituto Nacional de Recursos Hidráulicos (INDRHI) | W182: 0.1% | X182: 0.0%
B183: Organización Internacional para las Migraciones | C183: 0.88% | D183: 0.05% | E183: Organización Internacional para las Migraciones | F183: 0.88% | G183: 0.05% | S183: Corporación del Acueducto y Alcantarillado de Santiago (CORAASAN) | T183: 0.09% | U183: 0.04% | V183: Corporación del Acueducto y Alcantarillado de Santiago (CORAASAN) | W183: 0.1% | X183: 0.0%
B184: Organización Mundial de la Salud | C184: 0.09% | D184: 0.00% | E184: Organización Mundial de la Salud | F184: 0.09% | G184: 0.00% | S184: Corporación del Acueducto y Alcantarillado de Santo Domingo (CAASD) | T184: 0.27% | U184: 0.07% | V184: Corporación del Acueducto y Alcantarillado de Santo Domingo (CAASD) | W184: 0.3% | X184: 0.1%
B185: Organización Mundial del Turismo | C185: 0.09% | D185: 0.00% | E185: Organización Mundial del Turismo | F185: 0.09% | G185: 0.00% | S185: Corporación Dominicana de Empresas Eléctricas Estatales (CDEEE) | T185: 0.27% | U185: 0.64% | V185: Corporación Dominicana de Empresas Eléctricas Estatales (CDEEE) | W185: 0.3% | X185: 0.6%
B186: Organización Panamericana de la Salud | C186: 1.68% | D186: 0.07% | E186: Organización Panamericana de la Salud | F186: 1.68% | G186: 0.07% | S186: Corporación Dominicana de Empresas Eléctricas Estatales (CDEEE)/Ministerio de Energía y Minas (MEM) | T186: 0.09% | U186: 0.01% | V186: Corporación Dominicana de Empresas Eléctricas Estatales (CDEEE)/Ministerio de Energía y Minas (MEM) | W186: 0.1% | X186: 0.0%
B187: Panamá | C187: 0.09% | D187: 0.00% | E187: Panamá | F187: 0.09% | G187: 0.00% | S187: Counterpart International | T187: 0.18% | U187: 0.72% | V187: Counterpart International | W187: 0.2% | X187: 0.7%
B188: Plan de Emergencia del Presidente de los Estados Unidos para el Alivio del SIDA (PEPFAR) | C188: 0.62% | D188: 0.04% | E188: Plan de Emergencia del Presidente de los Estados Unidos para el Alivio del SIDA (PEPFAR) | F188: 0.62% | G188: 0.04% | S188: Cuerpo Especializado de Seguridad Aeroportuaria y de la Aviación Civil (CESAC) | T188: 0.09% | U188: 0.14% | V188: Cuerpo Especializado de Seguridad Aeroportuaria y de la Aviación Civil (CESAC) | W188: 0.1% | X188: 0.1%
B189: Programa Conjunto de las Naciones Unidas sobre el VIH SIDA | C189: 1.68% | D189: 0.08% | E189: Programa Conjunto de las Naciones Unidas sobre el VIH SIDA | F189: 1.68% | G189: 0.08% | S189: Defensor del Pueblo (DP) | T189: 0.09% | U189: 0.00% | V189: Defensor del Pueblo (DP) | W189: 0.1% | X189: 0.0%
B190: Programa de las Naciones Unidas para el Desarrollo | C190: 2.04% | D190: 0.31% | E190: Programa de las Naciones Unidas para el Desarrollo | F190: 2.04% | G190: 0.31% | S190: Departamento de Justicia/International Criminal Investigative Training Assistance Program (ICITAP) | T190: 0.09% | U190: 0.41% | V190: Departamento de Justicia/International Criminal Investigative Training Assistance Program (ICITAP) | W190: 0.1% | X190: 0.4%
B191: Programa de las Naciones Unidas para los Asentamientos Humanos | C191: 0.09% | D191: 0.04% | E191: Programa de las Naciones Unidas para los Asentamientos Humanos | F191: 0.09% | G191: 0.04% | S191: Departamento Nacional de Investigaciones (DNI)/Dirección Nacional de Control de Drogas (DNCD)/Comandancia General de la Armada de la República Dominicana/Dirección General de la Policía Nacional/Cuerpo Especializado de Seguridad Portuaria (CESEP)/Dirección General de Aduanas (DGA)/Ministerio Público/Consejo Nacional de Drogas (CND)/Ministerio de Relaciones Exteriores (MIREX) | T191: 0.09% | U191: 0.01% | V191: Departamento Nacional de Investigaciones (DNI)/Dirección Nacional de Control de Drogas (DNCD)/Comandancia General de la Armada de la República Dominicana/Dirección General de la Policía Nacional/Cuerpo Especializado de Seguridad Portuaria (CESEP)/Dirección General de Aduanas (DGA)/Ministerio Público/Consejo Nacional de Drogas (CND)/Ministerio de Relaciones Exteriores (MIREX) | W191: 0.1% | X191: 0.0%
B192: Programa Internacional para el Desarrollo de la Comunicación (PIDC) | C192: 0.09% | D192: 0.00% | E192: Programa Internacional para el Desarrollo de la Comunicación (PIDC) | F192: 0.09% | G192: 0.00% | S192: Dirección General de Aduanas (DGA)/Cuerpo Especializado de Seguridad Portuaria (CESEP)/Grupo AIRCOP | T192: 0.09% | U192: 0.00% | V192: Dirección General de Aduanas (DGA)/Cuerpo Especializado de Seguridad Portuaria (CESEP)/Grupo AIRCOP | W192: 0.1% | X192: 0.0%
B193: Programa Mundial de Alimentos | C193: 2.04% | D193: 0.11% | E193: Programa Mundial de Alimentos | F193: 2.04% | G193: 0.11% | S193: Dirección General de Alianzas Público Privadas (DGAPP) | T193: 0.27% | U193: 0.04% | V193: Dirección General de Alianzas Público Privadas (DGAPP) | W193: 0.3% | X193: 0.0%
B194: Programa para el Medio Ambiente de Naciones Unidas | C194: 0.09% | D194: 0.02% | E194: Programa para el Medio Ambiente de Naciones Unidas | F194: 0.09% | G194: 0.02% | S194: Dirección General de Bellas Artes (DGBA) | T194: 0.09% | U194: 0.01% | V194: Dirección General de Bellas Artes (DGBA) | W194: 0.1% | X194: 0.0%
B195: Qatar | C195: 0.09% | D195: 0.00% | E195: Qatar | F195: 0.09% | G195: 0.00% | S195: Dirección General de Cine (DGCINE) | T195: 0.18% | U195: 0.01% | V195: Dirección General de Cine (DGCINE) | W195: 0.2% | X195: 0.0%
B196: Reino Unido | C196: 0.09% | D196: 0.00% | E196: Reino Unido | F196: 0.09% | G196: 0.00% | S196: Dirección General de Cine (DGCINE)/Centro Nacional del Cine y la Imagen Animada (Francia) | T196: 0.09% | U196: 0.00% | V196: Dirección General de Cine (DGCINE)/Centro Nacional del Cine y la Imagen Animada (Francia) | W196: 0.1% | X196: 0.0%
B197: Secretaría General Iberoamericana | C197: 1.42% | D197: 1.32% | E197: Secretaría General Iberoamericana | F197: 1.42% | G197: 1.32% | S197: Dirección General de Contrataciones Públicas (DGCP) | T197: 0.35% | U197: 0.08% | V197: Dirección General de Contrataciones Públicas (DGCP) | W197: 0.4% | X197: 0.1%
B198: Singapur | C198: 0.09% | D198: 0.00% | E198: Singapur | F198: 0.09% | G198: 0.00% | S198: Dirección General de Contrataciones Públicas (DGCP)/Fondo Especial para el Desarrollo Agropecuario (FEDA)/Ministerio de Agricultura (MA)/Secretaría Técnica de Soberanía y Seguridad Alimentaria y Nutricional/Sistema Único de Beneficiarios (SIUBEN)/Ministerio de Educación (MINERD)/Ministerio de Salud Pública y Asistencia Social (MISPAS) | T198: 0.09% | U198: 0.00% | V198: Dirección General de Contrataciones Públicas (DGCP)/Fondo Especial para el Desarrollo Agropecuario (FEDA)/Ministerio de Agricultura (MA)/Secretaría Técnica de Soberanía y Seguridad Alimentaria y Nutricional/Sistema Único de Beneficiarios (SIUBEN)/Ministerio de Educación (MINERD)/Ministerio de Salud Pública y Asistencia Social (MISPAS) | W198: 0.1% | X198: 0.0%
B199: Sistema de Integración Centroamericana | C199: 1.77% | D199: 6.80% | E199: Sistema de Integración Centroamericana | F199: 1.77% | G199: 6.80% | S199: Dirección General de Educación Inicial | T199: 0.09% | U199: 0.03% | V199: Dirección General de Educación Inicial | W199: 0.1% | X199: 0.0%
B200: Sistema de Naciones Unidas | C200: 0.71% | D200: 0.35% | E200: Sistema de Naciones Unidas | F200: 0.71% | G200: 0.35% | S200: Dirección General de Epidemiología (DIGEPI)/Programa de Inmunización Ampliada (PAI)/Direcciones Provinciales de Salud (DPS)/Áreas de Salud (DAS) | T200: 0.09% | U200: 0.00% | V200: Dirección General de Epidemiología (DIGEPI)/Programa de Inmunización Ampliada (PAI)/Direcciones Provinciales de Salud (DPS)/Áreas de Salud (DAS) | W200: 0.1% | X200: 0.0%
B201: Suecia | C201: 0.09% | D201: 0.00% | E201: Suecia | F201: 0.09% | G201: 0.00% | S201: Dirección General de Ética e Integridad Gubernamental (DIGEIG) | T201: 0.27% | U201: 0.01% | V201: Dirección General de Ética e Integridad Gubernamental (DIGEIG) | W201: 0.3% | X201: 0.0%
B202: Taiwán | C202: 0.62% | D202: 1.03% | E202: Taiwán | F202: 0.62% | G202: 1.03% | S202: Dirección General de Ganadería (DGG) | T202: 0.09% | U202: 0.03% | V202: =IF(OR(S202="",S202="Grand Total"),"",S202) -> Dirección General de Ganadería (DGG) | W202: =T202 -> 0.1% | X202: =U202 -> 0.0%
B203: The Field Museum | C203: 0.09% | D203: 0.00% | E203: The Field Museum | F203: 0.09% | G203: 0.00% | S203: Dirección General de Impuestos Internos (DGII) | T203: 0.09% | U203: 0.16% | V203: Dirección General de Impuestos Internos (DGII) | W203: 0.1% | X203: 0.2%
B204: The Ocean Cleanup | C204: 0.09% | D204: 0.04% | E204: The Ocean Cleanup | F204: 0.09% | G204: 0.04% | S204: Dirección General de la Policía Nacional | T204: 0.18% | U204: 0.03% | V204: Dirección General de la Policía Nacional | W204: 0.2% | X204: 0.0%
B205: Unión Europea | C205: 10.53% | D205: 19.40% | E205: Unión Europea | F205: 10.53% | G205: 19.40% | S205: Dirección General de Presupuesto (DIGEPRES) | T205: 0.09% | U205: 0.15% | V205: Dirección General de Presupuesto (DIGEPRES) | W205: 0.1% | X205: 0.1%
B206: Unión Internacional de Telecomunicaciones (UIT) | C206: 0.18% | D206: 0.01% | E206: Unión Internacional de Telecomunicaciones (UIT) | F206: 0.18% | G206: 0.01% | S206: Dirección General de Proyectos Estratégicos y Especiales de la Presidencia (PROPEEP) | T206: 0.09% | U206: 0.00% | V206: Dirección General de Proyectos Estratégicos y Especiales de la Presidencia (PROPEEP) | W206: 0.1% | X206: 0.0%
B207: Universidad de las Indias Occidentales | C207: 0.09% | D207: 0.00% | E207: Universidad de las Indias Occidentales | F207: 0.09% | G207: 0.00% | S207: Discovering Deaf Worlds (DDW)/Asociación Nacional de Sordos (ANSORDO) | T207: 0.09% | U207: 0.04% | V207: Discovering Deaf Worlds (DDW)/Asociación Nacional de Sordos (ANSORDO) | W207: 0.1% | X207: 0.0%
B208: Uruguay | C208: 0.09% | D208: 0.00% | E208: Uruguay | F208: 0.09% | G208: 0.00% | S208: Empresa Distribuidora de Electricidad del Norte, S. A. (EDENORTE)/Empresa Distribuidora de Electricidad del Sur, S. A. (EDESUR) | T208: 0.09% | U208: 0.04% | V208: Empresa Distribuidora de Electricidad del Norte, S. A. (EDENORTE)/Empresa Distribuidora de Electricidad del Sur, S. A. (EDESUR) | W208: 0.1% | X208: 0.0%
B209: World Diabetes Foundation | C209: 0.09% | D209: 0.05% | E209: World Diabetes Foundation | F209: 0.09% | G209: 0.05% | S209: ENTRENA | T209: 0.18% | U209: 2.42% | V209: ENTRENA | W209: 0.2% | X209: 2.4%
B210: Grand Total | C210: 100.00% | D210: 100.00% | S210: Facultad Latinoamericana de Ciencias Sociales (FLACSO) | T210: 0.09% | U210: 0.00% | V210: Facultad Latinoamericana de Ciencias Sociales (FLACSO) | W210: 0.1% | X210: 0.0%
S211: Federación de Caficultores de la Región Sur (Fedecares)/Federacion de Caficultores y Agricultores para el Desarrollo de San Juan Inc (FECADESJ) | T211: 0.09% | U211: 0.43% | V211: Federación de Caficultores de la Región Sur (Fedecares)/Federacion de Caficultores y Agricultores para el Desarrollo de San Juan Inc (FECADESJ) | W211: 0.1% | X211: 0.4%
S212: Federación Dominicana de Municipios (FEDOMU) | T212: 0.53% | U212: 0.11% | V212: Federación Dominicana de Municipios (FEDOMU) | W212: 0.5% | X212: 0.1%
S213: FHI 360 | T213: 0.09% | U213: 1.17% | V213: FHI 360 | W213: 0.1% | X213: 1.2%
S214: Fondo de las Naciones Unidas para la Infancia | T214: 0.80% | U214: 0.89% | V214: Fondo de las Naciones Unidas para la Infancia | W214: 0.8% | X214: 0.9%
S215: Fondo de las Naciones Unidas para la Infancia/Junta Central Electoral (JCE)/Servicio Nacional de Salud (SNS)/Ministerio de Salud Pública y Asistencia Social (MISPAS)/Dirección General de Proyectos Estratégicos y Especiales de la Presidencia (PROPEEP)/Ministerio de Educación (MINERD)/Instituto Nacional de Atención Integral a la Primera Infancia (INAIPI)/Programa Supérate/Consejo del Poder Judicial (CPJ) | T215: 0.09% | U215: 0.00% | V215: Fondo de las Naciones Unidas para la Infancia/Junta Central Electoral (JCE)/Servicio Nacional de Salud (SNS)/Ministerio de Salud Pública y Asistencia Social (MISPAS)/Dirección General de Proyectos Estratégicos y Especiales de la Presidencia (PROPEEP)/Ministerio de Educación (MINERD)/Instituto Nacional de Atención Integral a la Primera Infancia (INAIPI)/Programa Supérate/Consejo del Poder Judicial (CPJ) | W215: 0.1% | X215: 0.0%
S216: Fondo de las Naciones Unidas para la Infancia/Ministerio de Educación (MINERD) | T216: 0.27% | U216: 0.18% | V216: Fondo de las Naciones Unidas para la Infancia/Ministerio de Educación (MINERD) | W216: 0.3% | X216: 0.2%
S217: Fondo de las Naciones Unidas para la Infancia/Ministerio de Salud Pública y Asistencia Social (MISPAS) | T217: 0.18% | U217: 0.07% | V217: Fondo de las Naciones Unidas para la Infancia/Ministerio de Salud Pública y Asistencia Social (MISPAS) | W217: 0.2% | X217: 0.1%
S218: Fondo de las Naciones Unidas para la Infancia/Organización Internacional para las Migraciones/Alto Comisionado para los Refugiados | T218: 0.09% | U218: 0.03% | V218: Fondo de las Naciones Unidas para la Infancia/Organización Internacional para las Migraciones/Alto Comisionado para los Refugiados | W218: 0.1% | X218: 0.0%
S219: Fondo de las Naciones Unidas para la Infancia/Organización Panamericana de la Salud (OPS)-Organización Mundial de la Salud (OMS)/Ministerio de Salud Pública y Asistencia Social (MISPAS)/Servicio Nacional de Salud (SNS) | T219: 0.09% | U219: 0.02% | V219: Fondo de las Naciones Unidas para la Infancia/Organización Panamericana de la Salud (OPS)-Organización Mundial de la Salud (OMS)/Ministerio de Salud Pública y Asistencia Social (MISPAS)/Servicio Nacional de Salud (SNS) | W219: 0.1% | X219: 0.0%
S220: Fondo de las Naciones Unidas para la Infancia/Programa Supérate/Consejo Nacional para la Niñez y la Adolescencia (CONANI)/Ministerio de Educación (MINERD)/Ministerio de la Mujer (MMUJER)/Ministerio de Economía, Planificación y Desarrollo (MEPyD) | T220: 0.09% | U220: 0.28% | V220: Fondo de las Naciones Unidas para la Infancia/Programa Supérate/Consejo Nacional para la Niñez y la Adolescencia (CONANI)/Ministerio de Educación (MINERD)/Ministerio de la Mujer (MMUJER)/Ministerio de Economía, Planificación y Desarrollo (MEPyD) | W220: 0.1% | X220: 0.3%
S221: Fondo de las Naciones Unidas para la Infancia/Servicio Nacional de Salud (SNS)/Ministerio de Salud Pública y Asistencia Social (MISPAS) | T221: 0.09% | U221: 0.15% | V221: Fondo de las Naciones Unidas para la Infancia/Servicio Nacional de Salud (SNS)/Ministerio de Salud Pública y Asistencia Social (MISPAS) | W221: 0.1% | X221: 0.1%
S222: Fondo de las Naciones Unidas para la Infancia/Vicepresidencia de la República Dominicana/Ministerio de Salud Pública y Asistencia Social (MISPAS)/Instituto Nacional de la Salud (INSALUD)/Cruz Roja Dominicana (CRD)/Pastoral Materno Infantil | T222: 0.09% | U222: 0.05% | V222: Fondo de las Naciones Unidas para la Infancia/Vicepresidencia de la República Dominicana/Ministerio de Salud Pública y Asistencia Social (MISPAS)/Instituto Nacional de la Salud (INSALUD)/Cruz Roja Dominicana (CRD)/Pastoral Materno Infantil | W222: 0.1% | X222: 0.1%
S223: Fondo de Población de las Naciones Unidas | T223: 0.35% | U223: 0.01% | V223: Fondo de Población de las Naciones Unidas | W223: 0.4% | X223: 0.0%
S224: Fondo de Población de las Naciones Unidas/Consejo Nacional de la Persona Envejeciente (CONAPE) | T224: 0.09% | U224: 0.01% | V224: Fondo de Población de las Naciones Unidas/Consejo Nacional de la Persona Envejeciente (CONAPE) | W224: 0.1% | X224: 0.0%
S225: Fondo de Población de las Naciones Unidas/Ministerio de la Juventud (MJ) | T225: 0.09% | U225: 0.00% | V225: Fondo de Población de las Naciones Unidas/Ministerio de la Juventud (MJ) | W225: 0.1% | X225: 0.0%
S226: Fondo de Población de las Naciones Unidas/Ministerio de la Mujer (MMUJER)/Ministerio de Educación (MINERD)/Ministerio de la Juventud (MJ) | T226: 0.09% | U226: 0.00% | V226: Fondo de Población de las Naciones Unidas/Ministerio de la Mujer (MMUJER)/Ministerio de Educación (MINERD)/Ministerio de la Juventud (MJ) | W226: 0.1% | X226: 0.0%
S227: Fondo de Población de las Naciones Unidas/Ministerio de la Mujer (MMUJER)/Ministerio de Educación (MINERD)/Ministerio de la Juventud (MJ)/Consejo Nacional para la Niñez y la Adolescencia (CONANI)/Ministerio de Salud Pública y Asistencia Social (MISPAS) | T227: 0.09% | U227: 0.00% | V227: Fondo de Población de las Naciones Unidas/Ministerio de la Mujer (MMUJER)/Ministerio de Educación (MINERD)/Ministerio de la Juventud (MJ)/Consejo Nacional para la Niñez y la Adolescencia (CONANI)/Ministerio de Salud Pública y Asistencia Social (MISPAS) | W227: 0.1% | X227: 0.0%
S228: Fondo de Población de las Naciones Unidas/Ministerio de Salud Pública y Asistencia Social (MISPAS) | T228: 0.09% | U228: 0.00% | V228: Fondo de Población de las Naciones Unidas/Ministerio de Salud Pública y Asistencia Social (MISPAS) | W228: 0.1% | X228: 0.0%
S229: Fondo de Población de las Naciones Unidas/Oficina Nacional de Estadística (ONE) | T229: 0.09% | U229: 0.00% | V229: Fondo de Población de las Naciones Unidas/Oficina Nacional de Estadística (ONE) | W229: 0.1% | X229: 0.0%
S230: Fondo de Población de las Naciones Unidas/Servicio Nacional de Salud (SNS)/Ministerio de Salud Pública y Asistencia Social (MISPAS) | T230: 0.71% | U230: 0.03% | V230: Fondo de Población de las Naciones Unidas/Servicio Nacional de Salud (SNS)/Ministerio de Salud Pública y Asistencia Social (MISPAS) | W230: 0.7% | X230: 0.0%
S231: Fondo de Población de las Naciones Unidas/Servicio Nacional de Salud (SNS)/Ministerio de Salud Pública y Asistencia Social (MISPAS)/Universidad Autónoma de Santo Domingo (UASD)/Universidad de Chile | T231: 0.09% | U231: 0.00% | V231: Fondo de Población de las Naciones Unidas/Servicio Nacional de Salud (SNS)/Ministerio de Salud Pública y Asistencia Social (MISPAS)/Universidad Autónoma de Santo Domingo (UASD)/Universidad de Chile | W231: 0.1% | X231: 0.0%
S232: Fondo de Población de las Naciones Unidas/Universidad Autónoma de Santo Domingo (UASD) | T232: 0.09% | U232: 0.00% | V232: Fondo de Población de las Naciones Unidas/Universidad Autónoma de Santo Domingo (UASD) | W232: 0.1% | X232: 0.0%
S233: Fondo Especial para el Desarrollo Agropecuario (FEDA) | T233: 0.09% | U233: 0.00% | V233: Fondo Especial para el Desarrollo Agropecuario (FEDA) | W233: 0.1% | X233: 0.0%
S234: Fondo Nacional para el Medio Ambiente y Recursos Naturales (FONDOMARENA) | T234: 0.35% | U234: 0.02% | V234: Fondo Nacional para el Medio Ambiente y Recursos Naturales (FONDOMARENA) | W234: 0.4% | X234: 0.0%
S235: Fundación Avina | T235: 0.09% | U235: 0.00% | V235: Fundación Avina | W235: 0.1% | X235: 0.0%
S236: Fundación Colonia Venezolana en República Dominicana (FUNCOVERD)/Cámara de Comercio Dominico-Venezolana (CADOVEN) | T236: 0.09% | U236: 0.06% | V236: Fundación Colonia Venezolana en República Dominicana (FUNCOVERD)/Cámara de Comercio Dominico-Venezolana (CADOVEN) | W236: 0.1% | X236: 0.1%
S237: Fundación Étnica Integral (FEI)/Asociación Scalabriniana (ASCALA)/Casa del Caribe | T237: 0.09% | U237: 0.12% | V237: Fundación Étnica Integral (FEI)/Asociación Scalabriniana (ASCALA)/Casa del Caribe | W237: 0.1% | X237: 0.1%
S238: Fundación Étnica Integral (FEI)/Asociación Scalabriniana (ASCALA)/Casa del Caribe/Fundación de Intercambio Cultural entre los Pueblos del Caribe - Centro Puente (FUNCAR) | T238: 0.09% | U238: 0.03% | V238: Fundación Étnica Integral (FEI)/Asociación Scalabriniana (ASCALA)/Casa del Caribe/Fundación de Intercambio Cultural entre los Pueblos del Caribe - Centro Puente (FUNCAR) | W238: 0.1% | X238: 0.0%
S239: Fundación Internacional e Iberoamericana (FIIAPP) | T239: 0.18% | U239: 0.07% | V239: Fundación Internacional e Iberoamericana (FIIAPP) | W239: 0.2% | X239: 0.1%
S240: Fundación Internacional e Iberoamericana (FIIAPP)/Organización Internacional para las Migraciones | T240: 0.09% | U240: 0.33% | V240: Fundación Internacional e Iberoamericana (FIIAPP)/Organización Internacional para las Migraciones | W240: 0.1% | X240: 0.3%
S241: Fundación para el Desarrollo de El Seibo (FUNDESEY) | T241: 0.09% | U241: 0.00% | V241: Fundación para el Desarrollo de El Seibo (FUNDESEY) | W241: 0.1% | X241: 0.0%
S242: Fundación REDDOM | T242: 0.18% | U242: 0.47% | V242: Fundación REDDOM | W242: 0.2% | X242: 0.5%
S243: Fundación Reservas del País | T243: 0.09% | U243: 0.01% | V243: Fundación Reservas del País | W243: 0.1% | X243: 0.0%
S244: Fundación Sur Futuro | T244: 0.09% | U244: 0.03% | V244: Fundación Sur Futuro | W244: 0.1% | X244: 0.0%
S245: Fundación Sur Futuro/Ministerio de Medio Ambiente y Recursos Naturales (MARENA)/Instituto Nacional de Recursos Hidráulicos (INDRHI)/Dirección General de Ordenamiento y Desarrollo Territorial (DGODT)/Universidad Autónoma de Santo Domingo (UASD)/Instituto Geográfico Nacional José Joaquín Hungría Morell/Instituto Nacional de Aguas Potables y Alcantarillados (INAPA) | T245: 0.09% | U245: 0.06% | V245: Fundación Sur Futuro/Ministerio de Medio Ambiente y Recursos Naturales (MARENA)/Instituto Nacional de Recursos Hidráulicos (INDRHI)/Dirección General de Ordenamiento y Desarrollo Territorial (DGODT)/Universidad Autónoma de Santo Domingo (UASD)/Instituto Geográfico Nacional José Joaquín Hungría Morell/Instituto Nacional de Aguas Potables y Alcantarillados (INAPA) | W245: 0.1% | X245: 0.1%
S246: Gabinete de Coordinación de Política Social | T246: 0.62% | U246: 0.35% | V246: Gabinete de Coordinación de Política Social | W246: 0.6% | X246: 0.4%
S247: Gabinete de Coordinación de Política Social/Administradora de Subsidios Sociales (ADESS)/Programa Supérate/Oficina Nacional de Estadística (ONE)/Ministerio de Economía, Planificación y Desarrollo (MEPyD)/Ministerio de Relaciones Exteriores (MIREX)/Sistema Único de Beneficiarios (SIUBEN) | T247: 0.09% | U247: 0.00% | V247: Gabinete de Coordinación de Política Social/Administradora de Subsidios Sociales (ADESS)/Programa Supérate/Oficina Nacional de Estadística (ONE)/Ministerio de Economía, Planificación y Desarrollo (MEPyD)/Ministerio de Relaciones Exteriores (MIREX)/Sistema Único de Beneficiarios (SIUBEN) | W247: 0.1% | X247: 0.0%
S248: Gabinete de Coordinación de Política Social/Ministerio de Economía, Planificación y Desarrollo (MEPyD) | T248: 0.09% | U248: 0.02% | V248: Gabinete de Coordinación de Política Social/Ministerio de Economía, Planificación y Desarrollo (MEPyD) | W248: 0.1% | X248: 0.0%
S249: Gabinete de Innovación | T249: 0.09% | U249: 0.00% | V249: Gabinete de Innovación | W249: 0.1% | X249: 0.0%
S250: Gabinete de la Niñez | T250: 0.09% | U250: 0.00% | V250: Gabinete de la Niñez | W250: 0.1% | X250: 0.0%
S251: Glasswing International | T251: 0.09% | U251: 0.01% | V251: Glasswing International | W251: 0.1% | X251: 0.0%
S252: HeartLand Alliance International (HAI) | T252: 0.09% | U252: 0.00% | V252: HeartLand Alliance International (HAI) | W252: 0.1% | X252: 0.0%
... 723 more rows

Sheet PNPSP (hidden)
A1: 1. Empleo formal | B1: 1. Empleo formal | D1: =TRIM(A1) -> 1. Empleo formal
A2: 2. Seguridad ciudadana | B2: 2. Seguridad ciudadana | D2: =TRIM(A2) -> 2. Seguridad ciudadana
A3: 3. Hacia una política integral de creación de oportunidades | B3: 3. Hacia una política integral de creación de oportunidades | D3: 3. Hacia una política integral de creación de oportunidades
A4: 4.1. Acceso a salud universal: enfoque salud | B4: 4.1. Acceso a salud universal: enfoque salud | D4: 4.1. Acceso a salud universal: enfoque salud
A5: 4.2. Acceso a salud universal: enfoque seguridad social | B5: 4.2. Acceso a salud universal: enfoque seguridad social | D5: 4.2. Acceso a salud universal: enfoque seguridad social
A6: 5. Hacia una educación de calidad con equidad | B6: 5. Hacia una educación de calidad con equidad | D6: 5. Hacia una educación de calidad con equidad
A7: 6. Crear oportunidades para la juventud | B7: 6. Crear oportunidades para la juventud | D7: 6. Crear oportunidades para la juventud
A8: 7. Igualdad de género, empoderamiento de la mujer y la No Violencia de género | B8: 7. Igualdad de género, empoderamiento de la mujer y la No Violencia de género | D8: 7. Igualdad de género, empoderamiento de la mujer y la No Violencia de género
A9: 8. Transformando la educación superior, la ciencia y la tecnología | B9: 8. Transformando la educación superior, la ciencia y la tecnología | D9: 8. Transformando la educación superior, la ciencia y la tecnología
A10: 9. Cultura para el cambio | B10: 9. Cultura para el cambio | D10: 9. Cultura para el cambio
A11: 10. Deportes: un enfoque para el cambio | B11: 10. Deportes: un enfoque para el cambio | D11: 10. Deportes: un enfoque para el cambio
A12: 11. Población rural, desarrollo agropecuario y pesquero | B12: 11. Población rural, desarrollo agropecuario y pesquero | D12: 11. Población rural, desarrollo agropecuario y pesquero
A13: 12. El acceso al agua y mejora del recurso | B13: 12. El acceso al agua y mejora del recurso | D13: 12. El acceso al agua y mejora del recurso
A14: 13. Energía permanente y de calidad | B14: 13. Energía permanente y de calidad | D14: 13. Energía permanente y de calidad
A15: 14. Vivienda digna y adecuada, derecho fundamental del ser humano | B15: 14. Vivienda digna y adecuada, derecho fundamental del ser humano | D15: 14. Vivienda digna y adecuada, derecho fundamental del ser humano
A16: 15. Hacia un estado moderno e institucional | B16: 15. Hacia un estado moderno e institucional | D16: 15. Hacia un estado moderno e institucional
A17: 16. Enfrentar la corrupción y la impunidad | B17: 16. Enfrentar la corrupción y la impunidad | D17: 16. Enfrentar la corrupción y la impunidad
A18: 17. Hacia la transformación digital | B18: 17. Hacia la transformación digital | D18: 17. Hacia la transformación digital
A19: 18. Turismo, una oportunidad | B19: 18. Turismo, una oportunidad | D19: 18. Turismo, una oportunidad
A20: 19. Hacia una minería responsable | B20: 19. Hacia una minería responsable | D20: 19. Hacia una minería responsable
A21: 20. El comercio, una actividad importante | B21: 20. El comercio, una actividad importante | D21: 20. El comercio, una actividad importante
A22: 21. El desarrollo industrial, una prioridad | B22: 21. El desarrollo industrial, una prioridad | D22: 21. El desarrollo industrial, una prioridad
A23: 22. Promoción de las Mipymes | B23: 22. Promoción de las Mipymes | D23: 22. Promoción de las Mipymes
A24: 23. La sostenibilidad ambiental y el cambio climático en un país insular | B24: 23. La sostenibilidad ambiental y el cambio climático en un país insular | D24: 23. La sostenibilidad ambiental y el cambio climático en un país insular
A25: 24. Implementar la politica nacional de produccion y consumo sostenible | B25: 24. Implementar la politica nacional de produccion y consumo sostenible | D25: 24. Implementar la politica nacional de produccion y consumo sostenible
A26: 25. Políticas públicas territoriales y municipales para el cambio | B26: 25. Políticas públicas territoriales y municipales para el cambio | D26: 25. Políticas públicas territoriales y municipales para el cambio
A27: 26. La transformación del sector transporte | B27: 26. La transformación del sector transporte | D27: 26. La transformación del sector transporte
A28: 27. La política exterior en el Gobierno del Cambio | B28: 27. La política exterior en el Gobierno del Cambio | D28: 27. La política exterior en el Gobierno del Cambio
A29: 28. Una política hacia la diáspora | B29: 28. Una política hacia la diáspora | D29: 28. Una política hacia la diáspora
A30: 29. Gestión por Resultados | B30: 29. Gestión por Resultados | D30: 29. Gestión por Resultados
A31: 30. Gestión de datos | B31: 30. Gestión de datos | D31: 30. Gestión de datos
A32: 31. Deuda, gastos e ingresos públicos” y “Monetaria, crediticia y cambiaria | B32: 31. Deuda, gastos e ingresos públicos” y “Monetaria, crediticia y cambiaria | D32: 31. Deuda, gastos e ingresos públicos” y “Monetaria, crediticia y cambiaria
A33: No alineado | B33: No alineado | D33: No alineado

Sheet Tabla dinámica
C2: Ministerio de Economía, Planificación y Desarrollo (MEPyD)
C3: Viceministerio de Cooperación Internacional (VIMICI)
C4: Dirección de Análisis y Coordinación de la Cooperación Internacional (DACCI)
B8: Temática principal | C8: Iniciativas | D8: % | E8: Monto total no reembolsable (en millones de pesos dominicanos)
B9: Actividades deportivas, recreativas y religiosas | C9: 3 | D9: 0.27% | E9: 16.2
B10: Agua y saneamiento | C10: 38 | D10: 3.36% | E10: 5,038.9
B11: Arte y cultura | C11: 41 | D11: 3.63% | E11: 475.8
B12: Ciencia, tecnología, comunicación e innovación | C12: 12 | D12: 1.06% | E12: 971.9
B13: Comercio | C13: 18 | D13: 1.59% | E13: 7,186.4
B14: Desarrollo rural | C14: 29 | D14: 2.57% | E14: 971.1
B15: Educación | C15: 57 | D15: 5.04% | E15: 5,755.3
B16: Empleo | C16: 19 | D16: 1.68% | E16: 174.7
B17: Fortalecimiento institucional | C17: 126 | D17: 11.33% | E17: 9,142.6
B18: Generación y suministros de energía | C18: 36 | D18: 3.19% | E18: 4,318.4
B19: Género | C19: 36 | D19: 3.27% | E19: 1,275.3
B20: Gestión de riesgo | C20: 53 | D20: 4.78% | E20: 3,625.3
B21: Industria | C21: 11 | D21: 0.97% | E21: 220.1
B22: Justicia | C22: 24 | D22: 2.12% | E22: 4,258.7
B23: Medioambiente y cambio climático | C23: 121 | D23: 10.97% | E23: 16,740.8
B24: Migración | C24: 44 | D24: 3.89% | E24: 1,022.4
B25: Minería | C25: 8 | D25: 0.71% | E25: 38.5
B26: MIPYMES | C26: 17 | D26: 1.50% | E26: 1,964.9
B27: Protección y asistencia social | C27: 85 | D27: 7.52% | E27: 4,315.8
B28: Relaciones internacionales | C28: 13 | D28: 1.15% | E28: 1,173.2
B29: Salud y seguridad social | C29: 167 | D29: 14.78% | E29: 11,383.6
B30: Sector agropecuario | C30: 83 | D30: 7.35% | E30: 7,368.6
B31: Sector financiero | C31: 10 | D31: 0.88% | E31: 128.9
B32: Seguridad ciudadana | C32: 25 | D32: 2.21% | E32: 8,808.9
B33: Transporte | C33: 15 | D33: 1.50% | E33: 1,137.5
B34: Turismo | C34: 14 | D34: 1.24% | E34: 781.8
B35: Vivienda y servicios comunitarios | C35: 12 | D35: 1.06% | E35: 132.1
B36: Desarrollo urbano | C36: 4 | D36: 0.35% | E36: 88.9
B37: Total | C37: 1121 | D37: 100.00% | E37: 98,516.4

Sheet dataRegistro (hidden)
A1: No. | B1: Fecha de registro | C1: Datos de la persona que registra | D1: Nombre de la iniciativa | E1: ¿Cuenta o requiere esta iniciativa con una carta de no objeción? | F1: Documentos adjuntos de la iniciativa | G1: Especifique los documentos adjuntos de la iniciativa | H1: Código SNIP | I1: Origen de la Cooperación | J1: Tipo de iniciativa | K1: Especifique el tipo de iniciativa | L1: Tipo de instrumento | M1: Especifique el tipo de instrumento | N1: Objetivo general | O1: Resumen de la iniciativa | P1: Resultados | Q1: Dimensión | R1: Sector principal | S1: Temática principal | T1: Especifique la temática principal | U1: Temática secundaria | V1: Especifique la temática secundaria | W1: Estado respecto a la ejecución de la iniciativa | X1: ¿Cuántos cooperantes están involucrados en esta iniciativa? | Y1: Tipo cooperante 1 | Z1: Agencia, país u organismo cooperante 1 | AA1: Tipo cooperante 2 | AB1: Agencia, país u organismo cooperante 2 | AC1: Tipo cooperante 3 | AD1: Agencia, país u organismo cooperante 3 | AE1: Rol del país en la iniciativa | AF1: ¿Cooperación triangular? | AG1: Tipo de institución responsable seguimiento general | AH1: Especifique el tipo de institución responsable del seguimiento general | AI1: Institución responsable seguimiento general | AJ1: Tipo de institución responsable de la ejecución física | AK1: Especifique el tipo de institución responsable de la ejecución física | AL1: Institución responsable de la ejecución física | AM1: Área responsable dentro de la institución ejecutora responsable de la ejecución física | AN1: Tipo de institución responsable de la ejecución financiera | AO1: Especifique el tipo de institución responsable de la ejecución financiera | AP1: Institución responsable de la ejecución financiera | AQ1: Institución (es) involucrada (s) | AR1: Área (Departamento, Dirección, División, Unidad) responsable del seguimiento | AS1: Nivel de seguimiento de la Dirección encargada del VIMICI | AT1: Eje END | AU1: Objetivo General de la END | AV1: Objetivo Específico de la END | AW1: Eje transversal de la END | AX1: Política priorizada PNPSP | AY1: Hipótesis de política priorizada PNPSP | AZ1: Medidas regulatorias PNPSP | BA1: Eje transversal PNPSP | BB1: Objetivo de Desarrollo Sostenible | BC1: Meta del ODS | BD1: Población o institución objetivo/beneficiaria (Describa) | BE1: Grupo poblacional beneficiario principal | BF1: Especifique el grupo de impacto poblacional | BG1: Grupo poblacional beneficiario secundario | BH1: Especifique el grupo de impacto poblacional secundario | BI1: Alcance territorial | BJ1: Especifique el territorio | BK1: Fecha de firma de convenio | BL1: Fecha de ejecución | BM1: Fecha de cierre operativo original según el documento firmado | BN1: Fecha de cierre administrativo original | BO1: Cantidad de prórrogas permitidas para esta iniciativa | BP1: Condiciones de la cooperación | BQ1: Especifique las condiciones de la cooperación | BR1: Naturaleza de los recursos | BS1: Del componente no reembolsable, especifique la naturaleza | BT1: ¿Presupuesto compartido? | BU1: Moneda original del presupuesto | BV1: Especifique la moneda presupuesto | BW1: Presupuesto total en moneda original | BX1: Monto total no reembolsable en moneda original | BY1: Monto no reembolsable cooperante 1 en moneda original | BZ1: Monto no reembolsable cooperante 2 en moneda original | CA1: Monto no reembolsable cooperante 3 en moneda original | CB1: Monto total reembolsable en moneda original | CC1: Aporte de cooperación financiera no reembolsable en moneda original | CD1: Aporte de cooperación técnica no reembolsable en moneda original | CE1: Aporte de cooperación en especie no reembolsable en moneda original | CF1: Moneda contrapartida privada | CG1: Especifique moneda contrapartida privada | CH1: Contrapartida privada | CI1: Moneda contrapartida del gobierno | CJ1: Especifique moneda contrapartida del gobierno | CK1: Contrapartida del gobierno | CL1: Observaciones | CM1: Observaciones DACCI | CN1: Fecha de reporte seguimiento | CO1: Estado al momento del seguimiento | CP1: Cantidad de prórrogas solicitadas | CQ1: Nueva fecha de cierre operativo | CR1: Nueva fecha de cierre administrativo | CS1: Programación de actividades del seguimiento realizadas por el VIMICI a corto plazo para T1 | CT1: Actividades del seguimiento realizadas por el VIMICI durante T1 | CU1: Porcentaje de cumplimiento de las actividades del seguimiento realizadas por el VIMICI durante T1 | CV1: Avances en los resultados de la iniciativa durante T1 | CW1: Porcentaje de avance en la ejecución de actividades de la iniciativa durante T1 | CX1: Programación de actividades del seguimiento realizadas por el VIMICI a corto plazo para T2 | CY1: Actividades del seguimiento realizadas por el VIMICI durante T2 | CZ1: Porcentaje de cumplimiento de las actividades del seguimiento realizadas por el VIMICI durante T2 | DA1: Avances en los resultados de la iniciativa durante T2 | DB1: Porcentaje de avance en la ejecución de actividades de la iniciativa durante T2 | DC1: Programación de actividades del seguimiento realizadas por el VIMICI a corto plazo para T3 | DD1: Actividades del seguimiento realizadas por el VIMICI durante T3 | DE1: Porcentaje de cumplimiento de las actividades del seguimiento realizadas por el VIMICI durante T3 | DF1: Avances en los resultados de la iniciativa durante T3 | DG1: Porcentaje de avance en la ejecución de actividades de la iniciativa durante T3 | DH1: Programación de actividades del seguimiento realizadas por el VIMICI a corto plazo para T4 | DI1: Actividades del seguimiento realizadas por el VIMICI durante T4 | DJ1: Porcentaje de cumplimiento de las actividades del seguimiento realizadas por el VIMICI durante T4 | DK1: Avances en los resultados de la iniciativa durante T4 | DL1: Porcentaje de avance en la ejecución de actividades de la iniciativa durante T4 | DM1: Programación de actividades del seguimiento realizadas por el VIMICI a corto plazo para T4 2023 | DN1: Actividades del seguimiento realizadas por el VIMICI durante T4 2023 | DO1: Porcentaje de cumplimiento de las actividades del seguimiento realizadas por el VIMICI durante T4 2023 | DP1: Avances en los resultados de la iniciativa durante T4 2023 | DQ1: Porcentaje de avance en la ejecución de actividades de la iniciativa durante T4 2023 | DR1: Moneda para el reporte del seguimiento financiero | DS1: Especifique la moneda para el reporte del seguimiento financiero | DT1: Monto desembolsado hasta 2023 | DU1: Monto ejecutado hasta 2023 | DV1: Monto desembolsado hasta T1 | DW1: Monto ejecutado hasta T1 | DX1: Monto desembolsado hasta T2 | DY1: Monto ejecutado hasta T2 | DZ1: Monto desembolsado hasta T3 | EA1: Monto ejecutado hasta T3 | EB1: Monto desembolsado hasta T4 | EC1: Monto ejecutado hasta T4 | ED1: Inconvenientes presentados en la ejecución durante T1 | EE1: Acciones correctivas ejecutadas durante T1 | EF1: Nivel de riesgo de la ejecución según lo previsto de la iniciativa durante T1 | EG1: ¿Requirió intervención o apoyo del despacho del VIMICI durante T1? | EH1: Especifique el apoyo que se requirió del despacho VIMICI durante T1 | EI1: Inconvenientes presentados en la ejecución durante T2 | EJ1: Acciones correctivas ejecutadas durante T2 | EK1: Nivel de riesgo de la ejecución según lo previsto de la iniciativa durante T2 | EL1: ¿Requirió intervención o apoyo del despacho del VIMICI durante T2? | EM1: Especifique el apoyo que se requirió del despacho VIMICI durante T2 | EN1: Inconvenientes presentados en la ejecución durante T3 | EO1: Acciones correctivas ejecutadas durante T3 | EP1: Nivel de riesgo de la ejecución según lo previsto de la iniciativa durante T3 | EQ1: ¿Requirió intervención o apoyo del despacho del VIMICI durante T3? | ER1: Especifique el apoyo que se requirió del despacho VIMICI durante T3 | ES1: Inconvenientes presentados en la ejecución durante T4 | ET1: Acciones correctivas ejecutadas durante T4 | EU1: Nivel de riesgo de la ejecución según lo previsto de la iniciativa durante T4 | EV1: ¿Requirió intervención o apoyo del despacho del VIMICI durante T4? | EW1: Especifique el apoyo que se requirió del despacho VIMICI durante T4 | EX1: Inconvenientes presentados en la ejecución durante 2023 | EY1: Acciones correctivas ejecutadas durante 2023 | EZ1: Nivel de riesgo de la ejecución según lo previsto de la iniciativa durante 2023 | FA1: ¿Requirió intervención o apoyo del despacho del VIMICI durante T4 2023? | FB1: Especifique el apoyo que se requirió del despacho VIMICI durante T4 2023 | FC1: Observaciones generales del seguimiento | FD1: Observaciones DACCI del seguimiento | FE1: ID_COOPERANTE | FF1: Tipo de instrumento interno | FG1: Código SINACID asignado prev | FH1: Código SINACID | FI1: Etapa del ciclo del proyecto | FJ1: Siglas de la agencia, país u organismo cooperante 1 | FK1: País cooperante 1 | FL1: Características de los países, organismos o agencias cooperantes 1 | FM1: Vía de canalización | FN1: País cooperante 2 | FO1: Características de los países, organismos o agencias cooperantes 2 | FP1: Duración operativa en meses | FQ1: Duración administrativa en años | FR1: Nivel de jerarquía | FS1: Tiempo restante cierre operativo (semanas) | FT1: Tiempo restante para cierre administrativo (semanas) | FU1: Último estado al reporte | FV1: Última etapa al reporte | FW1: Presupuesto total DOP | FX1: Monto total no reembolsable DOP | FY1: Monto no reembolsable cooperante 1 DOP | FZ1: Monto no reembolsable cooperante 2 DOP | GA1: Monto no reembolsable cooperante 3 DOP | GB1: Monto total reembolsable DOP | GC1: Aporte de cooperación financiera no reembolsable DOP | GD1: Aporte de cooperación técnica no reembolsable DOP | GE1: Aporte de cooperación en especie no reembolsable DOP | GF1: Contrapartida privada DOP | GG1: Contrapartida gobierno DOP | GH1: Aporte de cooperación financiera total en moneda original | GI1: Aporte de cooperación financiera total DOP | GJ1: Última fecha de cierre operativo | GK1: Porcentaje de ejecución de actividades de la iniciativa global | GL1: Última fecha de cierre administrativo | GM1: Monto desembolsado a la fecha de reporte del seguimiento | GN1: Monto ejecutado a la fecha de reporte del seguimiento | GO1: Monto pendiente de ejecución a la fecha de reporte del seguimiento | GP1: Porcentaje de ejecución financiera del monto desembolsado | GQ1: Monto desembolsado a la fecha en DOP | GR1: Monto total ejecutado a la fecha en DOP | GS1: Monto pendiente de ejecución en DOP | GT1: Inconvenientes presentados en la ejecución al momento de reporte | GU1: Acciones correctivas ejecutadas al momento de reporte | GV1: Nivel de riesgo de la ejecución según lo previsto de la iniciativa al momento de reporte | GW1: ¿Requirió intervención o apoyo del despacho del VIMICI al momento de reporte? | GX1: Especifique el apoyo que se requirió del despacho VIMICI al momento de reporte | GY1: Socios Cooperantes | GZ1: Categoría de validación | HA1: Validación | HB1: Codificación de duplicado | HC1: Fuente de la iniciativa | HD1: Clasificación fuente de la iniciativa | HE1: Codificación en matriz fuente | HF1: Vigencia_y_validación_último_estado | HG1: Vigente a la fecha de hoy | HH1: Temática_princ_rev_nombr_especif | HI1: Temática_sec_rev_nombr_especif | HJ1: Monitoreo MEPyD | HK1: Vigente durante 2022 | HL1: Fuente específica | HM1: N/D financiero | HN1: N/D Físico | HO1: N/D Inconvenientes | HP1: Instituciones | HQ1: No. interno | HR1: Iniciativas | HS1: Montos | HT1: Requerimiento
